Directorate,Department,Expenditure Type,Ref.Doc.1,Vendor Name,Expenditure Amount (exc VAT),Payment Date
COMMERCIAL,ENVIRONMENT,Other Services,1000166201,Conway Aecom Ltd,490.35,03/01/2020
COMMERCIAL,ENVIRONMENT,Advertising,1000293001,TMP (UK) LTD,170.00,16/01/2020
COMMERCIAL,ENVIRONMENT,Advertising,1000302301,TMP (UK) LTD,260.00,20/01/2020
COMMERCIAL,ENVIRONMENT,Advertising,1000389801,TMP (UK) LTD,90.00,24/01/2020
COMMERCIAL,ENVIRONMENT,Other Services,1000163701,Conway Aecom Ltd,"60,000.00",03/01/2020
COMMERCIAL,ENVIRONMENT,Other Services,1000472101,SUSTRANS LTD,"60,000.00",31/01/2020
COMMERCIAL,ENVIRONMENT,Advertising,1000376401,TMP (UK) LTD,498.00,23/01/2020
COMMERCIAL,ENVIRONMENT,Other Services,1000163601,Conway Aecom Ltd,"4,980.00",03/01/2020
COMMERCIAL,ENVIRONMENT,Other Services,1000370901,Conway Aecom Ltd,127.32,23/01/2020
COMMERCIAL,ENVIRONMENT,Equipment and Materials Purcha,1000295701,Bouygues E&S Infrastructure UK Ltd,"63,882.41",16/01/2020
COMMERCIAL,ENVIRONMENT,Other Services,1000271301,XAIS Asset Management Ltd,"48,218.10",14/01/2020
COMMERCIAL,ENVIRONMENT,Other Services,1000275401,XAIS Asset Management Ltd,"50,300.10",15/01/2020
COMMERCIAL,ENVIRONMENT,Equipment and Materials Purcha,1000270101,HAGS PLAY LTD,"101,154.06",14/01/2020
COMMERCIAL,ENVIRONMENT,Equipment and Materials Purcha,1000286301,HAGS PLAY LTD,"98,310.94",16/01/2020
COMMERCIAL,ENVIRONMENT,Other Services,1000318901,DAVID OGILVIE ENGINEERING LTD,"1,036.50",20/01/2020
COMMERCIAL,ENVIRONMENT,Other Services,1000420301,Conway Aecom Ltd,"8,866.38",28/01/2020
COMMERCIAL,ENVIRONMENT,Other Services,1000403401,Cycle Confident Ltd,"8,055.97",24/01/2020
COMMERCIAL,ENVIRONMENT,Advertising,60127320,TMP (UK) LTD,444.00,16/01/2020
COMMERCIAL,ENVIRONMENT,Other Services,1000438001,TMP (UK) LTD,543.00,29/01/2020
COMMERCIAL,ENVIRONMENT,Other Services,1000172801,Conway Aecom Ltd,19.82,03/01/2020
COMMERCIAL,ENVIRONMENT,Other Services,1000175401,Conway Aecom Ltd,40.00,03/01/2020
COMMERCIAL,ENVIRONMENT,Other Services,1000177201,Conway Aecom Ltd,359.53,03/01/2020
COMMERCIAL,ENVIRONMENT,Other Services,1000177301,Conway Aecom Ltd,36.39,03/01/2020
COMMERCIAL,ENVIRONMENT,Other Services,1000178301,Conway Aecom Ltd,4.01,03/01/2020
COMMERCIAL,ENVIRONMENT,Other Services,1000167101,Conway Aecom Ltd,"30,000.00",03/01/2020
COMMERCIAL,ENVIRONMENT,Other Services,1000245601,Conway Aecom Ltd,"30,000.00",13/01/2020
COMMERCIAL,ENVIRONMENT,Other Services,1000428301,Conway Aecom Ltd,"15,115.56",29/01/2020
COMMERCIAL,ENVIRONMENT,Other Services,1000363101,Bouygues E&S Infrastructure UK Ltd,"1,594.38",23/01/2020
COMMERCIAL,ENVIRONMENT,Other Services,1000373401,Conway Aecom Ltd,"34,526.02",23/01/2020
COMMERCIAL,ENVIRONMENT,Other Services,1000253101,Conway Aecom Ltd,"32,960.00",13/01/2020
COMMERCIAL,ENVIRONMENT,Professional Services,1000166801,BLAKEDOWN LANDSCAPE (SE) LTD,"297,857.61",03/01/2020
COMMERCIAL,ENVIRONMENT,Professional Services,1000385801,APPLEYARD & TREW LLP,"4,292.06",24/01/2020
COMMERCIAL,ENVIRONMENT,Professional Services,1000237201,Bouygues E&S Infrastructure UK Ltd,"1,007.88",10/01/2020
COMMERCIAL,ENVIRONMENT,Professional Services,1000236401,Emergent Vernacular Architecture Ltd,"15,434.72",10/01/2020
COMMERCIAL,ENVIRONMENT,Capital Construction and Works,10015546,Guild Architectural Restoration Ltd,"16,185.00",24/01/2020
COMMERCIAL,ENVIRONMENT,Other Services,1000296201,ARTS DEPOT PRODUCTIONS LTD,"1,301.50",16/01/2020
Commercial,HRA,Advertising,1000250301,TMP (UK) LTD,242.00,13/01/2020
Commercial,HRA,Consultants Fees,60138157,P P C R ASSOCIATES LTD,-198.35,02/01/2020
Commercial,HRA,Consultants Fees,60142156,P P C R ASSOCIATES LTD,105.67,02/01/2020
Commercial,HRA,Consultants Fees,60142192,P P C R ASSOCIATES LTD,40.00,02/01/2020
Commercial,HRA,Consultants Fees,1000167501,P P C R ASSOCIATES LTD,302.68,02/01/2020
Commercial,HRA,Consultants Fees,1000170901,P P C R ASSOCIATES LTD,105.67,03/01/2020
Commercial,HRA,Consultants Fees,1000305001,P P C R ASSOCIATES LTD,105.67,20/01/2020
Commercial,HRA,Consultants Fees,1000163102,TROWERS & HAMLINS,"7,376.84",03/01/2020
Commercial,HRA,Consultants Fees,1000399101,TROWERS & HAMLINS,"1,425.00",24/01/2020
Commercial,HRA,Consultants Fees,1000407001,PRIORITY ESTATES PROJECT LTD,"2,584.45",24/01/2020
Commercial,HRA,Consultants Fees,1000164802,THE BARNETGROUP LIMITED,"378,000.00",03/01/2020
Commercial,HRA,Other Services,1000176501,AJS Ltd,"7,218.12",03/01/2020
Commercial,HRA,Other Services,1000350001,UK POWER NETWORKS,"31,473.32",21/01/2020
Commercial,HRA,Other Services,80032394,THAMES WATER UTILITIES,"307,962.92",24/01/2020
Commercial,HRA,Consultants Fees,1000454101,TROWERS & HAMLINS,"2,309.78",30/01/2020
Commercial,HRA,Agency/Interim Non Hays,1000302602,CHILD'S HILL BAPTIST CHURCH,192.00,21/01/2020
Commercial,Regional Enterprise,Equipment and Materials Purcha,1000226001,Enforcement Services Ltd,"2,480.00",09/01/2020
Commercial,Regional Enterprise,Legal and Court Fees,80032599,Henry Planning Limited,"1,400.00",24/01/2020
Commercial,Regional Enterprise,Other Services,1000167301,Conway Aecom Ltd,224.61,02/01/2020
Commercial,Regional Enterprise,Other Services,1000436701,Conway Aecom Ltd,"1,977.74",29/01/2020
Commercial,Regional Enterprise,Other Services,60145105,KENT COUNTY COUNCIL (KCS),50.12,21/01/2020
Commercial,Regional Enterprise,Other Services,60145111,KENT COUNTY COUNCIL (KCS),40.64,21/01/2020
Commercial,Regional Enterprise,Other Services,60145188,KENT COUNTY COUNCIL (KCS),78.32,21/01/2020
Commercial,Regional Enterprise,Other Services,60145247,KENT COUNTY COUNCIL (KCS),38.92,21/01/2020
Commercial,Regional Enterprise,Other Services,1000332502,KENT COUNTY COUNCIL (KCS),25.02,24/01/2020
Commercial,Regional Enterprise,Other Services,1000345902,KENT COUNTY COUNCIL (KCS),115.06,23/01/2020
Commercial,Regional Enterprise,Other Services,1000348902,KENT COUNTY COUNCIL (KCS),44.15,23/01/2020
Commercial,Regional Enterprise,Other Services,1000349902,KENT COUNTY COUNCIL (KCS),44.86,23/01/2020
Commercial,Regional Enterprise,Other Services,60144288,Castle Water Ltd,23.91,16/01/2020
Commercial,Regional Enterprise,Other Services,60144304,Castle Water Ltd,26.33,16/01/2020
Commercial,Regional Enterprise,Other Services,60144312,Castle Water Ltd,5.83,16/01/2020
Commercial,Regional Enterprise,Other Services,60145148,Castle Water Ltd,5.83,16/01/2020
Commercial,Regional Enterprise,Other Services,1000333402,Castle Water Ltd,5.83,22/01/2020
Commercial,Regional Enterprise,Other Services,1000337202,Castle Water Ltd,5.83,22/01/2020
Commercial,Regional Enterprise,Other Services,1000343501,Castle Water Ltd,20.00,21/01/2020
Commercial,Regional Enterprise,Other Services,1000346501,Castle Water Ltd,20.00,21/01/2020
Commercial,Regional Enterprise,Other Services,1000354102,Castle Water Ltd,130.78,22/01/2020
Commercial,Regional Enterprise,Other Services,1000354502,Castle Water Ltd,8.38,22/01/2020
Commercial,Regional Enterprise,Other Services,1000433102,Castle Water Ltd,292.61,29/01/2020
Commercial,Regional Enterprise,Other Services,1000442702,Castle Water Ltd,8.66,29/01/2020
Commercial,Regional Enterprise,Other Services,1000442902,Castle Water Ltd,21.72,29/01/2020
Commercial,Regional Enterprise,Other Services,1000119902,J C DECAUX UK LTD,"23,783.84",17/01/2020
Commercial,Regional Enterprise,Advertising,1000369301,TMP (UK) LTD,215.00,23/01/2020
Commercial,Regional Enterprise,Advertising,1000370001,TMP (UK) LTD,99.00,23/01/2020
Commercial,Regional Enterprise,Advertising,1000370201,TMP (UK) LTD,242.00,23/01/2020
Commercial,Regional Enterprise,Advertising,1000375601,TMP (UK) LTD,296.00,23/01/2020
Commercial,Regional Enterprise,Advertising,1000385301,TMP (UK) LTD,314.00,23/01/2020
Commercial,Regional Enterprise,Advertising,1000385701,TMP (UK) LTD,314.00,23/01/2020
Commercial,Regional Enterprise,Advertising,1000386601,TMP (UK) LTD,117.00,23/01/2020
Commercial,Regional Enterprise,Advertising,1000386701,TMP (UK) LTD,224.00,23/01/2020
Commercial,Regional Enterprise,Advertising,1000387601,TMP (UK) LTD,368.00,24/01/2020
Commercial,Regional Enterprise,Advertising,1000392701,TMP (UK) LTD,350.00,24/01/2020
Commercial,Regional Enterprise,Advertising,1000393601,TMP (UK) LTD,144.00,24/01/2020
Commercial,Regional Enterprise,Advertising,1000393701,TMP (UK) LTD,117.00,24/01/2020
Commercial,Regional Enterprise,Advertising,1000394201,TMP (UK) LTD,117.00,24/01/2020
Commercial,Regional Enterprise,Advertising,1000394301,TMP (UK) LTD,350.00,24/01/2020
Commercial,Regional Enterprise,Advertising,1000395101,TMP (UK) LTD,117.00,24/01/2020
Commercial,Regional Enterprise,Advertising,1000419002,TMP (UK) LTD,314.00,29/01/2020
Commercial,Regional Enterprise,Advertising,1000421501,TMP (UK) LTD,135.00,28/01/2020
Commercial,Regional Enterprise,Advertising,1000423501,TMP (UK) LTD,161.00,28/01/2020
Commercial,Regional Enterprise,Advertising,1000423801,TMP (UK) LTD,260.00,28/01/2020
Commercial,Regional Enterprise,Professional Services,1000399401,WATES PROPERTY SERVICES LTD,58.70,24/01/2020
Commercial,Regional Enterprise,Professional Services,1000399701,WATES PROPERTY SERVICES LTD,"1,344.62",24/01/2020
Commercial,Regional Enterprise,Professional Services,1000400301,WATES PROPERTY SERVICES LTD,296.14,24/01/2020
Commercial,Regional Enterprise,Professional Services,1000400601,WATES PROPERTY SERVICES LTD,28.20,24/01/2020
Commercial,Regional Enterprise,Professional Services,1000404601,WATES PROPERTY SERVICES LTD,111.61,24/01/2020
Commercial,Regional Enterprise,Professional Services,1000411201,WATES PROPERTY SERVICES LTD,286.58,24/01/2020
Commercial,Regional Enterprise,Professional Services,1000419701,WATES PROPERTY SERVICES LTD,347.24,28/01/2020
Commercial,Regional Enterprise,Advertising,1000311701,TMP (UK) LTD,732.00,20/01/2020
Commercial,Regional Enterprise,Advertising,1000315301,TMP (UK) LTD,462.00,20/01/2020
Commercial,Regional Enterprise,Advertising,1000315401,TMP (UK) LTD,296.00,20/01/2020
Commercial,Regional Enterprise,Advertising,1000321501,TMP (UK) LTD,502.00,20/01/2020
Commercial,Regional Enterprise,Advertising,1000323501,TMP (UK) LTD,624.00,20/01/2020
Commercial,Regional Enterprise,Other Services,1000169301,Conway Aecom Ltd,"3,856.22",03/01/2020
Commercial,Regional Enterprise,Other Services,1000175201,Conway Aecom Ltd,10.86,03/01/2020
Commercial,Regional Enterprise,Other Services,1000369401,Conway Aecom Ltd,"7,447.10",23/01/2020
Commercial,Regional Enterprise,Other Services,1000380401,Conway Aecom Ltd,"7,684.59",23/01/2020
Commercial,Regional Enterprise,Other Services,1000436101,Conway Aecom Ltd,"15,575.22",30/01/2020
Commercial,Regional Enterprise,Other Services,1000442801,Conway Aecom Ltd,"16,780.64",29/01/2020
Commercial,Regional Enterprise,Professional Services,1000298002,PUBLIC ANALYST SCIENTIFIC SERVS. LT,360.00,21/01/2020
Commercial,Regional Enterprise,Other Services,1000258901,Conway Aecom Ltd,529.93,13/01/2020
Commercial,Regional Enterprise,Other Services,1000376001,Conway Aecom Ltd,191.96,23/01/2020
Commercial,Regional Enterprise,Other Services,1000384601,Conway Aecom Ltd,89.74,23/01/2020
Commercial,Regional Enterprise,Other Services,1000418401,Conway Aecom Ltd,64.42,28/01/2020
Commercial,Regional Enterprise,Other Services,1000421001,Conway Aecom Ltd,127.97,28/01/2020
Commercial,Regional Enterprise,Fees and Charges,60145250,Norse Commercial Services Ltd,275.00,20/01/2020
Commercial,Regional Enterprise,Other Services,60143850,Conway Aecom Ltd,"2,835.00",10/01/2020
Commercial,Regional Enterprise,Other Services,1000375401,Conway Aecom Ltd,945.00,23/01/2020
Commercial,Regional Enterprise,Other Services,1000375801,Conway Aecom Ltd,"1,974.00",23/01/2020
Commercial,Regional Enterprise,Other Services,1000375901,Conway Aecom Ltd,"1,631.70",23/01/2020
Commercial,Regional Enterprise,Other Services,1000377001,Conway Aecom Ltd,604.80,23/01/2020
Commercial,Regional Enterprise,Other Services,1000378301,Conway Aecom Ltd,945.00,23/01/2020
Commercial,Regional Enterprise,Other Services,1000380201,Conway Aecom Ltd,161.70,23/01/2020
Commercial,Regional Enterprise,Other Services,1000381001,Conway Aecom Ltd,"1,512.00",23/01/2020
Commercial,Regional Enterprise,Other Services,1000393001,Conway Aecom Ltd,850.50,24/01/2020
Commercial,Regional Enterprise,Other Services,1000394901,Conway Aecom Ltd,472.50,24/01/2020
Commercial,Regional Enterprise,Other Services,1000401001,Conway Aecom Ltd,"1,247.40",24/01/2020
Commercial,Regional Enterprise,Other Services,1000409301,Conway Aecom Ltd,567.00,24/01/2020
Commercial,Regional Enterprise,Other Services,1000417801,Conway Aecom Ltd,926.10,28/01/2020
Commercial,Regional Enterprise,Grant Payments,80032360,Amwell Construction Ltd,615.00,16/01/2020
Commercial,Regional Enterprise,Other Establishments - Third P,80032455,Transport For London,"1,476,291.63",16/01/2020
Commercial,Regional Enterprise,Professional Services,10015533,RE (REGIONAL ENTERPRISE) LIMITED,"-160,000.00",03/01/2020
Commercial,Regional Enterprise,Professional Services,10015534,RE (REGIONAL ENTERPRISE) LIMITED,"-98,788.00",03/01/2020
Commercial,Regional Enterprise,RE Services Contract Payment,1000033701,RE (REGIONAL ENTERPRISE) LIMITED,"29,301.40",03/01/2020
Commercial,Regional Enterprise,RE Services Contract Payment,1000312601,RE (REGIONAL ENTERPRISE) LIMITED,"23,921.00",21/01/2020
Commercial,Regional Enterprise,RE Services Contract Payment,1000324301,RE (REGIONAL ENTERPRISE) LIMITED,"26,227.00",21/01/2020
Commercial,Regional Enterprise,Consultants Fees,1000328101,Gowling WLG,985.49,20/01/2020
Commercial,Regional Enterprise,RE Services Contract Payment,1000313601,RE (REGIONAL ENTERPRISE) LIMITED,"64,433.00",21/01/2020
Commercial,Regional Enterprise,RE Services Contract Payment,1000319101,RE (REGIONAL ENTERPRISE) LIMITED,"63,307.00",21/01/2020
Commercial,Regional Enterprise,Consultants Fees,1000320101,Gowling WLG,"2,684.63",20/01/2020
Commercial,Regional Enterprise,Professional Services,60140524,VALUATION OFFICE AGENCY,"2,676.00",02/01/2020
Commercial,Regional Enterprise,Professional Services,60143166,VALUATION OFFICE AGENCY,"5,600.00",02/01/2020
Commercial,Regional Enterprise,Professional Services,60145371,VALUATION OFFICE AGENCY,"4,800.00",02/01/2020
Commercial,Regional Enterprise,Fees and Charges,1000427701,WATES PROPERTY SERVICES LTD,"17,375.39",28/01/2020
Commercial,Regional Enterprise,Fees and Charges,1000455401,WATES PROPERTY SERVICES LTD,47.34,30/01/2020
Commercial,Regional Enterprise,Fees and Charges,1000457001,WATES PROPERTY SERVICES LTD,27.29,30/01/2020
Commercial,Regional Enterprise,RE Services Contract Payment,1000171801,RE (REGIONAL ENTERPRISE) LIMITED,"3,929,996.00",03/01/2020
Commercial,Regional Enterprise,RE Services Contract Payment,1000176102,RE (REGIONAL ENTERPRISE) LIMITED,"598,233.75",27/01/2020
Commercial,Regional Enterprise,RE Services Contract Payment,1000286401,RE (REGIONAL ENTERPRISE) LIMITED,"329,608.00",16/01/2020
Corporate Accounting,Corporate Accounting,Other Local Authorities - Thir,80032565,GLA LEVIES,"1,519,940.00",22/01/2020
Corporate Accounting,Corporate Accounting,Other Local Authorities - Thir,80032568,GLA LEVIES,"227,824.00",22/01/2020
Corporate Accounting,Corporate Accounting,Government departments - Third,80032633,Department for Communities & Local Gov.,"438,372.15",23/01/2020
Corporate Accounting,Corporate Accounting,Other Establishments - Third P,50007579,MENORAH HIGH SCHOOL FOR GIRLS,"4,986.80",30/01/2020
Corporate Accounting,Corporate Accounting,Grant Payments,80032768,Express Tuition Ltd,"4,200.00",30/01/2020
Corporate Accounting,Corporate Accounting,Grant Payments,80032166,Learning Through Horses,"2,500.00",08/01/2020
Corporate Accounting,Corporate Accounting,Grant Payments,80032575,Young Barnet Foundation,"2,436.50",23/01/2020
Corporate Accounting,Corporate Accounting,Grant Payments,80032743,Disability Sports Coach,"2,300.00",29/01/2020
Corporate Accounting,Corporate Accounting,Other Transfer Payments to Soc,80032791,Wirecard (FS ongoing 2040881670310,"34,035.84",29/01/2020
Corporate Accounting,Corporate Accounting,Other Transfer Payments to Soc,80031887,Wirecard (FS instant 2040880892973),"24,293.64",06/01/2020
Corporate Accounting,Corporate Accounting,Other Transfer Payments to Soc,80032790,Wirecard (FS instant 2040880892973),"29,849.86",29/01/2020
Corporate Accounting,Corporate Accounting,Fees and Charges,80031248,OpticRealm Limited,"20,128.50",27/01/2020
Corporate Accounting,Corporate Accounting,Fees and Charges,80031894,LONDON UNDERGROUND LTD,"2,064.00",27/01/2020
Corporate Accounting,Corporate Accounting,Fees and Charges,80031759,FDL Developments,"1,272.00",13/01/2020
Corporate Accounting,Corporate Accounting,Fees and Charges,80031893,FDL Developments,500.00,03/01/2020
Corporate Accounting,Corporate Accounting,Fees and Charges,80031760,TriConnex Limited,"4,451.80",16/01/2020
Corporate Accounting,Corporate Accounting,Fees and Charges,80031673,Commhoist Ltd,"1,000.00",03/01/2020
Corporate Accounting,Corporate Accounting,Fees and Charges,80031804,INTERFIX SCAFFOLDING LTD,"1,000.00",03/01/2020
Corporate Accounting,Corporate Accounting,Fees and Charges,80031664,Mercer Scaffolding & Plant Hire Limited,"1,000.00",03/01/2020
Corporate Accounting,Corporate Accounting,Fees and Charges,80031902,Fim construction ltd,"2,000.00",03/01/2020
Corporate Accounting,Corporate Accounting,80032245,Miscellaneous Expenses,REDACTED - PERSONAL DATA,270.00,31/01/2020
Corporate Accounting,Corporate Accounting,80032255,Miscellaneous Expenses,Opendoor Homes,10.00,31/01/2020
Corporate Accounting,Corporate Accounting,80032283,Miscellaneous Expenses,REDACTED - PERSONAL DATA,183.78,31/01/2020
Corporate Accounting,Corporate Accounting,80032339,Miscellaneous Expenses,REDACTED - PERSONAL DATA,"1,592.84",31/01/2020
Corporate Accounting,Corporate Accounting,80032340,Miscellaneous Expenses,REDACTED - PERSONAL DATA,242.21,31/01/2020
Corporate Accounting,Corporate Accounting,80032347,Miscellaneous Expenses,REDACTED - PERSONAL DATA,87.15,31/01/2020
Corporate Accounting,Corporate Accounting,80032363,Miscellaneous Expenses,REDACTED - PERSONAL DATA,40.00,31/01/2020
Corporate Accounting,Corporate Accounting,80032364,Miscellaneous Expenses,REDACTED - PERSONAL DATA,514.41,31/01/2020
Corporate Accounting,Corporate Accounting,80032400,Miscellaneous Expenses,REDACTED - PERSONAL DATA,"2,509.60",31/01/2020
Corporate Accounting,Corporate Accounting,80032448,Miscellaneous Expenses,Opendoor Homes,125.00,31/01/2020
Corporate Accounting,Corporate Accounting,80032449,Miscellaneous Expenses,REDACTED - PERSONAL DATA,761.68,31/01/2020
Corporate Accounting,Corporate Accounting,80032457,Miscellaneous Expenses,REDACTED - PERSONAL DATA,400.00,31/01/2020
Corporate Accounting,Corporate Accounting,80032467,Miscellaneous Expenses,REDACTED - PERSONAL DATA,510.68,31/01/2020
Corporate Accounting,Corporate Accounting,80032523,Miscellaneous Expenses,REDACTED - PERSONAL DATA,164.79,31/01/2020
Corporate Accounting,Corporate Accounting,80032698,Miscellaneous Expenses,REDACTED - PERSONAL DATA,24.35,31/01/2020
Corporate Accounting,Corporate Accounting,80032699,Miscellaneous Expenses,REDACTED - PERSONAL DATA,837.83,31/01/2020
Corporate Accounting,Corporate Accounting,80032852,Miscellaneous Expenses,REDACTED - PERSONAL DATA,694.00,31/01/2020
Corporate Accounting,Corporate Accounting,80032120,Miscellaneous Expenses,REDACTED - PERSONAL DATA,232.17,31/01/2020
Corporate Accounting,Corporate Accounting,80032177,Miscellaneous Expenses,REDACTED - PERSONAL DATA,125.45,31/01/2020
Corporate Accounting,Corporate Accounting,80032401,Miscellaneous Expenses,REDACTED - PERSONAL DATA,297.45,31/01/2020
Corporate Accounting,Corporate Accounting,80032450,Miscellaneous Expenses,REDACTED - PERSONAL DATA,118.15,31/01/2020
Corporate Accounting,Corporate Accounting,80032684,Miscellaneous Expenses,REDACTED - PERSONAL DATA,381.44,31/01/2020
Corporate Accounting,Corporate Accounting,80032780,Miscellaneous Expenses,REDACTED - PERSONAL DATA,166.76,31/01/2020
Corporate Accounting,Corporate Accounting,80032451,Fees and Charges,Commhoist Ltd,564.78,31/01/2020
COST CENTRES BLOCKED,COST CENTRES BLOCKED,Other Services,1000274501,Sun Hill Surveys,"1,125.00",15/01/2020
DELIVERY UNITS,ADULTS AND COMMUNITIES,Consultants Fees,60126197,Better Group Limited,"133,494.00",09/01/2020
Delivery Units,Adults and Health,Other Transfer Payments to Soc,60143853,BARNET CARERS CENTRE,38.23,22/01/2020
Delivery Units,Adults and Health,Other Transfer Payments to Soc,60143893,BARNET CARERS CENTRE,59.47,22/01/2020
Delivery Units,Adults and Health,Other Transfer Payments to Soc,60143907,BARNET CARERS CENTRE,50.98,22/01/2020
Delivery Units,Adults and Health,Other Transfer Payments to Soc,60143930,BARNET CARERS CENTRE,55.85,22/01/2020
Delivery Units,Adults and Health,Other Transfer Payments to Soc,60143956,BARNET CARERS CENTRE,33.98,22/01/2020
Delivery Units,Adults and Health,Other Transfer Payments to Soc,60143996,BARNET CARERS CENTRE,30.68,22/01/2020
Delivery Units,Adults and Health,Other Transfer Payments to Soc,60144001,BARNET CARERS CENTRE,38.23,22/01/2020
Delivery Units,Adults and Health,Other Transfer Payments to Soc,60144010,BARNET CARERS CENTRE,63.72,22/01/2020
Delivery Units,Adults and Health,Other Transfer Payments to Soc,60144026,BARNET CARERS CENTRE,63.72,22/01/2020
Delivery Units,Adults and Health,Other Transfer Payments to Soc,60144042,BARNET CARERS CENTRE,97.70,22/01/2020
Delivery Units,Adults and Health,Other Transfer Payments to Soc,60144047,BARNET CARERS CENTRE,46.73,22/01/2020
Delivery Units,Adults and Health,Other Transfer Payments to Soc,60144051,BARNET CARERS CENTRE,46.73,22/01/2020
Delivery Units,Adults and Health,Other Transfer Payments to Soc,60144055,BARNET CARERS CENTRE,101.95,22/01/2020
Delivery Units,Adults and Health,Other Transfer Payments to Soc,1000388602,BARNET CARERS CENTRE,55.22,24/01/2020
Delivery Units,Adults and Health,Voluntary Associations - Third,50007338,SANCTUARY HOUSING ASSOCIATION,"6,285.34",20/01/2020
Delivery Units,Adults and Health,Voluntary Associations - Third,50007335,BARNET MENCAP,"11,142.65",20/01/2020
Delivery Units,Adults and Health,Voluntary Associations - Third,50007337,METROPOLITAN SUPPORT TRUST,"6,014.60",20/01/2020
Delivery Units,Adults and Health,Ttl IT & Comms,1000297901,P A Consulting Services Ltd,"62,954.18",17/01/2020
Delivery Units,Adults and Health,Equipment and Materials Purcha,1000082702,Millbrook Healthcare Ltd,"37,249.45",13/01/2020
Delivery Units,Adults and Health,Equipment and Materials Purcha,1000259801,Millbrook Healthcare Ltd,"168,326.45",13/01/2020
Delivery Units,Adults and Health,Equipment and Materials Purcha,1000434001,Millbrook Healthcare Ltd,"273,313.21",29/01/2020
Delivery Units,Adults and Health,Equipment and Materials Purcha,1000443201,Millbrook Healthcare Ltd,"37,249.45",29/01/2020
Delivery Units,Adults and Health,Other Contributions,1000240602,O'Dwyer Independent Funeral Directors,735.00,15/01/2020
Delivery Units,Adults and Health,Other Contributions,1000240902,O'Dwyer Independent Funeral Directors,730.00,10/01/2020
Delivery Units,Adults and Health,Other Transfer Payments to Soc,1000294902,MIDDLESEX ASSOCIATION  FOR THE BLIN,"1,512.12",16/01/2020
Delivery Units,Adults and Health,Voluntary Associations - Third,50007336,BARNET MENCAP,"18,249.66",20/01/2020
Delivery Units,Adults and Health,Voluntary Associations - Third,50007334,AGE CONCERN,"58,333.00",20/01/2020
Delivery Units,Adults and Health,Other Services,1000225102,POhWER,"5,212.87",09/01/2020
Delivery Units,Adults and Health,Other Services,1000256402,POhWER,"1,580.00",13/01/2020
Delivery Units,Adults and Health,Other Transfer Payments to Soc,1000267302,PRT BARNET CARERS CENTRE,"84,272.75",16/01/2020
Delivery Units,Adults and Health,Other Transfer Payments to Soc,1000199602,Depression Alliance (Barnet),454.00,07/01/2020
Delivery Units,Adults and Health,Other Services,1000204202,COMMUNITY BARNET,"10,666.67",08/01/2020
Delivery Units,Adults and Health,Other Services,1000204402,COMMUNITY BARNET,"10,666.67",08/01/2020
Delivery Units,Adults and Health,Other Services,1000237702,COMMUNITY BARNET,"10,666.67",10/01/2020
Delivery Units,Adults and Health,Other Transfer Payments to Soc,80032365,Bona Vacantia Division  Government Legal,"8,266.63",17/01/2020
Delivery Units,Adults and Health,Other Services,60119704,BARNET ENFIELD & HARINGEY MENTAL,"58,850.08",14/01/2020
Delivery Units,Adults and Health,Other Services,60119839,BARNET ENFIELD & HARINGEY MENTAL,"58,850.08",14/01/2020
Delivery Units,Adults and Health,Translation Exp / Interpret,1000241701,D.A. Languages Ltd,27.00,13/01/2020
Delivery Units,Adults and Health,Travelling Expenses,1000242801,M1 EXPRESS CAR SERVICES,178.00,13/01/2020
Delivery Units,Adults and Health,Travelling Expenses,1000319701,M1 EXPRESS CAR SERVICES,132.20,20/01/2020
Delivery Units,Adults and Health,Transport Spot  Hire Recharge,1000319901,Mott MacDonald Ltd/Cambridge Education,580.00,20/01/2020
Delivery Units,Adults and Health,Other Services,60142934,D.A. Languages Ltd,47.25,15/01/2020
Delivery Units,Adults and Health,Other Services,1000012601,D.A. Languages Ltd,55.00,21/01/2020
Delivery Units,Adults and Health,Other Services,1000014801,D.A. Languages Ltd,44.00,22/01/2020
Delivery Units,Adults and Health,Other Services,1000247001,D.A. Languages Ltd,54.00,15/01/2020
Delivery Units,Adults and Health,Other Services,1000260201,D.A. Languages Ltd,40.50,15/01/2020
Delivery Units,Adults and Health,Other Services,80032417,ZOT Ltd,200.00,29/01/2020
Delivery Units,Adults and Health,Equipment and Materials Purcha,60145342,BACK CARE SOLUTIONS LIMITED,640.00,14/01/2020
Delivery Units,Adults and Health,Other Services,1000384001,BARNET MENCAP,110.00,23/01/2020
Delivery Units,Adults and Health,Other Services,1000239501,D.A. Languages Ltd,22.00,15/01/2020
Delivery Units,Adults and Health,Other Services,1000247601,D.A. Languages Ltd,22.00,15/01/2020
Delivery Units,Adults and Health,Other Services,1000250201,D.A. Languages Ltd,74.25,15/01/2020
Delivery Units,Adults and Health,Other Services,1000250901,D.A. Languages Ltd,27.00,15/01/2020
Delivery Units,Adults and Health,Other Services,1000256901,D.A. Languages Ltd,81.00,15/01/2020
Delivery Units,Adults and Health,Other Services,1000257801,D.A. Languages Ltd,27.00,15/01/2020
Delivery Units,Adults and Health,Other Services,80031131,Kog Tech Ltd,"1,762.00",15/01/2020
Delivery Units,Adults and Health,Other Services,1000187602,Lightley Consulting,950.00,06/01/2020
Delivery Units,Adults and Health,Other Services,1000173001,REDACTED - PERSONAL DATA,74.35,03/01/2020
Delivery Units,Adults and Health,Other Services,80032235,REDACTED - PERSONAL DATA,"1,437.50",14/01/2020
Delivery Units,Adults and Health,Stationery,1000278901,XEROX FINANCE LTD,0.32,15/01/2020
Delivery Units,Adults and Health,Water Services,1000274301,Castle Water Ltd,13.17,15/01/2020
Delivery Units,Adults and Health,Translation Exp / Interpret,1000241601,D.A. Languages Ltd,27.00,13/01/2020
Delivery Units,Adults and Health,Translation Exp / Interpret,1000241901,D.A. Languages Ltd,40.50,15/01/2020
Delivery Units,Adults and Health,Translation Exp / Interpret,1000242401,D.A. Languages Ltd,22.00,15/01/2020
Delivery Units,Adults and Health,Translation Exp / Interpret,1000247701,D.A. Languages Ltd,14.56,15/01/2020
Delivery Units,Adults and Health,Translation Exp / Interpret,1000251401,D.A. Languages Ltd,27.00,15/01/2020
Delivery Units,Adults and Health,Translation Exp / Interpret,1000256601,D.A. Languages Ltd,27.00,16/01/2020
Delivery Units,Adults and Health,Food Costs,1000238802,Muller Milk & Ingredients,0.88,10/01/2020
Delivery Units,Adults and Health,Food Costs,1000240702,Muller Milk & Ingredients,0.88,10/01/2020
Delivery Units,Adults and Health,Training,1000366401,MICHAEL MANDELSTAM LTD,850.00,23/01/2020
Delivery Units,Adults and Health,Advertising,1000389102,TMP (UK) LTD,"1,061.00",31/01/2020
Delivery Units,Adults and Health,Other Services,1000363401,RAINBOW CENTRE,215.00,22/01/2020
Delivery Units,Adults and Health,Other Services,1000374201,RAINBOW CENTRE,215.00,23/01/2020
Delivery Units,Adults and Health,Other Services,1000365601,REDACTED - PERSONAL DATA,"4,800.00",22/01/2020
Delivery Units,Adults and Health,Other Services,10015540,D.A. Languages Ltd,98.00,20/01/2020
Delivery Units,Adults and Health,Translation Exp / Interpret,1000244201,D.A. Languages Ltd,40.50,15/01/2020
Delivery Units,Adults and Health,Translation Exp / Interpret,1000248801,D.A. Languages Ltd,60.75,15/01/2020
Delivery Units,Adults and Health,Translation Exp / Interpret,1000249701,D.A. Languages Ltd,2.60,15/01/2020
Delivery Units,Adults and Health,Translation Exp / Interpret,1000250602,D.A. Languages Ltd,40.50,15/01/2020
Delivery Units,Adults and Health,Translation Exp / Interpret,1000186101,Interpreting Matters Ltd,150.00,06/01/2020
Delivery Units,Adults and Health,Transport Hire Charges,60140534,Mott MacDonald Ltd/Cambridge Education,171.60,15/01/2020
Delivery Units,Adults and Health,Translation Exp / Interpret,1000013501,D.A. Languages Ltd,33.00,24/01/2020
Delivery Units,Adults and Health,Translation Exp / Interpret,1000242101,D.A. Languages Ltd,40.50,15/01/2020
Delivery Units,Adults and Health,Translation Exp / Interpret,1000247801,D.A. Languages Ltd,7.80,16/01/2020
Delivery Units,Adults and Health,Other Transfer Payments to Soc,1000439702,LONDON BOROUGH OF HARINGEY,"47,279.50",30/01/2020
Delivery Units,Adults and Health,Other Transfer Payments to Soc,1000242501,Aisa Medical Ltd,173.37,13/01/2020
Delivery Units,Adults and Health,Other Transfer Payments to Soc,1000243601,Aisa Medical Ltd,179.73,13/01/2020
Delivery Units,Adults and Health,Other Transfer Payments to Soc,1000243701,Aisa Medical Ltd,173.37,13/01/2020
Delivery Units,Adults and Health,Other Transfer Payments to Soc,1000247901,Aisa Medical Ltd,173.37,13/01/2020
Delivery Units,Adults and Health,Other Transfer Payments to Soc,1000248201,Aisa Medical Ltd,173.37,13/01/2020
Delivery Units,Adults and Health,Other Transfer Payments to Soc,1000249501,Aisa Medical Ltd,182.59,13/01/2020
Delivery Units,Adults and Health,Other Transfer Payments to Soc,1000252001,Aisa Medical Ltd,173.37,13/01/2020
Delivery Units,Adults and Health,Other Transfer Payments to Soc,1000252401,Aisa Medical Ltd,173.37,13/01/2020
Delivery Units,Adults and Health,Other Transfer Payments to Soc,1000252601,Aisa Medical Ltd,182.69,13/01/2020
Delivery Units,Adults and Health,Other Transfer Payments to Soc,1000253001,Aisa Medical Ltd,173.37,13/01/2020
Delivery Units,Adults and Health,Other Transfer Payments to Soc,1000255901,Aisa Medical Ltd,186.93,15/01/2020
Delivery Units,Adults and Health,Translation Exp / Interpret,1000257501,D.A. Languages Ltd,27.00,15/01/2020
Delivery Units,Adults and Health,Other Transfer Payments to Soc,1000268001,Eduhez Ltd,"1,050.00",14/01/2020
Delivery Units,Adults and Health,Other Transfer Payments to Soc,1000279301,Eduhez Ltd,"2,760.00",15/01/2020
Delivery Units,Adults and Health,Other Services,1000216202,Swan Advocacy Network,140.00,09/01/2020
Delivery Units,Adults and Health,Other Services,1000216602,Swan Advocacy Network,115.50,09/01/2020
Delivery Units,Adults and Health,Other Services,1000221402,Swan Advocacy Network,245.00,09/01/2020
Delivery Units,Adults and Health,Other Services,80032261,REDACTED - PERSONAL DATA,192.50,10/01/2020
Delivery Units,Adults and Health,Other Services,1000163202,REDACTED - PERSONAL DATA,183.42,03/01/2020
Delivery Units,Adults and Health,Other Services,1000317801,AGE CONCERN,170.00,21/01/2020
Delivery Units,Adults and Health,Other Agencies - Third Party P,90222316,NIGHTINGALE HOUSE,"2,952.35",06/01/2020
Delivery Units,Adults and Health,Other Agencies - Third Party P,90222319,NIGHTINGALE HOUSE,"2,437.71",06/01/2020
Delivery Units,Adults and Health,Other Agencies - Third Party P,90226553,JEWISH CARE,"4,906.64",21/01/2020
Delivery Units,Adults and Health,Other Agencies - Third Party P,90226558,JEWISH CARE,"2,410.28",21/01/2020
Delivery Units,Adults and Health,Other Agencies - Third Party P,90226567,JEWISH CARE,"2,410.28",21/01/2020
Delivery Units,Adults and Health,Other Agencies - Third Party P,90226571,JEWISH CARE,"2,410.28",21/01/2020
Delivery Units,Adults and Health,Other Agencies - Third Party P,90226591,JEWISH CARE,"2,410.28",21/01/2020
Delivery Units,Adults and Health,Other Agencies - Third Party P,90226592,JEWISH CARE,"2,410.28",21/01/2020
Delivery Units,Adults and Health,Other Agencies - Third Party P,90226603,JEWISH CARE,"2,649.36",21/01/2020
Delivery Units,Adults and Health,Other Agencies - Third Party P,90226619,JEWISH CARE,"2,649.36",21/01/2020
Delivery Units,Adults and Health,Other Agencies - Third Party P,90226621,JEWISH CARE,"2,649.36",21/01/2020
Delivery Units,Adults and Health,Other Agencies - Third Party P,90226622,JEWISH CARE,"2,410.28",21/01/2020
Delivery Units,Adults and Health,Other Agencies - Third Party P,90226624,JEWISH CARE,"2,649.36",21/01/2020
Delivery Units,Adults and Health,Other Agencies - Third Party P,90226628,JEWISH CARE,"2,649.36",21/01/2020
Delivery Units,Adults and Health,Other Agencies - Third Party P,90226643,JEWISH CARE,"2,380.92",21/01/2020
Delivery Units,Adults and Health,Other Agencies - Third Party P,90226648,JEWISH CARE,"2,410.28",21/01/2020
Delivery Units,Adults and Health,Other Agencies - Third Party P,90226667,JEWISH CARE,"2,176.26",21/01/2020
Delivery Units,Adults and Health,Other Agencies - Third Party P,90226681,JEWISH CARE,"3,489.64",21/01/2020
Delivery Units,Adults and Health,Other Agencies - Third Party P,90226683,JEWISH CARE,"2,410.28",21/01/2020
Delivery Units,Adults and Health,Other Agencies - Third Party P,90226689,JEWISH CARE,"2,649.36",21/01/2020
Delivery Units,Adults and Health,Other Agencies - Third Party P,90226693,JEWISH CARE,"2,410.28",21/01/2020
Delivery Units,Adults and Health,Other Agencies - Third Party P,90226695,JEWISH CARE,-946.90,21/01/2020
Delivery Units,Adults and Health,Other Agencies - Third Party P,90226696,JEWISH CARE,"2,410.28",21/01/2020
Delivery Units,Adults and Health,Other Agencies - Third Party P,90226698,JEWISH CARE,"17,987.53",21/01/2020
Delivery Units,Adults and Health,Other Agencies - Third Party P,90226700,JEWISH CARE,"19,798.72",21/01/2020
Delivery Units,Adults and Health,Other Agencies - Third Party P,90225419,FERNBANK NURSING HOME.,"4,362.01",15/01/2020
Delivery Units,Adults and Health,Other Agencies - Third Party P,90225420,FERNBANK NURSING HOME.,"3,542.68",15/01/2020
Delivery Units,Adults and Health,Other Agencies - Third Party P,90225469,FERNBANK NURSING HOME.,"3,653.35",15/01/2020
Delivery Units,Adults and Health,Other Agencies - Third Party P,90226991,FERNBANK NURSING HOME.,"3,535.50",21/01/2020
Delivery Units,Adults and Health,Other Agencies - Third Party P,90226992,FERNBANK NURSING HOME.,"3,428.40",21/01/2020
Delivery Units,Adults and Health,Other Agencies - Third Party P,90226993,FERNBANK NURSING HOME.,"3,214.20",21/01/2020
Delivery Units,Adults and Health,Other Agencies - Third Party P,90226994,FERNBANK NURSING HOME.,"3,321.34",21/01/2020
Delivery Units,Adults and Health,Other Agencies - Third Party P,90226995,FERNBANK NURSING HOME.,"3,542.68",21/01/2020
Delivery Units,Adults and Health,Other Agencies - Third Party P,90227493,FERNBANK NURSING HOME.,"3,653.35",23/01/2020
Delivery Units,Adults and Health,Other Agencies - Third Party P,90227494,FERNBANK NURSING HOME.,"3,542.68",23/01/2020
Delivery Units,Adults and Health,Other Agencies - Third Party P,90227495,FERNBANK NURSING HOME.,"3,542.68",23/01/2020
Delivery Units,Adults and Health,Other Agencies - Third Party P,90227496,FERNBANK NURSING HOME.,"4,362.01",23/01/2020
Delivery Units,Adults and Health,Other Agencies - Third Party P,90227960,CEDARS NURSING HOME,"3,520.71",24/01/2020
Delivery Units,Adults and Health,Other Agencies - Third Party P,90227975,CEDARS NURSING HOME,"4,207.14",24/01/2020
Delivery Units,Adults and Health,Other Agencies - Third Party P,90227976,CEDARS NURSING HOME,"2,964.93",24/01/2020
Delivery Units,Adults and Health,Other Agencies - Third Party P,90227977,CEDARS NURSING HOME,"2,508.08",24/01/2020
Delivery Units,Adults and Health,Other Agencies - Third Party P,90227978,CEDARS NURSING HOME,"4,207.14",24/01/2020
Delivery Units,Adults and Health,Other Agencies - Third Party P,90227979,CEDARS NURSING HOME,"3,919.29",24/01/2020
Delivery Units,Adults and Health,Other Agencies - Third Party P,90227980,CEDARS NURSING HOME,"2,657.14",24/01/2020
Delivery Units,Adults and Health,Other Agencies - Third Party P,90225479,BUPA NURSING HOMES LTD - ARKLEY,"3,800.00",16/01/2020
Delivery Units,Adults and Health,Other Agencies - Third Party P,90225482,BUPA NURSING HOMES LTD - ARKLEY,"3,337.76",16/01/2020
Delivery Units,Adults and Health,Other Agencies - Third Party P,90225483,BUPA NURSING HOMES LTD - ARKLEY,"4,400.00",16/01/2020
Delivery Units,Adults and Health,Other Agencies - Third Party P,90222511,AGUDAS ISRAEL HOUSING ASSCTN LTD,"2,736.86",09/01/2020
Delivery Units,Adults and Health,Other Agencies - Third Party P,90225454,WESTMINSTER HEALTH CARE LTD,"2,508.08",16/01/2020
Delivery Units,Adults and Health,Other Agencies - Third Party P,90225456,WESTMINSTER HEALTH CARE LTD,"5,023.95",16/01/2020
Delivery Units,Adults and Health,Other Agencies - Third Party P,90225457,WESTMINSTER HEALTH CARE LTD,"2,878.57",16/01/2020
Delivery Units,Adults and Health,Other Agencies - Third Party P,90226557,HENRY NIHILL HOUSE,"2,265.36",21/01/2020
Delivery Units,Adults and Health,Other Agencies - Third Party P,90226569,HENRY NIHILL HOUSE,"2,265.36",21/01/2020
Delivery Units,Adults and Health,Other Agencies - Third Party P,90226613,HENRY NIHILL HOUSE,"2,265.36",21/01/2020
Delivery Units,Adults and Health,Other Agencies - Third Party P,90226660,HENRY NIHILL HOUSE,"2,265.36",21/01/2020
Delivery Units,Adults and Health,Other Agencies - Third Party P,90226661,HENRY NIHILL HOUSE,"2,265.36",21/01/2020
Delivery Units,Adults and Health,Other Agencies - Third Party P,90226664,HENRY NIHILL HOUSE,"2,265.36",21/01/2020
Delivery Units,Adults and Health,Other Agencies - Third Party P,90224845,LIFESTYLE CARE PLC,"2,569.89",10/01/2020
Delivery Units,Adults and Health,Other Agencies - Third Party P,90224847,LIFESTYLE CARE PLC,"2,320.37",10/01/2020
Delivery Units,Adults and Health,Other Agencies - Third Party P,90224848,LIFESTYLE CARE PLC,"2,750.74",10/01/2020
Delivery Units,Adults and Health,Other Agencies - Third Party P,90224850,LIFESTYLE CARE PLC,"2,569.89",10/01/2020
Delivery Units,Adults and Health,Other Agencies - Third Party P,90224851,LIFESTYLE CARE PLC,"2,569.89",10/01/2020
Delivery Units,Adults and Health,Other Agencies - Third Party P,90224852,LIFESTYLE CARE PLC,"2,320.37",10/01/2020
Delivery Units,Adults and Health,Other Agencies - Third Party P,90224853,LIFESTYLE CARE PLC,"2,320.37",10/01/2020
Delivery Units,Adults and Health,Other Agencies - Third Party P,90224854,LIFESTYLE CARE PLC,"2,320.37",10/01/2020
Delivery Units,Adults and Health,Other Agencies - Third Party P,90224855,LIFESTYLE CARE PLC,"2,569.89",10/01/2020
Delivery Units,Adults and Health,Other Agencies - Third Party P,90224856,LIFESTYLE CARE PLC,"2,320.37",10/01/2020
Delivery Units,Adults and Health,Other Agencies - Third Party P,90228368,CARETECH COMMUNITY SERVICES LTD,"4,975.59",27/01/2020
Delivery Units,Adults and Health,Other Agencies - Third Party P,90225435,SONESTA NURSING HOME LTD.,"2,785.71",15/01/2020
Delivery Units,Adults and Health,Other Agencies - Third Party P,90225436,SONESTA NURSING HOME LTD.,"2,427.17",15/01/2020
Delivery Units,Adults and Health,Other Agencies - Third Party P,90225438,SONESTA NURSING HOME LTD.,"2,320.37",15/01/2020
Delivery Units,Adults and Health,Other Agencies - Third Party P,90225441,SONESTA NURSING HOME LTD.,"2,322.17",15/01/2020
Delivery Units,Adults and Health,Other Agencies - Third Party P,90225442,SONESTA NURSING HOME LTD.,"2,508.08",15/01/2020
Delivery Units,Adults and Health,Other Agencies - Third Party P,90225444,SONESTA NURSING HOME LTD.,"2,397.72",15/01/2020
Delivery Units,Adults and Health,Other Agencies - Third Party P,90225447,SONESTA NURSING HOME LTD.,"2,399.58",15/01/2020
Delivery Units,Adults and Health,Other Agencies - Third Party P,90225448,SONESTA NURSING HOME LTD.,"2,427.17",15/01/2020
Delivery Units,Adults and Health,Other Agencies - Third Party P,90225449,SONESTA NURSING HOME LTD.,"2,508.08",15/01/2020
Delivery Units,Adults and Health,Other Agencies - Third Party P,90225450,SONESTA NURSING HOME LTD.,"2,427.17",15/01/2020
Delivery Units,Adults and Health,Other Agencies - Third Party P,90227539,SONESTA NURSING HOME LTD.,"2,399.58",24/01/2020
Delivery Units,Adults and Health,Other Agencies - Third Party P,90227542,SONESTA NURSING HOME LTD.,"2,397.72",24/01/2020
Delivery Units,Adults and Health,Other Agencies - Third Party P,90227544,SONESTA NURSING HOME LTD.,"2,508.08",24/01/2020
Delivery Units,Adults and Health,Other Agencies - Third Party P,90227545,SONESTA NURSING HOME LTD.,"2,878.57",24/01/2020
Delivery Units,Adults and Health,Other Agencies - Third Party P,90227482,MEERA NURSING HOME LIMITED,"2,445.68",23/01/2020
Delivery Units,Adults and Health,Other Agencies - Third Party P,90227484,MEERA NURSING HOME LIMITED,"3,100.00",23/01/2020
Delivery Units,Adults and Health,Other Agencies - Third Party P,90227485,MEERA NURSING HOME LIMITED,"3,506.72",23/01/2020
Delivery Units,Adults and Health,Other Agencies - Third Party P,90227486,MEERA NURSING HOME LIMITED,"3,764.29",23/01/2020
Delivery Units,Adults and Health,Other Agencies - Third Party P,90227487,MEERA NURSING HOME LIMITED,"2,445.68",23/01/2020
Delivery Units,Adults and Health,Other Agencies - Third Party P,90226144,NEWCENTURY CARE LTD,"3,400.00",20/01/2020
Delivery Units,Adults and Health,Other Agencies - Third Party P,90226145,NEWCENTURY CARE LTD,"1,497.48",20/01/2020
Delivery Units,Adults and Health,Other Agencies - Third Party P,90226146,NEWCENTURY CARE LTD,"1,726.49",20/01/2020
Delivery Units,Adults and Health,Other Agencies - Third Party P,90226147,NEWCENTURY CARE LTD,"1,585.56",20/01/2020
Delivery Units,Adults and Health,Other Agencies - Third Party P,90226148,NEWCENTURY CARE LTD,"1,385.14",20/01/2020
Delivery Units,Adults and Health,Other Agencies - Third Party P,90226149,NEWCENTURY CARE LTD,"1,457.14",20/01/2020
Delivery Units,Adults and Health,Other Agencies - Third Party P,90226150,NEWCENTURY CARE LTD,"1,600.00",20/01/2020
Delivery Units,Adults and Health,Other Agencies - Third Party P,90225397,BUPA CARE HOMES,"-2,480.70",29/01/2020
Delivery Units,Adults and Health,Other Agencies - Third Party P,90225423,BUPA CARE HOMES,"-2,510.61",29/01/2020
Delivery Units,Adults and Health,Other Agencies - Third Party P,90225496,BUPA CARE HOMES,"1,403.57",29/01/2020
Delivery Units,Adults and Health,Other Agencies - Third Party P,90225678,BUPA CARE HOMES,176.99,29/01/2020
Delivery Units,Adults and Health,Other Agencies - Third Party P,90225395,BUPA CARE HOMES,"2,508.08",15/01/2020
Delivery Units,Adults and Health,Other Agencies - Third Party P,90225396,BUPA CARE HOMES,"2,508.08",15/01/2020
Delivery Units,Adults and Health,Other Agencies - Third Party P,90225676,BUPA CARE HOMES,749.00,15/01/2020
Delivery Units,Adults and Health,Other Agencies - Third Party P,90225677,BUPA CARE HOMES,652.42,15/01/2020
Delivery Units,Adults and Health,Other Agencies - Third Party P,90225681,BUPA CARE HOMES,"3,495.54",15/01/2020
Delivery Units,Adults and Health,Other Agencies - Third Party P,90225682,BUPA CARE HOMES,219.78,15/01/2020
Delivery Units,Adults and Health,Other Agencies - Third Party P,90225684,BUPA CARE HOMES,749.00,15/01/2020
Delivery Units,Adults and Health,Other Agencies - Third Party P,90225686,BUPA CARE HOMES,161.00,15/01/2020
Delivery Units,Adults and Health,Other Agencies - Third Party P,90225687,BUPA CARE HOMES,749.00,15/01/2020
Delivery Units,Adults and Health,Other Agencies - Third Party P,90227967,ASPEN VILLAGES LTD,"2,657.14",24/01/2020
Delivery Units,Adults and Health,Other Agencies - Third Party P,90222519,FOUR SEASONS HEALTH CARE,"2,566.38",06/01/2020
Delivery Units,Adults and Health,Other Agencies - Third Party P,90222520,FOUR SEASONS HEALTH CARE,"1,554.29",06/01/2020
Delivery Units,Adults and Health,Other Agencies - Third Party P,90222521,FOUR SEASONS HEALTH CARE,"1,012.09",06/01/2020
Delivery Units,Adults and Health,Other Agencies - Third Party P,90222522,FOUR SEASONS HEALTH CARE,"1,554.29",06/01/2020
Delivery Units,Adults and Health,Other Agencies - Third Party P,90222523,FOUR SEASONS HEALTH CARE,909.18,06/01/2020
Delivery Units,Adults and Health,Other Agencies - Third Party P,90222524,FOUR SEASONS HEALTH CARE,909.18,06/01/2020
Delivery Units,Adults and Health,Other Agencies - Third Party P,90222525,FOUR SEASONS HEALTH CARE,"1,012.09",06/01/2020
Delivery Units,Adults and Health,Other Agencies - Third Party P,90222526,FOUR SEASONS HEALTH CARE,"1,554.29",06/01/2020
Delivery Units,Adults and Health,Other Agencies - Third Party P,90225400,FOUR SEASONS HEALTH CARE,"2,560.00",15/01/2020
Delivery Units,Adults and Health,Other Agencies - Third Party P,90225401,FOUR SEASONS HEALTH CARE,"2,560.00",15/01/2020
Delivery Units,Adults and Health,Other Agencies - Third Party P,90225402,FOUR SEASONS HEALTH CARE,"2,560.00",15/01/2020
Delivery Units,Adults and Health,Other Agencies - Third Party P,90225413,FOUR SEASONS HEALTH CARE,"2,560.00",15/01/2020
Delivery Units,Adults and Health,Other Agencies - Third Party P,90225414,FOUR SEASONS HEALTH CARE,"2,560.00",15/01/2020
Delivery Units,Adults and Health,Other Agencies - Third Party P,90225486,FOUR SEASONS HEALTH CARE,"1,118.85",15/01/2020
Delivery Units,Adults and Health,Other Agencies - Third Party P,90225487,FOUR SEASONS HEALTH CARE,"1,554.29",15/01/2020
Delivery Units,Adults and Health,Other Agencies - Third Party P,90225488,FOUR SEASONS HEALTH CARE,"1,554.29",15/01/2020
Delivery Units,Adults and Health,Other Agencies - Third Party P,90225489,FOUR SEASONS HEALTH CARE,"2,560.00",15/01/2020
Delivery Units,Adults and Health,Other Agencies - Third Party P,90225490,FOUR SEASONS HEALTH CARE,"2,560.00",15/01/2020
Delivery Units,Adults and Health,Other Agencies - Third Party P,90225491,FOUR SEASONS HEALTH CARE,"1,983.67",22/01/2020
Delivery Units,Adults and Health,Other Agencies - Third Party P,90225492,FOUR SEASONS HEALTH CARE,"2,463.47",22/01/2020
Delivery Units,Adults and Health,Other Agencies - Third Party P,90225494,FOUR SEASONS HEALTH CARE,"5,041.82",22/01/2020
Delivery Units,Adults and Health,Other Agencies - Third Party P,90225495,FOUR SEASONS HEALTH CARE,"5,592.81",22/01/2020
Delivery Units,Adults and Health,Other Agencies - Third Party P,90224677,BUPA CARE HOMES,"3,556.23",10/01/2020
Delivery Units,Adults and Health,Other Agencies - Third Party P,90224678,BUPA CARE HOMES,"2,567.20",10/01/2020
Delivery Units,Adults and Health,Other Agencies - Third Party P,90224679,BUPA CARE HOMES,"3,615.84",10/01/2020
Delivery Units,Adults and Health,Other Agencies - Third Party P,90224681,BUPA CARE HOMES,"3,412.44",10/01/2020
Delivery Units,Adults and Health,Other Agencies - Third Party P,90224683,BUPA CARE HOMES,"2,760.20",10/01/2020
Delivery Units,Adults and Health,Other Agencies - Third Party P,90227502,M D HOMES,"3,072.32",23/01/2020
Delivery Units,Adults and Health,Other Agencies - Third Party P,90228204,M D HOMES,"2,973.21",27/01/2020
Delivery Units,Adults and Health,Other Agencies - Third Party P,90228044,ST VINCENTS NURSING HOME,"1,783.16",27/01/2020
Delivery Units,Adults and Health,Other Agencies - Third Party P,90228046,ST VINCENTS NURSING HOME,"6,642.86",27/01/2020
Delivery Units,Adults and Health,Other Agencies - Third Party P,90224869,THE CONIFERS,"1,424.62",10/01/2020
Delivery Units,Adults and Health,Other Agencies - Third Party P,90222502,APPLE TREE COURT CARE HOME,"2,760.20",06/01/2020
Delivery Units,Adults and Health,Other Agencies - Third Party P,90226140,APPLE TREE COURT CARE HOME,"2,000.00",20/01/2020
Delivery Units,Adults and Health,Other Agencies - Third Party P,90226141,APPLE TREE COURT CARE HOME,"2,671.16",20/01/2020
Delivery Units,Adults and Health,Other Agencies - Third Party P,90228378,APPLE TREE COURT CARE HOME,"3,985.71",27/01/2020
Delivery Units,Adults and Health,Other Agencies - Third Party P,90228380,APPLE TREE COURT CARE HOME,"3,916.81",27/01/2020
Delivery Units,Adults and Health,Other Agencies - Third Party P,90228381,APPLE TREE COURT CARE HOME,"4,871.43",27/01/2020
Delivery Units,Adults and Health,Other Agencies - Third Party P,90228382,APPLE TREE COURT CARE HOME,"8,407.94",27/01/2020
Delivery Units,Adults and Health,Other Agencies - Third Party P,90228386,APPLE TREE COURT CARE HOME,"4,167.29",27/01/2020
Delivery Units,Adults and Health,Other Agencies - Third Party P,90228388,APPLE TREE COURT CARE HOME,"2,760.20",27/01/2020
Delivery Units,Adults and Health,Other Agencies - Third Party P,90229426,APPLE TREE COURT CARE HOME,"3,429.66",30/01/2020
Delivery Units,Adults and Health,Other Agencies - Third Party P,90229427,APPLE TREE COURT CARE HOME,"3,097.76",30/01/2020
Delivery Units,Adults and Health,Other Agencies - Third Party P,90229428,APPLE TREE COURT CARE HOME,"5,642.35",30/01/2020
Delivery Units,Adults and Health,Other Agencies - Third Party P,90229432,APPLE TREE COURT CARE HOME,"4,867.91",30/01/2020
Delivery Units,Adults and Health,Other Agencies - Third Party P,90225379,AUTUMN GARDENS,"3,440.00",15/01/2020
Delivery Units,Adults and Health,Other Agencies - Third Party P,90225386,AUTUMN GARDENS,"4,800.00",15/01/2020
Delivery Units,Adults and Health,Other Agencies - Third Party P,90225387,AUTUMN GARDENS,"4,800.00",15/01/2020
Delivery Units,Adults and Health,Other Agencies - Third Party P,90225417,SUNRISE SENIOR LIVING,"6,382.28",15/01/2020
Delivery Units,Adults and Health,Other Agencies - Third Party P,90228155,ABBEY RAVENSCROFT PARK NURSING HOME,"3,764.29",27/01/2020
Delivery Units,Adults and Health,Other Agencies - Third Party P,90228156,ABBEY RAVENSCROFT PARK NURSING HOME,"3,764.29",27/01/2020
Delivery Units,Adults and Health,Other Agencies - Third Party P,90228157,ABBEY RAVENSCROFT PARK NURSING HOME,"3,764.29",27/01/2020
Delivery Units,Adults and Health,Other Agencies - Third Party P,90228159,ABBEY RAVENSCROFT PARK NURSING HOME,"3,321.43",27/01/2020
Delivery Units,Adults and Health,Other Agencies - Third Party P,90228160,ABBEY RAVENSCROFT PARK NURSING HOME,"3,542.86",27/01/2020
Delivery Units,Adults and Health,Other Agencies - Third Party P,90228161,ABBEY RAVENSCROFT PARK NURSING HOME,"3,764.29",27/01/2020
Delivery Units,Adults and Health,Other Agencies - Third Party P,90228164,ABBEY RAVENSCROFT PARK NURSING HOME,"2,788.32",27/01/2020
Delivery Units,Adults and Health,Other Agencies - Third Party P,90228165,ABBEY RAVENSCROFT PARK NURSING HOME,"4,995.43",27/01/2020
Delivery Units,Adults and Health,Other Agencies - Third Party P,90228166,ABBEY RAVENSCROFT PARK NURSING HOME,"3,321.43",27/01/2020
Delivery Units,Adults and Health,Other Agencies - Third Party P,90228167,ABBEY RAVENSCROFT PARK NURSING HOME,"3,321.43",27/01/2020
Delivery Units,Adults and Health,Other Agencies - Third Party P,90228169,ABBEY RAVENSCROFT PARK NURSING HOME,"2,788.32",27/01/2020
Delivery Units,Adults and Health,Other Agencies - Third Party P,90228171,ABBEY RAVENSCROFT PARK NURSING HOME,"3,321.43",27/01/2020
Delivery Units,Adults and Health,Other Agencies - Third Party P,90228172,ABBEY RAVENSCROFT PARK NURSING HOME,"2,788.32",27/01/2020
Delivery Units,Adults and Health,Other Agencies - Third Party P,90228174,ABBEY RAVENSCROFT PARK NURSING HOME,"2,788.32",27/01/2020
Delivery Units,Adults and Health,Other Agencies - Third Party P,90228177,ABBEY RAVENSCROFT PARK NURSING HOME,"3,321.43",27/01/2020
Delivery Units,Adults and Health,Other Agencies - Third Party P,90228178,ABBEY RAVENSCROFT PARK NURSING HOME,"3,321.43",27/01/2020
Delivery Units,Adults and Health,Other Agencies - Third Party P,90229263,CARLTON COURT (TLC GROUP),"4,428.57",28/01/2020
Delivery Units,Adults and Health,Other Agencies - Third Party P,90229264,CARLTON COURT (TLC GROUP),"3,736.61",28/01/2020
Delivery Units,Adults and Health,Other Agencies - Third Party P,90229268,CARLTON COURT (TLC GROUP),"2,448.78",28/01/2020
Delivery Units,Adults and Health,Other Agencies - Third Party P,90229273,CARLTON COURT (TLC GROUP),"4,428.57",28/01/2020
Delivery Units,Adults and Health,Other Agencies - Third Party P,90229275,CARLTON COURT (TLC GROUP),"3,764.29",28/01/2020
Delivery Units,Adults and Health,Other Agencies - Third Party P,90227546,HUSKARDS NEW CARE LTD,"2,397.72",24/01/2020
Delivery Units,Adults and Health,Other Agencies - Third Party P,90224695,ASHTON LODGE CARE CENTRE,"2,860.94",10/01/2020
Delivery Units,Adults and Health,Other Agencies - Third Party P,90228013,ASHTON LODGE CARE CENTRE,"2,640.05",27/01/2020
Delivery Units,Adults and Health,Other Agencies - Third Party P,90228014,ASHTON LODGE CARE CENTRE,"3,541.79",27/01/2020
Delivery Units,Adults and Health,Other Agencies - Third Party P,90228015,ASHTON LODGE CARE CENTRE,"3,164.04",27/01/2020
Delivery Units,Adults and Health,Other Agencies - Third Party P,90228017,ASHTON LODGE CARE CENTRE,"3,541.79",27/01/2020
Delivery Units,Adults and Health,Other Agencies - Third Party P,90228018,ASHTON LODGE CARE CENTRE,"3,158.59",27/01/2020
Delivery Units,Adults and Health,Other Agencies - Third Party P,90228019,ASHTON LODGE CARE CENTRE,"4,436.37",27/01/2020
Delivery Units,Adults and Health,Other Agencies - Third Party P,90228020,ASHTON LODGE CARE CENTRE,"4,359.66",27/01/2020
Delivery Units,Adults and Health,Other Agencies - Third Party P,90228021,ASHTON LODGE CARE CENTRE,"3,779.34",27/01/2020
Delivery Units,Adults and Health,Other Agencies - Third Party P,90228022,ASHTON LODGE CARE CENTRE,"2,925.69",27/01/2020
Delivery Units,Adults and Health,Other Agencies - Third Party P,90228023,ASHTON LODGE CARE CENTRE,"4,212.72",27/01/2020
Delivery Units,Adults and Health,Other Agencies - Third Party P,90228024,ASHTON LODGE CARE CENTRE,"3,695.38",27/01/2020
Delivery Units,Adults and Health,Other Agencies - Third Party P,90228025,ASHTON LODGE CARE CENTRE,"5,245.38",27/01/2020
Delivery Units,Adults and Health,Other Agencies - Third Party P,90228027,ASHTON LODGE CARE CENTRE,"3,695.38",27/01/2020
Delivery Units,Adults and Health,Other Agencies - Third Party P,90228028,ASHTON LODGE CARE CENTRE,"3,159.70",27/01/2020
Delivery Units,Adults and Health,Other Agencies - Third Party P,90228029,ASHTON LODGE CARE CENTRE,"3,391.67",27/01/2020
Delivery Units,Adults and Health,Other Agencies - Third Party P,90228030,ASHTON LODGE CARE CENTRE,"2,923.96",27/01/2020
Delivery Units,Adults and Health,Other Agencies - Third Party P,90228032,ASHTON LODGE CARE CENTRE,"3,414.69",27/01/2020
Delivery Units,Adults and Health,Other Agencies - Third Party P,90228033,ASHTON LODGE CARE CENTRE,"3,846.97",27/01/2020
Delivery Units,Adults and Health,Other Agencies - Third Party P,90228035,ASHTON LODGE CARE CENTRE,"2,923.96",27/01/2020
Delivery Units,Adults and Health,Other Agencies - Third Party P,90228036,ASHTON LODGE CARE CENTRE,"3,164.04",27/01/2020
Delivery Units,Adults and Health,Other Agencies - Third Party P,90228037,ASHTON LODGE CARE CENTRE,"3,642.32",27/01/2020
Delivery Units,Adults and Health,Other Agencies - Third Party P,90228039,ASHTON LODGE CARE CENTRE,"3,605.17",27/01/2020
Delivery Units,Adults and Health,Other Agencies - Third Party P,90227560,WESTGATE HOUSE CARE CENTRE,"3,725.76",24/01/2020
Delivery Units,Adults and Health,Other Agencies - Third Party P,90227588,WILSMERE HOUSE CARE CENTRE,"4,979.35",24/01/2020
Delivery Units,Adults and Health,Other Agencies - Third Party P,90228059,Victoria Care Centre,"2,958.95",27/01/2020
Delivery Units,Adults and Health,Other Agencies - Third Party P,90228340,Karuna Manor,"4,392.43",27/01/2020
Delivery Units,Adults and Health,Other Agencies - Third Party P,90228341,Karuna Manor,"2,373.71",27/01/2020
Delivery Units,Adults and Health,Other Agencies - Third Party P,90228343,Karuna Manor,"4,207.14",27/01/2020
Delivery Units,Adults and Health,Other Agencies - Third Party P,90222513,St Anns Home-Little Sisters of the Poor,"2,421.68",06/01/2020
Delivery Units,Adults and Health,Other Agencies - Third Party P,90227574,Pinelodge Care Home,"2,655.55",24/01/2020
Delivery Units,Adults and Health,Other Agencies - Third Party P,90227536,Chiswick House,"3,321.34",24/01/2020
Delivery Units,Adults and Health,Other Agencies - Third Party P,90224667,Adara Healthcare Ltd,"3,400.00",10/01/2020
Delivery Units,Adults and Health,Other Agencies - Third Party P,90227552,Aarandale Manor Care Home,"2,129.79",24/01/2020
Delivery Units,Adults and Health,Other Agencies - Third Party P,90227553,Aarandale Manor Care Home,"4,428.57",24/01/2020
Delivery Units,Adults and Health,Other Agencies - Third Party P,90227554,Aarandale Manor Care Home,"3,741.92",24/01/2020
Delivery Units,Adults and Health,Other Agencies - Third Party P,90227555,Aarandale Manor Care Home,"2,570.56",24/01/2020
Delivery Units,Adults and Health,Other Agencies - Third Party P,90228350,Contemplation Homes,"3,409.78",27/01/2020
Delivery Units,Adults and Health,Other Agencies - Third Party P,90227581,Lansglade Homes Limited,"2,723.35",24/01/2020
Delivery Units,Adults and Health,Other Agencies - Third Party P,90228188,HC-One Oval LTD,"2,368.62",27/01/2020
Delivery Units,Adults and Health,Other Agencies - Third Party P,90227575,SANCTUARY CARE LTD,"2,541.07",24/01/2020
Delivery Units,Adults and Health,Other Agencies - Third Party P,90228205,Bondcare London (The Fountains),"2,138.00",27/01/2020
Delivery Units,Adults and Health,Other Agencies - Third Party P,90228206,Bondcare London (The Fountains),"2,138.00",27/01/2020
Delivery Units,Adults and Health,Other Agencies - Third Party P,90228207,Bondcare London (The Fountains),"2,138.00",27/01/2020
Delivery Units,Adults and Health,Other Agencies - Third Party P,90228208,Bondcare London (The Fountains),"2,138.00",27/01/2020
Delivery Units,Adults and Health,Other Agencies - Third Party P,90228209,Bondcare London (The Fountains),"2,138.00",27/01/2020
Delivery Units,Adults and Health,Other Agencies - Third Party P,90228210,Bondcare London (The Fountains),"2,138.00",27/01/2020
Delivery Units,Adults and Health,Other Agencies - Third Party P,90225485,Alliance Care (Dales Homes) Limited,"3,642.86",15/01/2020
Delivery Units,Adults and Health,Other Agencies - Third Party P,90228000,Alliance Care (Dales Homes) Limited,"3,400.00",24/01/2020
Delivery Units,Adults and Health,Other Agencies - Third Party P,90226151,DR FRENCH MEMORIAL HOME LTD,"3,542.86",20/01/2020
Delivery Units,Adults and Health,Other Agencies - Third Party P,90226152,DR FRENCH MEMORIAL HOME LTD,"3,642.86",20/01/2020
Delivery Units,Adults and Health,Other Agencies - Third Party P,90226153,DR FRENCH MEMORIAL HOME LTD,"3,542.86",20/01/2020
Delivery Units,Adults and Health,Other Agencies - Third Party P,90226154,DR FRENCH MEMORIAL HOME LTD,"2,601.88",20/01/2020
Delivery Units,Adults and Health,Other Agencies - Third Party P,90226155,DR FRENCH MEMORIAL HOME LTD,"3,653.57",20/01/2020
Delivery Units,Adults and Health,Other Agencies - Third Party P,90226156,DR FRENCH MEMORIAL HOME LTD,"3,642.86",20/01/2020
Delivery Units,Adults and Health,Other Agencies - Third Party P,90226157,DR FRENCH MEMORIAL HOME LTD,"3,764.29",20/01/2020
Delivery Units,Adults and Health,Other Agencies - Third Party P,90226158,DR FRENCH MEMORIAL HOME LTD,"3,642.86",20/01/2020
Delivery Units,Adults and Health,Other Agencies - Third Party P,90226159,DR FRENCH MEMORIAL HOME LTD,"3,642.86",20/01/2020
Delivery Units,Adults and Health,Other Agencies - Third Party P,90226989,DR FRENCH MEMORIAL HOME LTD,"4,250.00",21/01/2020
Delivery Units,Adults and Health,Other Agencies - Third Party P,90226990,DR FRENCH MEMORIAL HOME LTD,"3,035.71",21/01/2020
Delivery Units,Adults and Health,Other Agencies - Third Party P,90227509,DR FRENCH MEMORIAL HOME LTD,"3,642.86",23/01/2020
Delivery Units,Adults and Health,Other Agencies - Third Party P,90227511,DR FRENCH MEMORIAL HOME LTD,"3,764.29",23/01/2020
Delivery Units,Adults and Health,Other Agencies - Third Party P,90227512,DR FRENCH MEMORIAL HOME LTD,"9,835.72",23/01/2020
Delivery Units,Adults and Health,Other Agencies - Third Party P,90227515,DR FRENCH MEMORIAL HOME LTD,149.76,23/01/2020
Delivery Units,Adults and Health,Other Agencies - Third Party P,90227516,DR FRENCH MEMORIAL HOME LTD,"2,550.00",23/01/2020
Delivery Units,Adults and Health,Other Agencies - Third Party P,90227520,DR FRENCH MEMORIAL HOME LTD,"3,535.71",23/01/2020
Delivery Units,Adults and Health,Other Agencies - Third Party P,90227521,DR FRENCH MEMORIAL HOME LTD,"3,642.86",23/01/2020
Delivery Units,Adults and Health,Other Agencies - Third Party P,90228192,DR FRENCH MEMORIAL HOME LTD,"2,057.14",27/01/2020
Delivery Units,Adults and Health,Other Agencies - Third Party P,90227984,ROSEACRES CARE HOME LIMITED,"3,321.43",24/01/2020
Delivery Units,Adults and Health,Other Agencies - Third Party P,90227985,ROSEACRES CARE HOME LIMITED,"2,550.86",24/01/2020
Delivery Units,Adults and Health,Other Agencies - Third Party P,90227986,ROSEACRES CARE HOME LIMITED,"2,550.86",24/01/2020
Delivery Units,Adults and Health,Other Agencies - Third Party P,90227988,ROSEACRES CARE HOME LIMITED,"3,764.29",24/01/2020
Delivery Units,Adults and Health,Other Agencies - Third Party P,90227989,ROSEACRES CARE HOME LIMITED,"2,550.86",24/01/2020
Delivery Units,Adults and Health,Other Agencies - Third Party P,90227990,ROSEACRES CARE HOME LIMITED,"2,550.86",24/01/2020
Delivery Units,Adults and Health,Other Agencies - Third Party P,90227992,ROSEACRES CARE HOME LIMITED,"2,988.53",24/01/2020
Delivery Units,Adults and Health,Other Agencies - Third Party P,90227994,ROSEACRES CARE HOME LIMITED,"3,321.43",24/01/2020
Delivery Units,Adults and Health,Other Agencies - Third Party P,90227995,ROSEACRES CARE HOME LIMITED,"3,321.43",24/01/2020
Delivery Units,Adults and Health,Other Agencies - Third Party P,90227996,ROSEACRES CARE HOME LIMITED,"3,764.29",24/01/2020
Delivery Units,Adults and Health,Other Agencies - Third Party P,90227997,ROSEACRES CARE HOME LIMITED,"2,550.86",24/01/2020
Delivery Units,Adults and Health,Other Agencies - Third Party P,90227998,ROSEACRES CARE HOME LIMITED,"3,321.43",24/01/2020
Delivery Units,Adults and Health,Other Agencies - Third Party P,90222317,NIGHTINGALE HOUSE,"2,437.71",06/01/2020
Delivery Units,Adults and Health,Other Agencies - Third Party P,90222320,NIGHTINGALE HOUSE,"3,072.01",06/01/2020
Delivery Units,Adults and Health,Other Agencies - Third Party P,90227939,ELEANOR PALMER TRUST NO 2 A/C.,"3,354.64",24/01/2020
Delivery Units,Adults and Health,Other Agencies - Third Party P,90227940,ELEANOR PALMER TRUST NO 2 A/C.,"3,354.64",24/01/2020
Delivery Units,Adults and Health,Other Agencies - Third Party P,90227941,ELEANOR PALMER TRUST NO 2 A/C.,"3,430.46",24/01/2020
Delivery Units,Adults and Health,Other Agencies - Third Party P,90227942,ELEANOR PALMER TRUST NO 2 A/C.,"2,630.35",24/01/2020
Delivery Units,Adults and Health,Other Agencies - Third Party P,90227943,ELEANOR PALMER TRUST NO 2 A/C.,"2,630.35",24/01/2020
Delivery Units,Adults and Health,Other Agencies - Third Party P,90227944,ELEANOR PALMER TRUST NO 2 A/C.,"2,421.19",24/01/2020
Delivery Units,Adults and Health,Other Agencies - Third Party P,90227946,ELEANOR PALMER TRUST NO 2 A/C.,"3,430.46",24/01/2020
Delivery Units,Adults and Health,Other Agencies - Third Party P,90227947,ELEANOR PALMER TRUST NO 2 A/C.,"3,430.46",24/01/2020
Delivery Units,Adults and Health,Other Agencies - Third Party P,90227948,ELEANOR PALMER TRUST NO 2 A/C.,"3,430.46",24/01/2020
Delivery Units,Adults and Health,Other Agencies - Third Party P,90227949,ELEANOR PALMER TRUST NO 2 A/C.,"2,421.19",24/01/2020
Delivery Units,Adults and Health,Other Agencies - Third Party P,90227950,ELEANOR PALMER TRUST NO 2 A/C.,"2,630.35",24/01/2020
Delivery Units,Adults and Health,Other Agencies - Third Party P,90227951,ELEANOR PALMER TRUST NO 2 A/C.,"3,354.64",24/01/2020
Delivery Units,Adults and Health,Other Agencies - Third Party P,90227952,ELEANOR PALMER TRUST NO 2 A/C.,"3,321.43",24/01/2020
Delivery Units,Adults and Health,Other Agencies - Third Party P,90227953,ELEANOR PALMER TRUST NO 2 A/C.,"3,321.43",24/01/2020
Delivery Units,Adults and Health,Other Agencies - Third Party P,90227954,ELEANOR PALMER TRUST NO 2 A/C.,"3,430.46",24/01/2020
Delivery Units,Adults and Health,Other Agencies - Third Party P,90224693,ELM PARK LODGE,"3,242.51",10/01/2020
Delivery Units,Adults and Health,Other Agencies - Third Party P,90227517,TORRINGTON HOMES,"4,500.00",23/01/2020
Delivery Units,Adults and Health,Other Agencies - Third Party P,90227518,TORRINGTON HOMES,"3,642.86",23/01/2020
Delivery Units,Adults and Health,Other Agencies - Third Party P,90227519,TORRINGTON HOMES,"3,764.29",23/01/2020
Delivery Units,Adults and Health,Other Agencies - Third Party P,90228048,TORRINGTON HOMES,"2,249.45",27/01/2020
Delivery Units,Adults and Health,Other Agencies - Third Party P,90228049,TORRINGTON HOMES,"3,764.29",27/01/2020
Delivery Units,Adults and Health,Other Agencies - Third Party P,90228050,TORRINGTON HOMES,"3,985.71",27/01/2020
Delivery Units,Adults and Health,Other Agencies - Third Party P,90225391,THE GRANGE,"2,350.08",15/01/2020
Delivery Units,Adults and Health,Other Agencies - Third Party P,90225392,THE GRANGE,"2,600.00",15/01/2020
Delivery Units,Adults and Health,Other Agencies - Third Party P,90226556,JEWISH CARE,"2,296.24",21/01/2020
Delivery Units,Adults and Health,Other Agencies - Third Party P,90226564,JEWISH CARE,"2,296.24",21/01/2020
Delivery Units,Adults and Health,Other Agencies - Third Party P,90226565,JEWISH CARE,"2,296.24",21/01/2020
Delivery Units,Adults and Health,Other Agencies - Third Party P,90226570,JEWISH CARE,"2,296.24",21/01/2020
Delivery Units,Adults and Health,Other Agencies - Third Party P,90226573,JEWISH CARE,"2,479.68",21/01/2020
Delivery Units,Adults and Health,Other Agencies - Third Party P,90226574,JEWISH CARE,"2,480.92",21/01/2020
Delivery Units,Adults and Health,Other Agencies - Third Party P,90226575,JEWISH CARE,"2,480.92",21/01/2020
Delivery Units,Adults and Health,Other Agencies - Third Party P,90226576,JEWISH CARE,"2,479.68",21/01/2020
Delivery Units,Adults and Health,Other Agencies - Third Party P,90226577,JEWISH CARE,"4,265.48",21/01/2020
Delivery Units,Adults and Health,Other Agencies - Third Party P,90226579,JEWISH CARE,"2,280.32",21/01/2020
Delivery Units,Adults and Health,Other Agencies - Third Party P,90226580,JEWISH CARE,"2,296.24",21/01/2020
Delivery Units,Adults and Health,Other Agencies - Third Party P,90226582,JEWISH CARE,"2,156.80",21/01/2020
Delivery Units,Adults and Health,Other Agencies - Third Party P,90226587,JEWISH CARE,"2,480.92",21/01/2020
Delivery Units,Adults and Health,Other Agencies - Third Party P,90226588,JEWISH CARE,"2,482.36",21/01/2020
Delivery Units,Adults and Health,Other Agencies - Third Party P,90226589,JEWISH CARE,"2,296.24",21/01/2020
Delivery Units,Adults and Health,Other Agencies - Third Party P,90226595,JEWISH CARE,"2,482.36",21/01/2020
Delivery Units,Adults and Health,Other Agencies - Third Party P,90226596,JEWISH CARE,"2,484.56",21/01/2020
Delivery Units,Adults and Health,Other Agencies - Third Party P,90226597,JEWISH CARE,"2,479.68",21/01/2020
Delivery Units,Adults and Health,Other Agencies - Third Party P,90226599,JEWISH CARE,"17,986.67",21/01/2020
Delivery Units,Adults and Health,Other Agencies - Third Party P,90226604,JEWISH CARE,"2,484.56",21/01/2020
Delivery Units,Adults and Health,Other Agencies - Third Party P,90226607,JEWISH CARE,"2,296.24",21/01/2020
Delivery Units,Adults and Health,Other Agencies - Third Party P,90226609,JEWISH CARE,"2,296.24",21/01/2020
Delivery Units,Adults and Health,Other Agencies - Third Party P,90226610,JEWISH CARE,"2,296.24",21/01/2020
Delivery Units,Adults and Health,Other Agencies - Third Party P,90226611,JEWISH CARE,"2,479.68",21/01/2020
Delivery Units,Adults and Health,Other Agencies - Third Party P,90226614,JEWISH CARE,"2,482.36",21/01/2020
Delivery Units,Adults and Health,Other Agencies - Third Party P,90226615,JEWISH CARE,"2,482.36",21/01/2020
Delivery Units,Adults and Health,Other Agencies - Third Party P,90226616,JEWISH CARE,"1,329.84",21/01/2020
Delivery Units,Adults and Health,Other Agencies - Third Party P,90226617,JEWISH CARE,"2,479.68",21/01/2020
Delivery Units,Adults and Health,Other Agencies - Third Party P,90226618,JEWISH CARE,"2,296.24",21/01/2020
Delivery Units,Adults and Health,Other Agencies - Third Party P,90226623,JEWISH CARE,"2,482.36",21/01/2020
Delivery Units,Adults and Health,Other Agencies - Third Party P,90226626,JEWISH CARE,"2,482.36",21/01/2020
Delivery Units,Adults and Health,Other Agencies - Third Party P,90226629,JEWISH CARE,"2,479.68",21/01/2020
Delivery Units,Adults and Health,Other Agencies - Third Party P,90226630,JEWISH CARE,"2,480.92",21/01/2020
Delivery Units,Adults and Health,Other Agencies - Third Party P,90226631,JEWISH CARE,"6,298.64",21/01/2020
Delivery Units,Adults and Health,Other Agencies - Third Party P,90226633,JEWISH CARE,"2,649.36",21/01/2020
Delivery Units,Adults and Health,Other Agencies - Third Party P,90226634,JEWISH CARE,"2,480.92",21/01/2020
Delivery Units,Adults and Health,Other Agencies - Third Party P,90226636,JEWISH CARE,"2,479.68",21/01/2020
Delivery Units,Adults and Health,Other Agencies - Third Party P,90226638,JEWISH CARE,"2,479.68",21/01/2020
Delivery Units,Adults and Health,Other Agencies - Third Party P,90226639,JEWISH CARE,"2,482.36",21/01/2020
Delivery Units,Adults and Health,Other Agencies - Third Party P,90226640,JEWISH CARE,"2,484.56",21/01/2020
Delivery Units,Adults and Health,Other Agencies - Third Party P,90226642,JEWISH CARE,"2,484.56",21/01/2020
Delivery Units,Adults and Health,Other Agencies - Third Party P,90226644,JEWISH CARE,"2,296.24",21/01/2020
Delivery Units,Adults and Health,Other Agencies - Third Party P,90226649,JEWISH CARE,"7,446.84",21/01/2020
Delivery Units,Adults and Health,Other Agencies - Third Party P,90226650,JEWISH CARE,"15,335.60",21/01/2020
Delivery Units,Adults and Health,Other Agencies - Third Party P,90226653,JEWISH CARE,"2,482.36",21/01/2020
Delivery Units,Adults and Health,Other Agencies - Third Party P,90226659,JEWISH CARE,"2,484.56",21/01/2020
Delivery Units,Adults and Health,Other Agencies - Third Party P,90226662,JEWISH CARE,443.67,21/01/2020
Delivery Units,Adults and Health,Other Agencies - Third Party P,90226665,JEWISH CARE,"-15,502.96",21/01/2020
Delivery Units,Adults and Health,Other Agencies - Third Party P,90226666,JEWISH CARE,"2,484.56",21/01/2020
Delivery Units,Adults and Health,Other Agencies - Third Party P,90226668,JEWISH CARE,"2,484.56",21/01/2020
Delivery Units,Adults and Health,Other Agencies - Third Party P,90226669,JEWISH CARE,"2,296.24",21/01/2020
Delivery Units,Adults and Health,Other Agencies - Third Party P,90226670,JEWISH CARE,"2,296.24",21/01/2020
Delivery Units,Adults and Health,Other Agencies - Third Party P,90226671,JEWISH CARE,"2,296.24",21/01/2020
Delivery Units,Adults and Health,Other Agencies - Third Party P,90226672,JEWISH CARE,"2,480.92",21/01/2020
Delivery Units,Adults and Health,Other Agencies - Third Party P,90226673,JEWISH CARE,"2,484.56",21/01/2020
Delivery Units,Adults and Health,Other Agencies - Third Party P,90226679,JEWISH CARE,"2,296.24",21/01/2020
Delivery Units,Adults and Health,Other Agencies - Third Party P,90226682,JEWISH CARE,"2,480.92",21/01/2020
Delivery Units,Adults and Health,Other Agencies - Third Party P,90226685,JEWISH CARE,"2,479.68",21/01/2020
Delivery Units,Adults and Health,Other Agencies - Third Party P,90226687,JEWISH CARE,"2,479.68",21/01/2020
Delivery Units,Adults and Health,Other Agencies - Third Party P,90226688,JEWISH CARE,"2,484.56",21/01/2020
Delivery Units,Adults and Health,Other Agencies - Third Party P,90226690,JEWISH CARE,"2,484.56",21/01/2020
Delivery Units,Adults and Health,Other Agencies - Third Party P,90226691,JEWISH CARE,"4,825.16",21/01/2020
Delivery Units,Adults and Health,Other Agencies - Third Party P,90226692,JEWISH CARE,"2,480.92",21/01/2020
Delivery Units,Adults and Health,Other Agencies - Third Party P,90226694,JEWISH CARE,"2,484.56",21/01/2020
Delivery Units,Adults and Health,Other Agencies - Third Party P,90226697,JEWISH CARE,"2,296.24",21/01/2020
Delivery Units,Adults and Health,Other Agencies - Third Party P,90226699,JEWISH CARE,"9,845.44",21/01/2020
Delivery Units,Adults and Health,Other Agencies - Third Party P,90224824,CLOVELLY HOUSE RESID. HOME LTD,"3,000.00",10/01/2020
Delivery Units,Adults and Health,Other Agencies - Third Party P,90224826,CLOVELLY HOUSE RESID. HOME LTD,"2,350.08",10/01/2020
Delivery Units,Adults and Health,Other Agencies - Third Party P,90224827,CLOVELLY HOUSE RESID. HOME LTD,"2,350.08",10/01/2020
Delivery Units,Adults and Health,Other Agencies - Third Party P,90224828,CLOVELLY HOUSE RESID. HOME LTD,"2,350.08",10/01/2020
Delivery Units,Adults and Health,Other Agencies - Third Party P,90224829,CLOVELLY HOUSE RESID. HOME LTD,"3,000.00",10/01/2020
Delivery Units,Adults and Health,Other Agencies - Third Party P,90224830,CLOVELLY HOUSE RESID. HOME LTD,"3,000.00",10/01/2020
Delivery Units,Adults and Health,Other Agencies - Third Party P,90224832,CLOVELLY HOUSE RESID. HOME LTD,"3,000.00",10/01/2020
Delivery Units,Adults and Health,Other Agencies - Third Party P,90224836,CLOVELLY HOUSE RESID. HOME LTD,"2,600.00",10/01/2020
Delivery Units,Adults and Health,Other Agencies - Third Party P,90224837,CLOVELLY HOUSE RESID. HOME LTD,"2,780.00",10/01/2020
Delivery Units,Adults and Health,Other Agencies - Third Party P,90226160,CLOVELLY HOUSE RESID. HOME LTD,"2,142.86",20/01/2020
Delivery Units,Adults and Health,Other Agencies - Third Party P,90226161,CLOVELLY HOUSE RESID. HOME LTD,"3,000.00",20/01/2020
Delivery Units,Adults and Health,Other Agencies - Third Party P,90226162,CLOVELLY HOUSE RESID. HOME LTD,"3,000.00",20/01/2020
Delivery Units,Adults and Health,Other Agencies - Third Party P,90227557,FINBOND LIMITED,"3,321.43",24/01/2020
Delivery Units,Adults and Health,Other Agencies - Third Party P,90224675,QUANTUM CARE LIMITED,"2,514.29",10/01/2020
Delivery Units,Adults and Health,Other Agencies - Third Party P,90224864,QUANTUM CARE LIMITED,"3,321.43",10/01/2020
Delivery Units,Adults and Health,Other Agencies - Third Party P,90224870,QUANTUM CARE LIMITED,"4,207.14",10/01/2020
Delivery Units,Adults and Health,Other Agencies - Third Party P,90225426,QUANTUM CARE LIMITED,"3,764.29",15/01/2020
Delivery Units,Adults and Health,Other Agencies - Third Party P,90225427,QUANTUM CARE LIMITED,"3,642.86",15/01/2020
Delivery Units,Adults and Health,Other Agencies - Third Party P,90225428,QUANTUM CARE LIMITED,"3,764.29",15/01/2020
Delivery Units,Adults and Health,Other Agencies - Third Party P,90227981,CEDARS NURSING HOME,"4,428.57",24/01/2020
Delivery Units,Adults and Health,Other Agencies - Third Party P,90227958,CATHERINE LODGE,"3,321.43",24/01/2020
Delivery Units,Adults and Health,Other Agencies - Third Party P,90227962,CATHERINE LODGE,"2,601.87",24/01/2020
Delivery Units,Adults and Health,Other Agencies - Third Party P,90227963,CATHERINE LODGE,"2,601.87",24/01/2020
Delivery Units,Adults and Health,Other Agencies - Third Party P,90228057,CATHERINE LODGE,"4,250.00",27/01/2020
Delivery Units,Adults and Health,Other Agencies - Third Party P,90228181,SUNRIDGE HOUSING ASSOCIATION LTD,"2,989.58",27/01/2020
Delivery Units,Adults and Health,Other Agencies - Third Party P,90228182,SUNRIDGE HOUSING ASSOCIATION LTD,"2,898.19",27/01/2020
Delivery Units,Adults and Health,Other Agencies - Third Party P,90224668,NAZARETH HOUSE,"2,186.88",10/01/2020
Delivery Units,Adults and Health,Other Agencies - Third Party P,90228126,NAZARETH HOUSE,"2,186.88",27/01/2020
Delivery Units,Adults and Health,Other Agencies - Third Party P,90228127,NAZARETH HOUSE,"2,186.88",27/01/2020
Delivery Units,Adults and Health,Other Agencies - Third Party P,90228128,NAZARETH HOUSE,"2,186.88",27/01/2020
Delivery Units,Adults and Health,Other Agencies - Third Party P,90228129,NAZARETH HOUSE,"2,186.88",27/01/2020
Delivery Units,Adults and Health,Other Agencies - Third Party P,90228130,NAZARETH HOUSE,"2,186.88",27/01/2020
Delivery Units,Adults and Health,Other Agencies - Third Party P,90228131,NAZARETH HOUSE,"2,350.08",27/01/2020
Delivery Units,Adults and Health,Other Agencies - Third Party P,90228132,NAZARETH HOUSE,"2,186.88",27/01/2020
Delivery Units,Adults and Health,Other Agencies - Third Party P,90228133,NAZARETH HOUSE,"2,186.88",27/01/2020
Delivery Units,Adults and Health,Other Agencies - Third Party P,90228134,NAZARETH HOUSE,"2,350.08",27/01/2020
Delivery Units,Adults and Health,Other Agencies - Third Party P,90228135,NAZARETH HOUSE,"2,186.88",27/01/2020
Delivery Units,Adults and Health,Other Agencies - Third Party P,90228136,NAZARETH HOUSE,"2,186.88",27/01/2020
Delivery Units,Adults and Health,Other Agencies - Third Party P,90228137,NAZARETH HOUSE,"2,144.00",27/01/2020
Delivery Units,Adults and Health,Other Agencies - Third Party P,90228138,NAZARETH HOUSE,"2,186.88",27/01/2020
Delivery Units,Adults and Health,Other Agencies - Third Party P,90228140,NAZARETH HOUSE,"2,650.40",27/01/2020
Delivery Units,Adults and Health,Other Agencies - Third Party P,90228141,NAZARETH HOUSE,"2,186.88",27/01/2020
Delivery Units,Adults and Health,Other Agencies - Third Party P,90228142,NAZARETH HOUSE,"2,350.08",27/01/2020
Delivery Units,Adults and Health,Other Agencies - Third Party P,90228143,NAZARETH HOUSE,"2,186.88",27/01/2020
Delivery Units,Adults and Health,Other Agencies - Third Party P,90228144,NAZARETH HOUSE,"2,186.88",27/01/2020
Delivery Units,Adults and Health,Other Agencies - Third Party P,90228145,NAZARETH HOUSE,"2,186.88",27/01/2020
Delivery Units,Adults and Health,Other Agencies - Third Party P,90228146,NAZARETH HOUSE,"2,186.88",27/01/2020
Delivery Units,Adults and Health,Other Agencies - Third Party P,90228147,NAZARETH HOUSE,"2,350.08",27/01/2020
Delivery Units,Adults and Health,Other Agencies - Third Party P,90228148,NAZARETH HOUSE,"2,350.08",27/01/2020
Delivery Units,Adults and Health,Other Agencies - Third Party P,90228149,NAZARETH HOUSE,"2,186.88",27/01/2020
Delivery Units,Adults and Health,Other Agencies - Third Party P,90228150,NAZARETH HOUSE,"2,186.88",27/01/2020
Delivery Units,Adults and Health,Other Agencies - Third Party P,90228151,NAZARETH HOUSE,"2,186.88",27/01/2020
Delivery Units,Adults and Health,Other Agencies - Third Party P,90228152,NAZARETH HOUSE,"2,186.88",27/01/2020
Delivery Units,Adults and Health,Other Agencies - Third Party P,90228153,NAZARETH HOUSE,"2,186.88",27/01/2020
Delivery Units,Adults and Health,Other Agencies - Third Party P,90229434,NAZARETH HOUSE,"2,350.08",30/01/2020
Delivery Units,Adults and Health,Other Agencies - Third Party P,90229435,NAZARETH HOUSE,"2,350.08",30/01/2020
Delivery Units,Adults and Health,Other Agencies - Third Party P,90229436,NAZARETH HOUSE,"2,350.08",30/01/2020
Delivery Units,Adults and Health,Other Agencies - Third Party P,90229437,NAZARETH HOUSE,"2,350.08",30/01/2020
Delivery Units,Adults and Health,Other Agencies - Third Party P,90227559,Kestrel Grove Nursing Home,"3,060.14",24/01/2020
Delivery Units,Adults and Health,Other Agencies - Third Party P,90229277,FRIARY LODGE,"3,321.43",31/01/2020
Delivery Units,Adults and Health,Other Agencies - Third Party P,90229279,FRIARY LODGE,"3,321.43",31/01/2020
Delivery Units,Adults and Health,Other Agencies - Third Party P,90229280,FRIARY LODGE,"4,327.14",31/01/2020
Delivery Units,Adults and Health,Other Agencies - Third Party P,90222503,THE WOODSIDE HOME,390.50,09/01/2020
Delivery Units,Adults and Health,Other Agencies - Third Party P,90224840,THE WOODSIDE HOME,"2,186.88",10/01/2020
Delivery Units,Adults and Health,Other Agencies - Third Party P,90224842,THE WOODSIDE HOME,"2,186.88",10/01/2020
Delivery Units,Adults and Health,Other Agencies - Third Party P,90224843,THE WOODSIDE HOME,"2,186.88",10/01/2020
Delivery Units,Adults and Health,Other Agencies - Third Party P,90225455,WESTMINSTER HEALTH CARE LTD,"3,739.71",16/01/2020
Delivery Units,Adults and Health,Other Agencies - Third Party P,90228224,METHODIST HOMES FOR THE AGED,"2,631.76",27/01/2020
Delivery Units,Adults and Health,Other Agencies - Third Party P,90228225,METHODIST HOMES FOR THE AGED,"2,631.76",27/01/2020
Delivery Units,Adults and Health,Other Agencies - Third Party P,90226646,HENRY NIHILL HOUSE,"2,265.36",21/01/2020
Delivery Units,Adults and Health,Other Agencies - Third Party P,90227489,SYDMAR LODGE,"2,506.26",23/01/2020
Delivery Units,Adults and Health,Other Agencies - Third Party P,90227490,SYDMAR LODGE,"5,137.14",23/01/2020
Delivery Units,Adults and Health,Other Agencies - Third Party P,90227492,SYDMAR LODGE,"2,506.26",23/01/2020
Delivery Units,Adults and Health,Other Agencies - Third Party P,90227498,SYDMAR LODGE,"4,871.43",23/01/2020
Delivery Units,Adults and Health,Other Agencies - Third Party P,90227499,SYDMAR LODGE,"2,469.42",23/01/2020
Delivery Units,Adults and Health,Other Agencies - Third Party P,90227500,SYDMAR LODGE,"2,812.14",23/01/2020
Delivery Units,Adults and Health,Other Agencies - Third Party P,90228054,SYDMAR LODGE,"5,137.14",27/01/2020
Delivery Units,Adults and Health,Other Agencies - Third Party P,90228055,SYDMAR LODGE,"4,971.43",27/01/2020
Delivery Units,Adults and Health,Other Agencies - Third Party P,90228056,SYDMAR LODGE,"5,137.14",27/01/2020
Delivery Units,Adults and Health,Other Agencies - Third Party P,90229281,SYDMAR LODGE,"2,386.43",28/01/2020
Delivery Units,Adults and Health,Other Agencies - Third Party P,90229282,SYDMAR LODGE,"5,690.71",28/01/2020
Delivery Units,Adults and Health,Other Agencies - Third Party P,90229283,SYDMAR LODGE,"5,690.71",28/01/2020
Delivery Units,Adults and Health,Other Agencies - Third Party P,90229284,SYDMAR LODGE,"1,101.43",28/01/2020
Delivery Units,Adults and Health,Other Agencies - Third Party P,90226572,THE LIMES RESIDENTIAL HOME,"2,304.00",21/01/2020
Delivery Units,Adults and Health,Other Agencies - Third Party P,90226581,THE LIMES RESIDENTIAL HOME,"2,350.08",21/01/2020
Delivery Units,Adults and Health,Other Agencies - Third Party P,90226584,THE LIMES RESIDENTIAL HOME,"2,350.08",21/01/2020
Delivery Units,Adults and Health,Other Agencies - Third Party P,90226585,THE LIMES RESIDENTIAL HOME,"2,350.08",21/01/2020
Delivery Units,Adults and Health,Other Agencies - Third Party P,90226593,THE LIMES RESIDENTIAL HOME,"2,186.88",21/01/2020
Delivery Units,Adults and Health,Other Agencies - Third Party P,90226594,THE LIMES RESIDENTIAL HOME,"2,350.08",21/01/2020
Delivery Units,Adults and Health,Other Agencies - Third Party P,90226620,THE LIMES RESIDENTIAL HOME,"2,350.08",21/01/2020
Delivery Units,Adults and Health,Other Agencies - Third Party P,90226625,THE LIMES RESIDENTIAL HOME,"2,350.08",21/01/2020
Delivery Units,Adults and Health,Other Agencies - Third Party P,90226637,THE LIMES RESIDENTIAL HOME,"2,350.08",21/01/2020
Delivery Units,Adults and Health,Other Agencies - Third Party P,90226652,THE LIMES RESIDENTIAL HOME,"2,186.88",21/01/2020
Delivery Units,Adults and Health,Other Agencies - Third Party P,90226663,THE LIMES RESIDENTIAL HOME,"2,350.08",21/01/2020
Delivery Units,Adults and Health,Other Agencies - Third Party P,90226674,THE LIMES RESIDENTIAL HOME,"2,186.88",21/01/2020
Delivery Units,Adults and Health,Other Agencies - Third Party P,90226675,THE LIMES RESIDENTIAL HOME,"3,040.00",21/01/2020
Delivery Units,Adults and Health,Other Agencies - Third Party P,90226680,THE LIMES RESIDENTIAL HOME,"2,304.00",21/01/2020
Delivery Units,Adults and Health,Other Agencies - Third Party P,90226686,THE LIMES RESIDENTIAL HOME,"2,350.08",21/01/2020
Delivery Units,Adults and Health,Other Agencies - Third Party P,90228185,SCIMITAR CARE HOTELS PLC,"3,985.71",27/01/2020
Delivery Units,Adults and Health,Other Agencies - Third Party P,90228186,SCIMITAR CARE HOTELS PLC,"3,764.29",27/01/2020
Delivery Units,Adults and Health,Other Agencies - Third Party P,90228187,SCIMITAR CARE HOTELS PLC,"4,207.14",27/01/2020
Delivery Units,Adults and Health,Other Agencies - Third Party P,90227483,MEERA NURSING HOME LIMITED,"3,542.86",23/01/2020
Delivery Units,Adults and Health,Other Agencies - Third Party P,90227591,GREEN TREES,"3,410.00",24/01/2020
Delivery Units,Adults and Health,Other Agencies - Third Party P,90225398,BUPA CARE HOMES,"-2,505.51",29/01/2020
Delivery Units,Adults and Health,Other Agencies - Third Party P,90225679,BUPA CARE HOMES,178.88,29/01/2020
Delivery Units,Adults and Health,Other Agencies - Third Party P,90225680,BUPA CARE HOMES,112.78,29/01/2020
Delivery Units,Adults and Health,Other Agencies - Third Party P,90228040,BUPA CARE HOMES,"2,798.06",29/01/2020
Delivery Units,Adults and Health,Other Agencies - Third Party P,90225377,ANASTASIA LODGE,"3,600.00",15/01/2020
Delivery Units,Adults and Health,Other Agencies - Third Party P,90225380,ANASTASIA LODGE,"2,800.00",15/01/2020
Delivery Units,Adults and Health,Other Agencies - Third Party P,90225382,ANASTASIA LODGE,"3,800.00",15/01/2020
Delivery Units,Adults and Health,Other Agencies - Third Party P,90227571,HILTON LODGE LTD.,"2,880.00",24/01/2020
Delivery Units,Adults and Health,Other Agencies - Third Party P,90222527,FOUR SEASONS HEALTH CARE,952.29,06/01/2020
Delivery Units,Adults and Health,Other Agencies - Third Party P,90228197,VENTRY RESIDENTIAL CARE LTD,"3,321.43",27/01/2020
Delivery Units,Adults and Health,Other Agencies - Third Party P,90228198,VENTRY RESIDENTIAL CARE LTD,"3,321.43",27/01/2020
Delivery Units,Adults and Health,Other Agencies - Third Party P,90228199,VENTRY RESIDENTIAL CARE LTD,"2,601.87",27/01/2020
Delivery Units,Adults and Health,Other Agencies - Third Party P,90228200,VENTRY RESIDENTIAL CARE LTD,"3,100.00",27/01/2020
Delivery Units,Adults and Health,Other Agencies - Third Party P,90229430,VENTRY RESIDENTIAL CARE LTD,500.00,30/01/2020
Delivery Units,Adults and Health,Other Agencies - Third Party P,90228351,B & M CARE,"2,550.86",27/01/2020
Delivery Units,Adults and Health,Other Agencies - Third Party P,90228390,B & M CARE,242.86,27/01/2020
Delivery Units,Adults and Health,Other Agencies - Third Party P,90228391,B & M CARE,"3,764.29",27/01/2020
Delivery Units,Adults and Health,Other Agencies - Third Party P,90225471,SAGE NURSING HOME,"1,200.00",15/01/2020
Delivery Units,Adults and Health,Other Agencies - Third Party P,90225390,EASTSIDE HOUSE CARE HOME,"3,500.00",14/01/2020
Delivery Units,Adults and Health,Other Agencies - Third Party P,90227522,EASTSIDE HOUSE CARE HOME,"3,500.00",23/01/2020
Delivery Units,Adults and Health,Other Agencies - Third Party P,90225470,APPLE TREE COURT CARE HOME,"5,642.35",15/01/2020
Delivery Units,Adults and Health,Other Agencies - Third Party P,90228379,APPLE TREE COURT CARE HOME,"4,757.27",27/01/2020
Delivery Units,Adults and Health,Other Agencies - Third Party P,90228383,APPLE TREE COURT CARE HOME,"3,764.29",27/01/2020
Delivery Units,Adults and Health,Other Agencies - Third Party P,90228385,APPLE TREE COURT CARE HOME,"3,764.29",27/01/2020
Delivery Units,Adults and Health,Other Agencies - Third Party P,90228389,APPLE TREE COURT CARE HOME,"3,429.66",27/01/2020
Delivery Units,Adults and Health,Other Agencies - Third Party P,90228061,R.M.B.I,"2,339.57",24/01/2020
Delivery Units,Adults and Health,Other Agencies - Third Party P,90227556,TENTERDEN HOUSE,"3,957.50",24/01/2020
Delivery Units,Adults and Health,Other Agencies - Third Party P,90228216,Ashfields Residential Care Home,"2,421.19",27/01/2020
Delivery Units,Adults and Health,Other Agencies - Third Party P,90228217,Ashfields Residential Care Home,"2,601.87",27/01/2020
Delivery Units,Adults and Health,Other Agencies - Third Party P,90225383,AUTUMN GARDENS,"3,160.00",15/01/2020
Delivery Units,Adults and Health,Other Agencies - Third Party P,90225384,AUTUMN GARDENS,"3,560.00",15/01/2020
Delivery Units,Adults and Health,Other Agencies - Third Party P,90225385,AUTUMN GARDENS,"2,880.00",15/01/2020
Delivery Units,Adults and Health,Other Agencies - Third Party P,90226986,THE CHRISTIAN CARE TRUST,"2,350.08",21/01/2020
Delivery Units,Adults and Health,Other Agencies - Third Party P,90226987,THE CHRISTIAN CARE TRUST,"2,350.08",21/01/2020
Delivery Units,Adults and Health,Other Agencies - Third Party P,90228175,ABBEY RAVENSCROFT PARK NURSING HOME,"3,321.43",27/01/2020
Delivery Units,Adults and Health,Other Agencies - Third Party P,90228176,ABBEY RAVENSCROFT PARK NURSING HOME,"3,321.43",27/01/2020
Delivery Units,Adults and Health,Other Agencies - Third Party P,90229261,CARLTON COURT (TLC GROUP),"2,249.45",28/01/2020
Delivery Units,Adults and Health,Other Agencies - Third Party P,90228031,ASHTON LODGE CARE CENTRE,"4,359.66",27/01/2020
Delivery Units,Adults and Health,Other Agencies - Third Party P,90225430,LIVABILITY,"3,424.00",15/01/2020
Delivery Units,Adults and Health,Other Agencies - Third Party P,90225434,LIVABILITY,"3,180.00",15/01/2020
Delivery Units,Adults and Health,Other Agencies - Third Party P,90222360,THE BARNETGROUP LIMITED,"2,144.00",06/01/2020
Delivery Units,Adults and Health,Other Agencies - Third Party P,90222361,THE BARNETGROUP LIMITED,"2,144.00",06/01/2020
Delivery Units,Adults and Health,Other Agencies - Third Party P,90222362,THE BARNETGROUP LIMITED,"2,304.00",06/01/2020
Delivery Units,Adults and Health,Other Agencies - Third Party P,90222363,THE BARNETGROUP LIMITED,"2,144.00",06/01/2020
Delivery Units,Adults and Health,Other Agencies - Third Party P,90222364,THE BARNETGROUP LIMITED,"2,304.00",06/01/2020
Delivery Units,Adults and Health,Other Agencies - Third Party P,90222365,THE BARNETGROUP LIMITED,"2,144.00",06/01/2020
Delivery Units,Adults and Health,Other Agencies - Third Party P,90222366,THE BARNETGROUP LIMITED,"2,144.00",06/01/2020
Delivery Units,Adults and Health,Other Agencies - Third Party P,90222367,THE BARNETGROUP LIMITED,"2,144.00",06/01/2020
Delivery Units,Adults and Health,Other Agencies - Third Party P,90222368,THE BARNETGROUP LIMITED,"2,144.00",06/01/2020
Delivery Units,Adults and Health,Other Agencies - Third Party P,90222369,THE BARNETGROUP LIMITED,842.29,06/01/2020
Delivery Units,Adults and Health,Other Agencies - Third Party P,90222370,THE BARNETGROUP LIMITED,"2,144.00",06/01/2020
Delivery Units,Adults and Health,Other Agencies - Third Party P,90222371,THE BARNETGROUP LIMITED,"2,304.00",06/01/2020
Delivery Units,Adults and Health,Other Agencies - Third Party P,90222372,THE BARNETGROUP LIMITED,"2,144.00",06/01/2020
Delivery Units,Adults and Health,Other Agencies - Third Party P,90222373,THE BARNETGROUP LIMITED,"2,304.00",06/01/2020
Delivery Units,Adults and Health,Other Agencies - Third Party P,90222374,THE BARNETGROUP LIMITED,"2,304.00",06/01/2020
Delivery Units,Adults and Health,Other Agencies - Third Party P,90222375,THE BARNETGROUP LIMITED,"2,694.00",06/01/2020
Delivery Units,Adults and Health,Other Agencies - Third Party P,90222376,THE BARNETGROUP LIMITED,"45,279.99",06/01/2020
Delivery Units,Adults and Health,Other Agencies - Third Party P,90222377,THE BARNETGROUP LIMITED,"2,144.00",06/01/2020
Delivery Units,Adults and Health,Other Agencies - Third Party P,90222378,THE BARNETGROUP LIMITED,"2,144.00",06/01/2020
Delivery Units,Adults and Health,Other Agencies - Third Party P,90222379,THE BARNETGROUP LIMITED,"2,144.00",06/01/2020
Delivery Units,Adults and Health,Other Agencies - Third Party P,90222380,THE BARNETGROUP LIMITED,"2,304.00",06/01/2020
Delivery Units,Adults and Health,Other Agencies - Third Party P,90222381,THE BARNETGROUP LIMITED,"2,304.00",06/01/2020
Delivery Units,Adults and Health,Other Agencies - Third Party P,90222382,THE BARNETGROUP LIMITED,"2,144.00",06/01/2020
Delivery Units,Adults and Health,Other Agencies - Third Party P,90222383,THE BARNETGROUP LIMITED,"2,144.00",06/01/2020
Delivery Units,Adults and Health,Other Agencies - Third Party P,90222384,THE BARNETGROUP LIMITED,"2,304.00",06/01/2020
Delivery Units,Adults and Health,Other Agencies - Third Party P,90222386,THE BARNETGROUP LIMITED,"2,304.00",06/01/2020
Delivery Units,Adults and Health,Other Agencies - Third Party P,90222387,THE BARNETGROUP LIMITED,"2,304.00",06/01/2020
Delivery Units,Adults and Health,Other Agencies - Third Party P,90222388,THE BARNETGROUP LIMITED,"2,304.00",06/01/2020
Delivery Units,Adults and Health,Other Agencies - Third Party P,90222389,THE BARNETGROUP LIMITED,"2,144.00",06/01/2020
Delivery Units,Adults and Health,Other Agencies - Third Party P,90222390,THE BARNETGROUP LIMITED,"2,304.00",06/01/2020
Delivery Units,Adults and Health,Other Agencies - Third Party P,90222391,THE BARNETGROUP LIMITED,"2,144.00",06/01/2020
Delivery Units,Adults and Health,Other Agencies - Third Party P,90222393,THE BARNETGROUP LIMITED,"2,144.00",06/01/2020
Delivery Units,Adults and Health,Other Agencies - Third Party P,90222394,THE BARNETGROUP LIMITED,"2,144.00",06/01/2020
Delivery Units,Adults and Health,Other Agencies - Third Party P,90222396,THE BARNETGROUP LIMITED,"2,304.00",06/01/2020
Delivery Units,Adults and Health,Other Agencies - Third Party P,90222398,THE BARNETGROUP LIMITED,"2,144.00",06/01/2020
Delivery Units,Adults and Health,Other Agencies - Third Party P,90222399,THE BARNETGROUP LIMITED,"2,144.00",06/01/2020
Delivery Units,Adults and Health,Other Agencies - Third Party P,90222400,THE BARNETGROUP LIMITED,"2,144.00",06/01/2020
Delivery Units,Adults and Health,Other Agencies - Third Party P,90222401,THE BARNETGROUP LIMITED,"2,144.00",06/01/2020
Delivery Units,Adults and Health,Other Agencies - Third Party P,90222403,THE BARNETGROUP LIMITED,"2,144.00",06/01/2020
Delivery Units,Adults and Health,Other Agencies - Third Party P,90222404,THE BARNETGROUP LIMITED,"2,144.00",06/01/2020
Delivery Units,Adults and Health,Other Agencies - Third Party P,90222405,THE BARNETGROUP LIMITED,"2,144.00",06/01/2020
Delivery Units,Adults and Health,Other Agencies - Third Party P,90222407,THE BARNETGROUP LIMITED,"4,080.00",06/01/2020
Delivery Units,Adults and Health,Other Agencies - Third Party P,90222408,THE BARNETGROUP LIMITED,"2,304.00",06/01/2020
Delivery Units,Adults and Health,Other Agencies - Third Party P,90222409,THE BARNETGROUP LIMITED,"2,144.00",06/01/2020
Delivery Units,Adults and Health,Other Agencies - Third Party P,90222412,THE BARNETGROUP LIMITED,"2,304.00",06/01/2020
Delivery Units,Adults and Health,Other Agencies - Third Party P,90222413,THE BARNETGROUP LIMITED,"2,304.00",06/01/2020
Delivery Units,Adults and Health,Other Agencies - Third Party P,90222414,THE BARNETGROUP LIMITED,"2,144.00",06/01/2020
Delivery Units,Adults and Health,Other Agencies - Third Party P,90222415,THE BARNETGROUP LIMITED,"2,144.00",06/01/2020
Delivery Units,Adults and Health,Other Agencies - Third Party P,90222416,THE BARNETGROUP LIMITED,"2,144.00",06/01/2020
Delivery Units,Adults and Health,Other Agencies - Third Party P,90222417,THE BARNETGROUP LIMITED,"2,144.00",06/01/2020
Delivery Units,Adults and Health,Other Agencies - Third Party P,90222418,THE BARNETGROUP LIMITED,"2,144.00",06/01/2020
Delivery Units,Adults and Health,Other Agencies - Third Party P,90222420,THE BARNETGROUP LIMITED,"4,062.40",06/01/2020
Delivery Units,Adults and Health,Other Agencies - Third Party P,90222421,THE BARNETGROUP LIMITED,"2,304.00",06/01/2020
Delivery Units,Adults and Health,Other Agencies - Third Party P,90222422,THE BARNETGROUP LIMITED,"2,304.00",06/01/2020
Delivery Units,Adults and Health,Other Agencies - Third Party P,90222423,THE BARNETGROUP LIMITED,"2,304.00",06/01/2020
Delivery Units,Adults and Health,Other Agencies - Third Party P,90222425,THE BARNETGROUP LIMITED,"2,304.00",06/01/2020
Delivery Units,Adults and Health,Other Agencies - Third Party P,90222426,THE BARNETGROUP LIMITED,"2,304.00",06/01/2020
Delivery Units,Adults and Health,Other Agencies - Third Party P,90222427,THE BARNETGROUP LIMITED,"2,304.00",06/01/2020
Delivery Units,Adults and Health,Other Agencies - Third Party P,90222428,THE BARNETGROUP LIMITED,"2,304.00",06/01/2020
Delivery Units,Adults and Health,Other Agencies - Third Party P,90222429,THE BARNETGROUP LIMITED,"2,304.00",06/01/2020
Delivery Units,Adults and Health,Other Agencies - Third Party P,90222430,THE BARNETGROUP LIMITED,"2,304.00",06/01/2020
Delivery Units,Adults and Health,Other Agencies - Third Party P,90222431,THE BARNETGROUP LIMITED,"2,144.00",06/01/2020
Delivery Units,Adults and Health,Other Agencies - Third Party P,90222432,THE BARNETGROUP LIMITED,"2,144.00",06/01/2020
Delivery Units,Adults and Health,Other Agencies - Third Party P,90222433,THE BARNETGROUP LIMITED,"2,144.00",06/01/2020
Delivery Units,Adults and Health,Other Agencies - Third Party P,90222434,THE BARNETGROUP LIMITED,"2,304.00",06/01/2020
Delivery Units,Adults and Health,Other Agencies - Third Party P,90222435,THE BARNETGROUP LIMITED,"2,144.00",06/01/2020
Delivery Units,Adults and Health,Other Agencies - Third Party P,90222436,THE BARNETGROUP LIMITED,"2,304.00",06/01/2020
Delivery Units,Adults and Health,Other Agencies - Third Party P,90222438,THE BARNETGROUP LIMITED,"3,000.00",06/01/2020
Delivery Units,Adults and Health,Other Agencies - Third Party P,90222439,THE BARNETGROUP LIMITED,73.80,06/01/2020
Delivery Units,Adults and Health,Other Agencies - Third Party P,90222440,THE BARNETGROUP LIMITED,"1,728.00",06/01/2020
Delivery Units,Adults and Health,Other Agencies - Third Party P,90222441,THE BARNETGROUP LIMITED,"2,304.00",06/01/2020
Delivery Units,Adults and Health,Other Agencies - Third Party P,90222444,THE BARNETGROUP LIMITED,"2,144.00",06/01/2020
Delivery Units,Adults and Health,Other Agencies - Third Party P,90222445,THE BARNETGROUP LIMITED,"2,304.00",06/01/2020
Delivery Units,Adults and Health,Other Agencies - Third Party P,90222446,THE BARNETGROUP LIMITED,"2,304.00",06/01/2020
Delivery Units,Adults and Health,Other Agencies - Third Party P,90222447,THE BARNETGROUP LIMITED,"2,144.00",06/01/2020
Delivery Units,Adults and Health,Other Agencies - Third Party P,90222448,THE BARNETGROUP LIMITED,"2,304.00",06/01/2020
Delivery Units,Adults and Health,Other Agencies - Third Party P,90222449,THE BARNETGROUP LIMITED,"2,304.00",06/01/2020
Delivery Units,Adults and Health,Other Agencies - Third Party P,90222450,THE BARNETGROUP LIMITED,"3,567.52",06/01/2020
Delivery Units,Adults and Health,Other Agencies - Third Party P,90222452,THE BARNETGROUP LIMITED,433.60,06/01/2020
Delivery Units,Adults and Health,Other Agencies - Third Party P,90222453,THE BARNETGROUP LIMITED,"2,144.00",06/01/2020
Delivery Units,Adults and Health,Other Agencies - Third Party P,90222454,THE BARNETGROUP LIMITED,"2,144.00",06/01/2020
Delivery Units,Adults and Health,Other Agencies - Third Party P,90225970,THE BARNETGROUP LIMITED,"2,144.00",20/01/2020
Delivery Units,Adults and Health,Other Agencies - Third Party P,90225971,THE BARNETGROUP LIMITED,"2,144.00",20/01/2020
Delivery Units,Adults and Health,Other Agencies - Third Party P,90225973,THE BARNETGROUP LIMITED,"2,304.00",20/01/2020
Delivery Units,Adults and Health,Other Agencies - Third Party P,90225975,THE BARNETGROUP LIMITED,"2,144.00",20/01/2020
Delivery Units,Adults and Health,Other Agencies - Third Party P,90225976,THE BARNETGROUP LIMITED,"2,144.00",20/01/2020
Delivery Units,Adults and Health,Other Agencies - Third Party P,90225977,THE BARNETGROUP LIMITED,"2,144.00",20/01/2020
Delivery Units,Adults and Health,Other Agencies - Third Party P,90225978,THE BARNETGROUP LIMITED,"2,144.00",20/01/2020
Delivery Units,Adults and Health,Other Agencies - Third Party P,90225980,THE BARNETGROUP LIMITED,"2,144.00",20/01/2020
Delivery Units,Adults and Health,Other Agencies - Third Party P,90225981,THE BARNETGROUP LIMITED,"2,144.00",20/01/2020
Delivery Units,Adults and Health,Other Agencies - Third Party P,90225982,THE BARNETGROUP LIMITED,"2,144.00",20/01/2020
Delivery Units,Adults and Health,Other Agencies - Third Party P,90225984,THE BARNETGROUP LIMITED,"4,080.00",20/01/2020
Delivery Units,Adults and Health,Other Agencies - Third Party P,90225985,THE BARNETGROUP LIMITED,"2,144.00",20/01/2020
Delivery Units,Adults and Health,Other Agencies - Third Party P,90225986,THE BARNETGROUP LIMITED,"2,144.00",20/01/2020
Delivery Units,Adults and Health,Other Agencies - Third Party P,90225987,THE BARNETGROUP LIMITED,"2,144.00",20/01/2020
Delivery Units,Adults and Health,Other Agencies - Third Party P,90225988,THE BARNETGROUP LIMITED,"2,304.00",20/01/2020
Delivery Units,Adults and Health,Other Agencies - Third Party P,90225989,THE BARNETGROUP LIMITED,"2,304.00",20/01/2020
Delivery Units,Adults and Health,Other Agencies - Third Party P,90225990,THE BARNETGROUP LIMITED,"2,144.00",20/01/2020
Delivery Units,Adults and Health,Other Agencies - Third Party P,90225991,THE BARNETGROUP LIMITED,"2,144.00",20/01/2020
Delivery Units,Adults and Health,Other Agencies - Third Party P,90225992,THE BARNETGROUP LIMITED,"2,304.00",20/01/2020
Delivery Units,Adults and Health,Other Agencies - Third Party P,90225994,THE BARNETGROUP LIMITED,"2,304.00",20/01/2020
Delivery Units,Adults and Health,Other Agencies - Third Party P,90225995,THE BARNETGROUP LIMITED,"2,304.00",20/01/2020
Delivery Units,Adults and Health,Other Agencies - Third Party P,90225996,THE BARNETGROUP LIMITED,"2,304.00",20/01/2020
Delivery Units,Adults and Health,Other Agencies - Third Party P,90225997,THE BARNETGROUP LIMITED,"2,144.00",20/01/2020
Delivery Units,Adults and Health,Other Agencies - Third Party P,90225998,THE BARNETGROUP LIMITED,"2,304.00",20/01/2020
Delivery Units,Adults and Health,Other Agencies - Third Party P,90225999,THE BARNETGROUP LIMITED,"2,144.00",20/01/2020
Delivery Units,Adults and Health,Other Agencies - Third Party P,90226000,THE BARNETGROUP LIMITED,"2,304.00",20/01/2020
Delivery Units,Adults and Health,Other Agencies - Third Party P,90226001,THE BARNETGROUP LIMITED,"2,304.00",20/01/2020
Delivery Units,Adults and Health,Other Agencies - Third Party P,90226003,THE BARNETGROUP LIMITED,"2,304.00",20/01/2020
Delivery Units,Adults and Health,Other Agencies - Third Party P,90226004,THE BARNETGROUP LIMITED,"2,304.00",20/01/2020
Delivery Units,Adults and Health,Other Agencies - Third Party P,90226005,THE BARNETGROUP LIMITED,"2,304.00",20/01/2020
Delivery Units,Adults and Health,Other Agencies - Third Party P,90226006,THE BARNETGROUP LIMITED,"2,304.00",20/01/2020
Delivery Units,Adults and Health,Other Agencies - Third Party P,90226007,THE BARNETGROUP LIMITED,"2,304.00",20/01/2020
Delivery Units,Adults and Health,Other Agencies - Third Party P,90226008,THE BARNETGROUP LIMITED,"2,304.00",20/01/2020
Delivery Units,Adults and Health,Other Agencies - Third Party P,90226009,THE BARNETGROUP LIMITED,"2,144.00",20/01/2020
Delivery Units,Adults and Health,Other Agencies - Third Party P,90226010,THE BARNETGROUP LIMITED,"2,144.00",20/01/2020
Delivery Units,Adults and Health,Other Agencies - Third Party P,90226011,THE BARNETGROUP LIMITED,"2,144.00",20/01/2020
Delivery Units,Adults and Health,Other Agencies - Third Party P,90226012,THE BARNETGROUP LIMITED,"2,304.00",20/01/2020
Delivery Units,Adults and Health,Other Agencies - Third Party P,90226013,THE BARNETGROUP LIMITED,"2,144.00",20/01/2020
Delivery Units,Adults and Health,Other Agencies - Third Party P,90226014,THE BARNETGROUP LIMITED,-658.29,20/01/2020
Delivery Units,Adults and Health,Other Agencies - Third Party P,90226016,THE BARNETGROUP LIMITED,"3,000.00",20/01/2020
Delivery Units,Adults and Health,Other Agencies - Third Party P,90226017,THE BARNETGROUP LIMITED,"2,808.66",20/01/2020
Delivery Units,Adults and Health,Other Agencies - Third Party P,90226018,THE BARNETGROUP LIMITED,"2,304.00",20/01/2020
Delivery Units,Adults and Health,Other Agencies - Third Party P,90226019,THE BARNETGROUP LIMITED,"2,304.00",20/01/2020
Delivery Units,Adults and Health,Other Agencies - Third Party P,90226020,THE BARNETGROUP LIMITED,"2,144.00",20/01/2020
Delivery Units,Adults and Health,Other Agencies - Third Party P,90226023,THE BARNETGROUP LIMITED,"2,304.00",20/01/2020
Delivery Units,Adults and Health,Other Agencies - Third Party P,90226024,THE BARNETGROUP LIMITED,"2,304.00",20/01/2020
Delivery Units,Adults and Health,Other Agencies - Third Party P,90226025,THE BARNETGROUP LIMITED,"2,144.00",20/01/2020
Delivery Units,Adults and Health,Other Agencies - Third Party P,90226026,THE BARNETGROUP LIMITED,"2,144.00",20/01/2020
Delivery Units,Adults and Health,Other Agencies - Third Party P,90226027,THE BARNETGROUP LIMITED,"2,144.00",20/01/2020
Delivery Units,Adults and Health,Other Agencies - Third Party P,90226028,THE BARNETGROUP LIMITED,"2,144.00",20/01/2020
Delivery Units,Adults and Health,Other Agencies - Third Party P,90226029,THE BARNETGROUP LIMITED,"2,144.00",20/01/2020
Delivery Units,Adults and Health,Other Agencies - Third Party P,90226031,THE BARNETGROUP LIMITED,"4,062.40",20/01/2020
Delivery Units,Adults and Health,Other Agencies - Third Party P,90226032,THE BARNETGROUP LIMITED,"2,304.00",20/01/2020
Delivery Units,Adults and Health,Other Agencies - Third Party P,90226033,THE BARNETGROUP LIMITED,"2,304.00",20/01/2020
Delivery Units,Adults and Health,Other Agencies - Third Party P,90226036,THE BARNETGROUP LIMITED,"2,144.00",20/01/2020
Delivery Units,Adults and Health,Other Agencies - Third Party P,90226037,THE BARNETGROUP LIMITED,"2,304.00",20/01/2020
Delivery Units,Adults and Health,Other Agencies - Third Party P,90226038,THE BARNETGROUP LIMITED,"2,304.00",20/01/2020
Delivery Units,Adults and Health,Other Agencies - Third Party P,90226039,THE BARNETGROUP LIMITED,"2,144.00",20/01/2020
Delivery Units,Adults and Health,Other Agencies - Third Party P,90226040,THE BARNETGROUP LIMITED,"2,304.00",20/01/2020
Delivery Units,Adults and Health,Other Agencies - Third Party P,90226041,THE BARNETGROUP LIMITED,"2,304.00",20/01/2020
Delivery Units,Adults and Health,Other Agencies - Third Party P,90226042,THE BARNETGROUP LIMITED,"3,567.52",20/01/2020
Delivery Units,Adults and Health,Other Agencies - Third Party P,90226044,THE BARNETGROUP LIMITED,433.60,20/01/2020
Delivery Units,Adults and Health,Other Agencies - Third Party P,90226045,THE BARNETGROUP LIMITED,"2,144.00",20/01/2020
Delivery Units,Adults and Health,Other Agencies - Third Party P,90226046,THE BARNETGROUP LIMITED,"2,144.00",20/01/2020
Delivery Units,Adults and Health,Other Agencies - Third Party P,90226047,THE BARNETGROUP LIMITED,493.71,20/01/2020
Delivery Units,Adults and Health,Other Agencies - Third Party P,90226048,THE BARNETGROUP LIMITED,"2,144.00",20/01/2020
Delivery Units,Adults and Health,Other Agencies - Third Party P,90226049,THE BARNETGROUP LIMITED,"2,144.00",20/01/2020
Delivery Units,Adults and Health,Other Agencies - Third Party P,90226050,THE BARNETGROUP LIMITED,"2,304.00",20/01/2020
Delivery Units,Adults and Health,Other Agencies - Third Party P,90226051,THE BARNETGROUP LIMITED,"2,144.00",20/01/2020
Delivery Units,Adults and Health,Other Agencies - Third Party P,90226052,THE BARNETGROUP LIMITED,"2,304.00",20/01/2020
Delivery Units,Adults and Health,Other Agencies - Third Party P,90226053,THE BARNETGROUP LIMITED,"2,144.00",20/01/2020
Delivery Units,Adults and Health,Other Agencies - Third Party P,90226054,THE BARNETGROUP LIMITED,"2,144.00",20/01/2020
Delivery Units,Adults and Health,Other Agencies - Third Party P,90226055,THE BARNETGROUP LIMITED,"2,144.00",20/01/2020
Delivery Units,Adults and Health,Other Agencies - Third Party P,90226056,THE BARNETGROUP LIMITED,"2,144.00",20/01/2020
Delivery Units,Adults and Health,Other Agencies - Third Party P,90226057,THE BARNETGROUP LIMITED,"2,144.00",20/01/2020
Delivery Units,Adults and Health,Other Agencies - Third Party P,90226058,THE BARNETGROUP LIMITED,"2,304.00",20/01/2020
Delivery Units,Adults and Health,Other Agencies - Third Party P,90226059,THE BARNETGROUP LIMITED,"2,144.00",20/01/2020
Delivery Units,Adults and Health,Other Agencies - Third Party P,90226060,THE BARNETGROUP LIMITED,"2,304.00",20/01/2020
Delivery Units,Adults and Health,Other Agencies - Third Party P,90226061,THE BARNETGROUP LIMITED,"2,304.00",20/01/2020
Delivery Units,Adults and Health,Other Agencies - Third Party P,90226062,THE BARNETGROUP LIMITED,"2,694.00",20/01/2020
Delivery Units,Adults and Health,Other Agencies - Third Party P,90226063,THE BARNETGROUP LIMITED,"45,280.00",20/01/2020
Delivery Units,Adults and Health,Other Agencies - Third Party P,90226122,AARON COURT CARE HOME,"2,216.41",20/01/2020
Delivery Units,Adults and Health,Other Agencies - Third Party P,90227582,AARON COURT CARE HOME,"2,216.41",24/01/2020
Delivery Units,Adults and Health,Other Agencies - Third Party P,90227563,Belmont Lodge Care Centre,"2,418.04",24/01/2020
Delivery Units,Adults and Health,Other Agencies - Third Party P,90228342,Karuna Manor,"4,207.14",27/01/2020
Delivery Units,Adults and Health,Other Agencies - Third Party P,90226165,Angel Healthcare Ltd - Glenmuir House,"4,607.68",21/01/2020
Delivery Units,Adults and Health,Other Agencies - Third Party P,90222308,The Windmill Care Home,"1,872.40",06/01/2020
Delivery Units,Adults and Health,Other Agencies - Third Party P,90227538,Sonnet Care Homes (Essex) Ltd,"4,871.43",24/01/2020
Delivery Units,Adults and Health,Other Agencies - Third Party P,90226138,GCH (Hertfordshire) Ltd T/A,"2,414.68",20/01/2020
Delivery Units,Adults and Health,Other Agencies - Third Party P,90227583,Heathcote Care Home,"4,139.29",24/01/2020
Delivery Units,Adults and Health,Other Agencies - Third Party P,90225425,GCH (North London) t/a The Tudors,"2,300.00",15/01/2020
Delivery Units,Adults and Health,Other Agencies - Third Party P,90228052,Wilton House Ltd,"2,724.46",27/01/2020
Delivery Units,Adults and Health,Other Agencies - Third Party P,90228053,Wilton House Ltd,"5,157.46",27/01/2020
Delivery Units,Adults and Health,Other Agencies - Third Party P,90229439,Wilton House Ltd,"2,621.01",30/01/2020
Delivery Units,Adults and Health,Other Agencies - Third Party P,90229440,Wilton House Ltd,"2,611.48",30/01/2020
Delivery Units,Adults and Health,Other Agencies - Third Party P,90222504,HC-One Oval LTD,"2,094.52",06/01/2020
Delivery Units,Adults and Health,Other Agencies - Third Party P,90222505,HC-One Oval LTD,"2,094.52",06/01/2020
Delivery Units,Adults and Health,Other Agencies - Third Party P,90222506,HC-One Oval LTD,"2,094.52",06/01/2020
Delivery Units,Adults and Health,Other Agencies - Third Party P,90222507,HC-One Oval LTD,"2,094.52",06/01/2020
Delivery Units,Adults and Health,Other Agencies - Third Party P,90222508,HC-One Oval LTD,"2,094.52",06/01/2020
Delivery Units,Adults and Health,Other Agencies - Third Party P,90224861,HC-One Oval LTD,"2,178.32",10/01/2020
Delivery Units,Adults and Health,Other Agencies - Third Party P,90227547,Country Court Care Homes t/a Lyle House,"3,764.29",24/01/2020
Delivery Units,Adults and Health,Other Agencies - Third Party P,90228011,Jackson Care Limited,"5,314.29",27/01/2020
Delivery Units,Adults and Health,Other Agencies - Third Party P,90224670,A.H.J. David Ltd t/a Florence House,"3,200.00",10/01/2020
Delivery Units,Adults and Health,Other Agencies - Third Party P,90227501,Safequarter South Ltd,"2,601.87",23/01/2020
Delivery Units,Adults and Health,Other Agencies - Third Party P,90228060,FREMANTLE TRUST,"16,392.86",27/01/2020
Delivery Units,Adults and Health,Other Agencies - Third Party P,90227955,Z & M CARE LTD,"2,600.00",24/01/2020
Delivery Units,Adults and Health,Other Agencies - Third Party P,90228212,Alexandra House (Runwood Homes),"2,262.69",27/01/2020
Delivery Units,Adults and Health,Other Agencies - Third Party P,90228213,Alexandra House (Runwood Homes),"2,189.70",27/01/2020
Delivery Units,Adults and Health,Other Agencies - Third Party P,90228214,Alexandra House (Runwood Homes),"2,262.69",27/01/2020
Delivery Units,Adults and Health,Other Agencies - Third Party P,90214680,B & M Care (The Radley Care Home),"-3,728.57",21/01/2020
Delivery Units,Adults and Health,Other Agencies - Third Party P,90226988,B & M Care (The Radley Care Home),"3,857.14",21/01/2020
Delivery Units,Adults and Health,Other Agencies - Third Party P,90222528,South Coast Care Homes Ltd,"2,568.57",06/01/2020
Delivery Units,Adults and Health,Other Agencies - Third Party P,90228012,South Coast Care Homes Ltd,"2,568.57",27/01/2020
Delivery Units,Adults and Health,Direct Transfer Payments to So,90223076,REDACTED - PERSONAL DATA,"2,931.20",06/01/2020
Delivery Units,Adults and Health,Direct Transfer Payments to So,90223038,REDACTED - PERSONAL DATA,"3,846.40",06/01/2020
Delivery Units,Adults and Health,Direct Transfer Payments to So,90222851,REDACTED - PERSONAL DATA,"3,834.44",06/01/2020
Delivery Units,Adults and Health,Direct Transfer Payments to So,90223177,REDACTED - PERSONAL DATA,240.00,06/01/2020
Delivery Units,Adults and Health,Direct Transfer Payments to So,90222743,REDACTED - PERSONAL DATA,295.68,06/01/2020
Delivery Units,Adults and Health,Direct Transfer Payments to So,90223530,REDACTED - PERSONAL DATA,"1,560.72",06/01/2020
Delivery Units,Adults and Health,Direct Transfer Payments to So,90222672,REDACTED - PERSONAL DATA,961.60,06/01/2020
Delivery Units,Adults and Health,Direct Transfer Payments to So,90223505,REDACTED - PERSONAL DATA,144.24,06/01/2020
Delivery Units,Adults and Health,Direct Transfer Payments to So,90222721,REDACTED - PERSONAL DATA,"2,638.76",06/01/2020
Delivery Units,Adults and Health,Direct Transfer Payments to So,90223010,REDACTED - PERSONAL DATA,"1,185.32",06/01/2020
Delivery Units,Adults and Health,Direct Transfer Payments to So,90223028,REDACTED - PERSONAL DATA,795.56,06/01/2020
Delivery Units,Adults and Health,Direct Transfer Payments to So,90222852,REDACTED - PERSONAL DATA,852.76,06/01/2020
Delivery Units,Adults and Health,Direct Transfer Payments to So,90223095,REDACTED - PERSONAL DATA,889.48,06/01/2020
Delivery Units,Adults and Health,Direct Transfer Payments to So,90222727,REDACTED - PERSONAL DATA,611.40,06/01/2020
Delivery Units,Adults and Health,Direct Transfer Payments to So,90222793,REDACTED - PERSONAL DATA,"2,703.12",06/01/2020
Delivery Units,Adults and Health,Direct Transfer Payments to So,90223557,REDACTED - PERSONAL DATA,349.12,06/01/2020
Delivery Units,Adults and Health,Direct Transfer Payments to So,90223232,REDACTED - PERSONAL DATA,377.88,06/01/2020
Delivery Units,Adults and Health,Direct Transfer Payments to So,90223352,REDACTED - PERSONAL DATA,"2,056.84",06/01/2020
Delivery Units,Adults and Health,Direct Transfer Payments to So,90222885,REDACTED - PERSONAL DATA,"1,143.16",06/01/2020
Delivery Units,Adults and Health,Direct Transfer Payments to So,90224637,REDACTED - PERSONAL DATA,"2,300.87",09/01/2020
Delivery Units,Adults and Health,Direct Transfer Payments to So,90223466,REDACTED - PERSONAL DATA,"2,933.80",06/01/2020
Delivery Units,Adults and Health,Direct Transfer Payments to So,90223046,REDACTED - PERSONAL DATA,"1,545.48",06/01/2020
Delivery Units,Adults and Health,Direct Transfer Payments to So,90222706,REDACTED - PERSONAL DATA,"1,699.72",06/01/2020
Delivery Units,Adults and Health,Direct Transfer Payments to So,90223559,REDACTED - PERSONAL DATA,"1,260.00",06/01/2020
Delivery Units,Adults and Health,Fees and Charges,90222940,REDACTED - PERSONAL DATA,-428.72,06/01/2020
Delivery Units,Adults and Health,Direct Transfer Payments to So,90223387,REDACTED - PERSONAL DATA,640.00,06/01/2020
Delivery Units,Adults and Health,Direct Transfer Payments to So,90223473,REDACTED - PERSONAL DATA,"1,029.76",06/01/2020
Delivery Units,Adults and Health,Direct Transfer Payments to So,90223055,REDACTED - PERSONAL DATA,351.52,06/01/2020
Delivery Units,Adults and Health,Direct Transfer Payments to So,90223440,REDACTED - PERSONAL DATA,"1,353.04",06/01/2020
Delivery Units,Adults and Health,Direct Transfer Payments to So,90224001,REDACTED - PERSONAL DATA,257.15,06/01/2020
Delivery Units,Adults and Health,Direct Transfer Payments to So,90223454,REDACTED - PERSONAL DATA,490.04,06/01/2020
Delivery Units,Adults and Health,Direct Transfer Payments to So,90223122,REDACTED - PERSONAL DATA,975.36,06/01/2020
Delivery Units,Adults and Health,Direct Transfer Payments to So,90223000,REDACTED - PERSONAL DATA,800.00,06/01/2020
Delivery Units,Adults and Health,Direct Transfer Payments to So,90224003,REDACTED - PERSONAL DATA,-200.00,06/01/2020
Delivery Units,Adults and Health,Direct Transfer Payments to So,90223128,REDACTED - PERSONAL DATA,"2,349.16",06/01/2020
Delivery Units,Adults and Health,Direct Transfer Payments to So,90223261,REDACTED - PERSONAL DATA,966.40,06/01/2020
Delivery Units,Adults and Health,Direct Transfer Payments to So,90223462,REDACTED - PERSONAL DATA,480.80,06/01/2020
Delivery Units,Adults and Health,Direct Transfer Payments to So,90223262,REDACTED - PERSONAL DATA,"3,444.00",06/01/2020
Delivery Units,Adults and Health,Direct Transfer Payments to So,90223464,REDACTED - PERSONAL DATA,451.92,06/01/2020
Delivery Units,Adults and Health,Direct Transfer Payments to So,90223082,REDACTED - PERSONAL DATA,649.08,06/01/2020
Delivery Units,Adults and Health,Direct Transfer Payments to So,90223143,REDACTED - PERSONAL DATA,348.00,06/01/2020
Delivery Units,Adults and Health,Direct Transfer Payments to So,90222968,REDACTED - PERSONAL DATA,547.08,06/01/2020
Delivery Units,Adults and Health,Direct Transfer Payments to So,90223468,REDACTED - PERSONAL DATA,"4,093.84",06/01/2020
Delivery Units,Adults and Health,Direct Transfer Payments to So,90222909,REDACTED - PERSONAL DATA,700.00,06/01/2020
Delivery Units,Adults and Health,Direct Transfer Payments to So,90222932,REDACTED - PERSONAL DATA,"1,560.72",06/01/2020
Delivery Units,Adults and Health,Direct Transfer Payments to So,90222972,REDACTED - PERSONAL DATA,560.00,06/01/2020
Delivery Units,Adults and Health,Direct Transfer Payments to So,90223441,REDACTED - PERSONAL DATA,"2,316.96",06/01/2020
Delivery Units,Adults and Health,Direct Transfer Payments to So,90223149,REDACTED - PERSONAL DATA,"1,431.96",06/01/2020
Delivery Units,Adults and Health,Direct Transfer Payments to So,90222914,REDACTED - PERSONAL DATA,410.96,06/01/2020
Delivery Units,Adults and Health,Direct Transfer Payments to So,90222913,REDACTED - PERSONAL DATA,360.60,06/01/2020
Delivery Units,Adults and Health,Direct Transfer Payments to So,90223499,REDACTED - PERSONAL DATA,"1,208.00",06/01/2020
Delivery Units,Adults and Health,Fees and Charges,90225780,REDACTED - PERSONAL DATA,"21,562.61",16/01/2020
Delivery Units,Adults and Health,Direct Transfer Payments to So,90222930,REDACTED - PERSONAL DATA,"4,022.52",06/01/2020
Delivery Units,Adults and Health,Direct Transfer Payments to So,90223511,REDACTED - PERSONAL DATA,"3,279.20",06/01/2020
Delivery Units,Adults and Health,Direct Transfer Payments to So,90223158,REDACTED - PERSONAL DATA,960.00,06/01/2020
Delivery Units,Adults and Health,Direct Transfer Payments to So,90222922,REDACTED - PERSONAL DATA,"2,066.00",06/01/2020
Delivery Units,Adults and Health,Direct Transfer Payments to So,90223482,REDACTED - PERSONAL DATA,"2,092.96",06/01/2020
Delivery Units,Adults and Health,Direct Transfer Payments to So,90223096,REDACTED - PERSONAL DATA,231.40,06/01/2020
Delivery Units,Adults and Health,Direct Transfer Payments to So,90223524,REDACTED - PERSONAL DATA,810.00,06/01/2020
Delivery Units,Adults and Health,Direct Transfer Payments to So,90222926,REDACTED - PERSONAL DATA,478.48,06/01/2020
Delivery Units,Adults and Health,Direct Transfer Payments to So,90223303,REDACTED - PERSONAL DATA,944.00,06/01/2020
Delivery Units,Adults and Health,Direct Transfer Payments to So,90223163,REDACTED - PERSONAL DATA,"2,400.00",06/01/2020
Delivery Units,Adults and Health,Direct Transfer Payments to So,90222987,REDACTED - PERSONAL DATA,772.32,06/01/2020
Delivery Units,Adults and Health,Direct Transfer Payments to So,90223396,REDACTED - PERSONAL DATA,"1,586.48",06/01/2020
Delivery Units,Adults and Health,Direct Transfer Payments to So,90222936,REDACTED - PERSONAL DATA,"2,518.48",06/01/2020
Delivery Units,Adults and Health,Direct Transfer Payments to So,90223488,REDACTED - PERSONAL DATA,"1,351.56",06/01/2020
Delivery Units,Adults and Health,Direct Transfer Payments to So,90222937,REDACTED - PERSONAL DATA,321.80,06/01/2020
Delivery Units,Adults and Health,Direct Transfer Payments to So,90223370,REDACTED - PERSONAL DATA,390.00,06/01/2020
Delivery Units,Adults and Health,Direct Transfer Payments to So,90223171,REDACTED - PERSONAL DATA,"1,582.00",06/01/2020
Delivery Units,Adults and Health,Direct Transfer Payments to So,90222943,REDACTED - PERSONAL DATA,136.00,06/01/2020
Delivery Units,Adults and Health,Direct Transfer Payments to So,90223172,REDACTED - PERSONAL DATA,"4,608.04",06/01/2020
Delivery Units,Adults and Health,Direct Transfer Payments to So,90223175,REDACTED - PERSONAL DATA,"2,520.00",06/01/2020
Delivery Units,Adults and Health,Direct Transfer Payments to So,90223506,REDACTED - PERSONAL DATA,"1,351.56",06/01/2020
Delivery Units,Adults and Health,Direct Transfer Payments to So,90223217,REDACTED - PERSONAL DATA,"2,300.00",06/01/2020
Delivery Units,Adults and Health,Direct Transfer Payments to So,90223410,REDACTED - PERSONAL DATA,589.68,06/01/2020
Delivery Units,Adults and Health,Direct Transfer Payments to So,90223999,REDACTED - PERSONAL DATA,988.64,06/01/2020
Delivery Units,Adults and Health,Direct Transfer Payments to So,90223309,REDACTED - PERSONAL DATA,730.92,06/01/2020
Delivery Units,Adults and Health,Direct Transfer Payments to So,90223541,REDACTED - PERSONAL DATA,"1,346.12",06/01/2020
Delivery Units,Adults and Health,Direct Transfer Payments to So,90223381,REDACTED - PERSONAL DATA,140.00,06/01/2020
Delivery Units,Adults and Health,Direct Transfer Payments to So,90223186,REDACTED - PERSONAL DATA,112.00,06/01/2020
Delivery Units,Adults and Health,Direct Transfer Payments to So,90223424,REDACTED - PERSONAL DATA,"1,238.92",06/01/2020
Delivery Units,Adults and Health,Direct Transfer Payments to So,90223380,REDACTED - PERSONAL DATA,903.92,06/01/2020
Delivery Units,Adults and Health,Direct Transfer Payments to So,90223237,REDACTED - PERSONAL DATA,"2,796.44",06/01/2020
Delivery Units,Adults and Health,Direct Transfer Payments to So,90223427,REDACTED - PERSONAL DATA,482.72,06/01/2020
Delivery Units,Adults and Health,Direct Transfer Payments to So,90223233,REDACTED - PERSONAL DATA,"1,238.92",06/01/2020
Delivery Units,Adults and Health,Direct Transfer Payments to So,90223199,REDACTED - PERSONAL DATA,"1,194.24",06/01/2020
Delivery Units,Adults and Health,Direct Transfer Payments to So,90223244,REDACTED - PERSONAL DATA,"3,000.00",06/01/2020
Delivery Units,Adults and Health,Direct Transfer Payments to So,90223248,REDACTED - PERSONAL DATA,"2,843.24",06/01/2020
Delivery Units,Adults and Health,Direct Transfer Payments to So,90223384,REDACTED - PERSONAL DATA,"2,751.32",06/01/2020
Delivery Units,Adults and Health,Direct Transfer Payments to So,90223251,REDACTED - PERSONAL DATA,"2,781.72",06/01/2020
Delivery Units,Adults and Health,Direct Transfer Payments to So,90223398,REDACTED - PERSONAL DATA,586.96,06/01/2020
Delivery Units,Adults and Health,Direct Transfer Payments to So,90223443,REDACTED - PERSONAL DATA,675.80,06/01/2020
Delivery Units,Adults and Health,Direct Transfer Payments to So,90223562,REDACTED - PERSONAL DATA,"2,331.60",06/01/2020
Delivery Units,Adults and Health,Direct Transfer Payments to So,90223254,REDACTED - PERSONAL DATA,"1,802.08",06/01/2020
Delivery Units,Adults and Health,Direct Transfer Payments to So,90223208,REDACTED - PERSONAL DATA,"1,351.56",06/01/2020
Delivery Units,Adults and Health,Direct Transfer Payments to So,90223399,REDACTED - PERSONAL DATA,"2,375.08",06/01/2020
Delivery Units,Adults and Health,Direct Transfer Payments to So,90223568,REDACTED - PERSONAL DATA,"1,350.80",06/01/2020
Delivery Units,Adults and Health,Direct Transfer Payments to So,90224006,REDACTED - PERSONAL DATA,215.26,06/01/2020
Delivery Units,Adults and Health,Direct Transfer Payments to So,90223449,REDACTED - PERSONAL DATA,"3,200.00",06/01/2020
Delivery Units,Adults and Health,Direct Transfer Payments to So,90223452,REDACTED - PERSONAL DATA,"4,200.00",06/01/2020
Delivery Units,Adults and Health,Direct Transfer Payments to So,90224629,REDACTED - PERSONAL DATA,"1,238.92",09/01/2020
Delivery Units,Adults and Health,Direct Transfer Payments to So,90224632,REDACTED - PERSONAL DATA,"1,238.92",09/01/2020
Delivery Units,Adults and Health,Direct Transfer Payments to So,90223204,REDACTED - PERSONAL DATA,792.88,06/01/2020
Delivery Units,Adults and Health,Direct Transfer Payments to So,90223395,REDACTED - PERSONAL DATA,384.64,06/01/2020
Delivery Units,Adults and Health,Direct Transfer Payments to So,90224635,REDACTED - PERSONAL DATA,"2,070.00",09/01/2020
Delivery Units,Adults and Health,Fees and Charges,90226796,REDACTED - PERSONAL DATA,0.17,23/01/2020
Delivery Units,Adults and Health,Fees and Charges,90226797,REDACTED - PERSONAL DATA,-213.42,21/01/2020
Delivery Units,Adults and Health,90223219,Direct Transfer Payments to So,REDACTED - PERSONAL DATA,"1,550.40",31/01/2020
Delivery Units,Adults and Health,90223234,Direct Transfer Payments to So,REDACTED - PERSONAL DATA,215.40,31/01/2020
Delivery Units,Adults and Health,90223307,Direct Transfer Payments to So,REDACTED - PERSONAL DATA,935.68,31/01/2020
Delivery Units,Adults and Health,90223308,Direct Transfer Payments to So,REDACTED - PERSONAL DATA,"1,071.92",31/01/2020
Delivery Units,Adults and Health,90223310,Direct Transfer Payments to So,REDACTED - PERSONAL DATA,"1,022.04",31/01/2020
Delivery Units,Adults and Health,90223375,Direct Transfer Payments to So,REDACTED - PERSONAL DATA,583.84,31/01/2020
Delivery Units,Adults and Health,90223379,Direct Transfer Payments to So,REDACTED - PERSONAL DATA,"1,196.46",31/01/2020
Delivery Units,Adults and Health,90223412,Direct Transfer Payments to So,REDACTED - PERSONAL DATA,990.64,31/01/2020
Delivery Units,Adults and Health,90223413,Direct Transfer Payments to So,REDACTED - PERSONAL DATA,"1,084.98",31/01/2020
Delivery Units,Adults and Health,90223509,Direct Transfer Payments to So,REDACTED - PERSONAL DATA,"1,062.00",31/01/2020
Delivery Units,Adults and Health,Other Agencies - Third Party P,90229485,WESTMINSTER HOMECARE LTD,948.50,30/01/2020
Delivery Units,Adults and Health,Other Agencies - Third Party P,90229486,WESTMINSTER HOMECARE LTD,887.94,30/01/2020
Delivery Units,Adults and Health,Other Agencies - Third Party P,90229488,WESTMINSTER HOMECARE LTD,586.05,30/01/2020
Delivery Units,Adults and Health,Other Agencies - Third Party P,90229489,WESTMINSTER HOMECARE LTD,253.00,30/01/2020
Delivery Units,Adults and Health,Other Agencies - Third Party P,90229490,WESTMINSTER HOMECARE LTD,795.07,30/01/2020
Delivery Units,Adults and Health,Other Agencies - Third Party P,90229491,WESTMINSTER HOMECARE LTD,349.98,30/01/2020
Delivery Units,Adults and Health,Other Agencies - Third Party P,90229492,WESTMINSTER HOMECARE LTD,164.39,30/01/2020
Delivery Units,Adults and Health,Other Agencies - Third Party P,90229493,WESTMINSTER HOMECARE LTD,331.78,30/01/2020
Delivery Units,Adults and Health,Other Agencies - Third Party P,90229495,WESTMINSTER HOMECARE LTD,706.72,30/01/2020
Delivery Units,Adults and Health,Other Agencies - Third Party P,90229496,WESTMINSTER HOMECARE LTD,809.42,30/01/2020
Delivery Units,Adults and Health,Other Agencies - Third Party P,90229497,WESTMINSTER HOMECARE LTD,67.44,30/01/2020
Delivery Units,Adults and Health,Other Agencies - Third Party P,90229498,WESTMINSTER HOMECARE LTD,657.58,30/01/2020
Delivery Units,Adults and Health,Other Agencies - Third Party P,90229499,WESTMINSTER HOMECARE LTD,67.44,30/01/2020
Delivery Units,Adults and Health,Other Agencies - Third Party P,90229500,WESTMINSTER HOMECARE LTD,"1,104.77",30/01/2020
Delivery Units,Adults and Health,Other Agencies - Third Party P,90229501,WESTMINSTER HOMECARE LTD,497.60,30/01/2020
Delivery Units,Adults and Health,Other Agencies - Third Party P,90229502,WESTMINSTER HOMECARE LTD,577.59,30/01/2020
Delivery Units,Adults and Health,Other Agencies - Third Party P,90229503,WESTMINSTER HOMECARE LTD,25.29,30/01/2020
Delivery Units,Adults and Health,Other Agencies - Third Party P,90229506,WESTMINSTER HOMECARE LTD,134.08,30/01/2020
Delivery Units,Adults and Health,Other Agencies - Third Party P,90229507,WESTMINSTER HOMECARE LTD,"1,380.81",30/01/2020
Delivery Units,Adults and Health,Other Agencies - Third Party P,90229508,WESTMINSTER HOMECARE LTD,"1,397.99",30/01/2020
Delivery Units,Adults and Health,Other Agencies - Third Party P,90229509,WESTMINSTER HOMECARE LTD,577.59,30/01/2020
Delivery Units,Adults and Health,Other Agencies - Third Party P,90229510,WESTMINSTER HOMECARE LTD,"1,037.03",30/01/2020
Delivery Units,Adults and Health,Other Agencies - Third Party P,90229511,WESTMINSTER HOMECARE LTD,248.78,30/01/2020
Delivery Units,Adults and Health,Other Agencies - Third Party P,90229512,WESTMINSTER HOMECARE LTD,240.27,30/01/2020
Delivery Units,Adults and Health,Other Agencies - Third Party P,90229513,WESTMINSTER HOMECARE LTD,214.98,30/01/2020
Delivery Units,Adults and Health,Other Agencies - Third Party P,90229514,WESTMINSTER HOMECARE LTD,410.24,30/01/2020
Delivery Units,Adults and Health,Other Agencies - Third Party P,90229515,WESTMINSTER HOMECARE LTD,172.88,30/01/2020
Delivery Units,Adults and Health,Other Agencies - Third Party P,90229516,WESTMINSTER HOMECARE LTD,295.21,30/01/2020
Delivery Units,Adults and Health,Other Agencies - Third Party P,90229519,WESTMINSTER HOMECARE LTD,937.55,30/01/2020
Delivery Units,Adults and Health,Other Agencies - Third Party P,90229520,WESTMINSTER HOMECARE LTD,"1,651.72",30/01/2020
Delivery Units,Adults and Health,Other Agencies - Third Party P,90229521,WESTMINSTER HOMECARE LTD,160.23,30/01/2020
Delivery Units,Adults and Health,Other Agencies - Third Party P,90229523,WESTMINSTER HOMECARE LTD,341.55,30/01/2020
Delivery Units,Adults and Health,Other Agencies - Third Party P,90229524,WESTMINSTER HOMECARE LTD,67.44,30/01/2020
Delivery Units,Adults and Health,Other Agencies - Third Party P,90229525,WESTMINSTER HOMECARE LTD,434.27,30/01/2020
Delivery Units,Adults and Health,Other Agencies - Third Party P,90229526,WESTMINSTER HOMECARE LTD,"1,049.68",30/01/2020
Delivery Units,Adults and Health,Other Agencies - Third Party P,60132619,ENARA COMMUNITY CARE,"2,617.20",30/01/2020
Delivery Units,Adults and Health,Other Agencies - Third Party P,60142134,ENARA COMMUNITY CARE,"2,527.00",30/01/2020
Delivery Units,Adults and Health,Other Agencies - Third Party P,60142206,ENARA COMMUNITY CARE,"2,527.00",30/01/2020
Delivery Units,Adults and Health,Other Agencies - Third Party P,1000069002,ENARA COMMUNITY CARE,"2,527.00",30/01/2020
Delivery Units,Adults and Health,Other Agencies - Third Party P,1000069703,ENARA COMMUNITY CARE,"2,527.00",30/01/2020
Delivery Units,Adults and Health,Other Agencies - Third Party P,1000073402,ENARA COMMUNITY CARE,"2,527.00",06/01/2020
Delivery Units,Adults and Health,Other Agencies - Third Party P,90224314,CAREWATCH (BARNET),120.26,08/01/2020
Delivery Units,Adults and Health,Other Agencies - Third Party P,90224315,CAREWATCH (BARNET),51.56,08/01/2020
Delivery Units,Adults and Health,Other Agencies - Third Party P,90224316,CAREWATCH (BARNET),257.73,08/01/2020
Delivery Units,Adults and Health,Other Agencies - Third Party P,90224317,CAREWATCH (BARNET),180.39,08/01/2020
Delivery Units,Adults and Health,Other Agencies - Third Party P,90224318,CAREWATCH (BARNET),781.90,08/01/2020
Delivery Units,Adults and Health,Other Agencies - Third Party P,90224319,CAREWATCH (BARNET),300.72,08/01/2020
Delivery Units,Adults and Health,Other Agencies - Third Party P,90224320,CAREWATCH (BARNET),240.52,08/01/2020
Delivery Units,Adults and Health,Other Agencies - Third Party P,90224321,CAREWATCH (BARNET),180.39,08/01/2020
Delivery Units,Adults and Health,Other Agencies - Third Party P,90224322,CAREWATCH (BARNET),34.36,08/01/2020
Delivery Units,Adults and Health,Other Agencies - Third Party P,90224323,CAREWATCH (BARNET),17.18,08/01/2020
Delivery Units,Adults and Health,Other Agencies - Third Party P,90224324,CAREWATCH (BARNET),300.72,08/01/2020
Delivery Units,Adults and Health,Other Agencies - Third Party P,90224325,CAREWATCH (BARNET),90.23,08/01/2020
Delivery Units,Adults and Health,Other Agencies - Third Party P,90224326,CAREWATCH (BARNET),150.36,08/01/2020
Delivery Units,Adults and Health,Other Agencies - Third Party P,90224327,CAREWATCH (BARNET),270.62,08/01/2020
Delivery Units,Adults and Health,Other Agencies - Third Party P,90224328,CAREWATCH (BARNET),120.26,08/01/2020
Delivery Units,Adults and Health,Other Agencies - Third Party P,90224329,CAREWATCH (BARNET),253.44,08/01/2020
Delivery Units,Adults and Health,Other Agencies - Third Party P,90224330,CAREWATCH (BARNET),360.85,08/01/2020
Delivery Units,Adults and Health,Other Agencies - Third Party P,90224331,CAREWATCH (BARNET),270.62,08/01/2020
Delivery Units,Adults and Health,Other Agencies - Third Party P,90224332,CAREWATCH (BARNET),240.52,08/01/2020
Delivery Units,Adults and Health,Other Agencies - Third Party P,90224333,CAREWATCH (BARNET),180.39,08/01/2020
Delivery Units,Adults and Health,Other Agencies - Third Party P,90224334,CAREWATCH (BARNET),287.80,08/01/2020
Delivery Units,Adults and Health,Other Agencies - Third Party P,90224335,CAREWATCH (BARNET),210.49,08/01/2020
Delivery Units,Adults and Health,Other Agencies - Third Party P,90224336,CAREWATCH (BARNET),438.09,08/01/2020
Delivery Units,Adults and Health,Other Agencies - Third Party P,90224337,CAREWATCH (BARNET),240.59,08/01/2020
Delivery Units,Adults and Health,Other Agencies - Third Party P,90224338,CAREWATCH (BARNET),180.39,08/01/2020
Delivery Units,Adults and Health,Other Agencies - Third Party P,90224340,CAREWATCH (BARNET),266.29,08/01/2020
Delivery Units,Adults and Health,Other Agencies - Third Party P,90224341,CAREWATCH (BARNET),240.52,08/01/2020
Delivery Units,Adults and Health,Other Agencies - Third Party P,90224342,CAREWATCH (BARNET),519.71,08/01/2020
Delivery Units,Adults and Health,Other Agencies - Third Party P,90224343,CAREWATCH (BARNET),150.36,08/01/2020
Delivery Units,Adults and Health,Other Agencies - Third Party P,90224344,CAREWATCH (BARNET),708.68,08/01/2020
Delivery Units,Adults and Health,Other Agencies - Third Party P,90224345,CAREWATCH (BARNET),51.54,08/01/2020
Delivery Units,Adults and Health,Other Agencies - Third Party P,90224346,CAREWATCH (BARNET),116.01,08/01/2020
Delivery Units,Adults and Health,Other Agencies - Third Party P,90224347,CAREWATCH (BARNET),73.03,08/01/2020
Delivery Units,Adults and Health,Other Agencies - Third Party P,90224349,CAREWATCH (BARNET),287.77,08/01/2020
Delivery Units,Adults and Health,Other Agencies - Third Party P,90224350,CAREWATCH (BARNET),287.77,08/01/2020
Delivery Units,Adults and Health,Other Agencies - Third Party P,90224351,CAREWATCH (BARNET),167.52,08/01/2020
Delivery Units,Adults and Health,Other Agencies - Third Party P,90224352,CAREWATCH (BARNET),111.70,08/01/2020
Delivery Units,Adults and Health,Other Agencies - Third Party P,90224353,CAREWATCH (BARNET),163.21,08/01/2020
Delivery Units,Adults and Health,Other Agencies - Third Party P,90224354,CAREWATCH (BARNET),90.23,08/01/2020
Delivery Units,Adults and Health,Other Agencies - Third Party P,90224356,CAREWATCH (BARNET),133.15,08/01/2020
Delivery Units,Adults and Health,Other Agencies - Third Party P,90224357,CAREWATCH (BARNET),85.93,08/01/2020
Delivery Units,Adults and Health,Other Agencies - Third Party P,90224359,CAREWATCH (BARNET),201.90,08/01/2020
Delivery Units,Adults and Health,Other Agencies - Third Party P,90224360,CAREWATCH (BARNET),219.09,08/01/2020
Delivery Units,Adults and Health,Other Agencies - Third Party P,90224361,CAREWATCH (BARNET),197.58,08/01/2020
Delivery Units,Adults and Health,Other Agencies - Third Party P,90224362,CAREWATCH (BARNET),287.79,08/01/2020
Delivery Units,Adults and Health,Other Agencies - Third Party P,90224363,CAREWATCH (BARNET),244.84,08/01/2020
Delivery Units,Adults and Health,Other Agencies - Third Party P,90224364,CAREWATCH (BARNET),25.78,08/01/2020
Delivery Units,Adults and Health,Other Agencies - Third Party P,90224365,CAREWATCH (BARNET),25.78,08/01/2020
Delivery Units,Adults and Health,Other Agencies - Third Party P,90224366,CAREWATCH (BARNET),309.24,08/01/2020
Delivery Units,Adults and Health,Other Agencies - Third Party P,90224367,CAREWATCH (BARNET),244.83,08/01/2020
Delivery Units,Adults and Health,Other Agencies - Third Party P,90224368,CAREWATCH (BARNET),94.49,08/01/2020
Delivery Units,Adults and Health,Other Agencies - Third Party P,90224369,CAREWATCH (BARNET),120.26,08/01/2020
Delivery Units,Adults and Health,Other Agencies - Third Party P,90224370,CAREWATCH (BARNET),438.14,08/01/2020
Delivery Units,Adults and Health,Other Agencies - Third Party P,90224373,CAREWATCH (BARNET),107.40,08/01/2020
Delivery Units,Adults and Health,Other Agencies - Third Party P,90224374,CAREWATCH (BARNET),30.07,08/01/2020
Delivery Units,Adults and Health,Other Agencies - Third Party P,90224375,CAREWATCH (BARNET),12.89,08/01/2020
Delivery Units,Adults and Health,Other Agencies - Third Party P,90224376,CAREWATCH (BARNET),51.56,08/01/2020
Delivery Units,Adults and Health,Other Agencies - Third Party P,90224378,CAREWATCH (BARNET),120.26,08/01/2020
Delivery Units,Adults and Health,Other Agencies - Third Party P,90224379,CAREWATCH (BARNET),90.23,08/01/2020
Delivery Units,Adults and Health,Other Agencies - Third Party P,90224380,CAREWATCH (BARNET),85.93,08/01/2020
Delivery Units,Adults and Health,Other Agencies - Third Party P,90224381,CAREWATCH (BARNET),12.89,08/01/2020
Delivery Units,Adults and Health,Other Agencies - Third Party P,90224382,CAREWATCH (BARNET),279.23,08/01/2020
Delivery Units,Adults and Health,Other Agencies - Third Party P,90224383,CAREWATCH (BARNET),292.08,08/01/2020
Delivery Units,Adults and Health,Other Agencies - Third Party P,90224384,CAREWATCH (BARNET),219.05,08/01/2020
Delivery Units,Adults and Health,Other Agencies - Third Party P,90224385,CAREWATCH (BARNET),51.54,08/01/2020
Delivery Units,Adults and Health,Other Agencies - Third Party P,90224386,CAREWATCH (BARNET),262.00,08/01/2020
Delivery Units,Adults and Health,Other Agencies - Third Party P,90224387,CAREWATCH (BARNET),60.13,08/01/2020
Delivery Units,Adults and Health,Other Agencies - Third Party P,90224388,CAREWATCH (BARNET),206.21,08/01/2020
Delivery Units,Adults and Health,Other Agencies - Third Party P,90224389,CAREWATCH (BARNET),85.92,08/01/2020
Delivery Units,Adults and Health,Other Agencies - Third Party P,90224390,CAREWATCH (BARNET),150.36,08/01/2020
Delivery Units,Adults and Health,Other Agencies - Third Party P,90224393,CAREWATCH (BARNET),51.56,08/01/2020
Delivery Units,Adults and Health,Other Agencies - Third Party P,90224394,CAREWATCH (BARNET),712.97,08/01/2020
Delivery Units,Adults and Health,Other Agencies - Third Party P,90224395,CAREWATCH (BARNET),257.73,08/01/2020
Delivery Units,Adults and Health,Other Agencies - Third Party P,90224396,CAREWATCH (BARNET),781.90,08/01/2020
Delivery Units,Adults and Health,Other Agencies - Third Party P,90224397,CAREWATCH (BARNET),116.00,08/01/2020
Delivery Units,Adults and Health,Other Agencies - Third Party P,90224398,CAREWATCH (BARNET),300.65,08/01/2020
Delivery Units,Adults and Health,Other Agencies - Third Party P,90224399,CAREWATCH (BARNET),300.72,08/01/2020
Delivery Units,Adults and Health,Other Agencies - Third Party P,90224400,CAREWATCH (BARNET),34.36,08/01/2020
Delivery Units,Adults and Health,Other Agencies - Third Party P,90224401,CAREWATCH (BARNET),17.18,08/01/2020
Delivery Units,Adults and Health,Other Agencies - Third Party P,90224402,CAREWATCH (BARNET),90.23,08/01/2020
Delivery Units,Adults and Health,Other Agencies - Third Party P,90224403,CAREWATCH (BARNET),150.36,08/01/2020
Delivery Units,Adults and Health,Other Agencies - Third Party P,90224404,CAREWATCH (BARNET),270.62,08/01/2020
Delivery Units,Adults and Health,Other Agencies - Third Party P,90224405,CAREWATCH (BARNET),244.85,08/01/2020
Delivery Units,Adults and Health,Other Agencies - Third Party P,90224406,CAREWATCH (BARNET),253.44,08/01/2020
Delivery Units,Adults and Health,Other Agencies - Third Party P,90224407,CAREWATCH (BARNET),360.85,08/01/2020
Delivery Units,Adults and Health,Other Agencies - Third Party P,90224408,CAREWATCH (BARNET),270.62,08/01/2020
Delivery Units,Adults and Health,Other Agencies - Third Party P,90224409,CAREWATCH (BARNET),120.26,08/01/2020
Delivery Units,Adults and Health,Other Agencies - Third Party P,90224410,CAREWATCH (BARNET),167.53,08/01/2020
Delivery Units,Adults and Health,Other Agencies - Third Party P,90224411,CAREWATCH (BARNET),163.21,08/01/2020
Delivery Units,Adults and Health,Other Agencies - Third Party P,90224412,CAREWATCH (BARNET),287.80,08/01/2020
Delivery Units,Adults and Health,Other Agencies - Third Party P,90224413,CAREWATCH (BARNET),210.49,08/01/2020
Delivery Units,Adults and Health,Other Agencies - Third Party P,90224414,CAREWATCH (BARNET),60.13,08/01/2020
Delivery Units,Adults and Health,Other Agencies - Third Party P,90224415,CAREWATCH (BARNET),438.09,08/01/2020
Delivery Units,Adults and Health,Other Agencies - Third Party P,90224416,CAREWATCH (BARNET),240.59,08/01/2020
Delivery Units,Adults and Health,Other Agencies - Third Party P,90224417,CAREWATCH (BARNET),180.39,08/01/2020
Delivery Units,Adults and Health,Other Agencies - Third Party P,90224419,CAREWATCH (BARNET),266.29,08/01/2020
Delivery Units,Adults and Health,Other Agencies - Third Party P,90224420,CAREWATCH (BARNET),103.08,08/01/2020
Delivery Units,Adults and Health,Other Agencies - Third Party P,90224421,CAREWATCH (BARNET),240.52,08/01/2020
Delivery Units,Adults and Health,Other Agencies - Third Party P,90224422,CAREWATCH (BARNET),541.22,08/01/2020
Delivery Units,Adults and Health,Other Agencies - Third Party P,90224423,CAREWATCH (BARNET),111.70,08/01/2020
Delivery Units,Adults and Health,Other Agencies - Third Party P,90224424,CAREWATCH (BARNET),17.18,08/01/2020
Delivery Units,Adults and Health,Other Agencies - Third Party P,90224425,CAREWATCH (BARNET),167.51,08/01/2020
Delivery Units,Adults and Health,Other Agencies - Third Party P,90224426,CAREWATCH (BARNET),34.37,08/01/2020
Delivery Units,Adults and Health,Other Agencies - Third Party P,90224427,CAREWATCH (BARNET),133.19,08/01/2020
Delivery Units,Adults and Health,Other Agencies - Third Party P,90224429,CAREWATCH (BARNET),257.72,08/01/2020
Delivery Units,Adults and Health,Other Agencies - Third Party P,90224430,CAREWATCH (BARNET),171.81,08/01/2020
Delivery Units,Adults and Health,Other Agencies - Third Party P,90224431,CAREWATCH (BARNET),171.82,08/01/2020
Delivery Units,Adults and Health,Other Agencies - Third Party P,90224432,CAREWATCH (BARNET),180.39,08/01/2020
Delivery Units,Adults and Health,Other Agencies - Third Party P,90224433,CAREWATCH (BARNET),51.55,08/01/2020
Delivery Units,Adults and Health,Other Agencies - Third Party P,90224434,CAREWATCH (BARNET),116.00,08/01/2020
Delivery Units,Adults and Health,Other Agencies - Third Party P,90224435,CAREWATCH (BARNET),193.28,08/01/2020
Delivery Units,Adults and Health,Other Agencies - Third Party P,90224436,CAREWATCH (BARNET),85.93,08/01/2020
Delivery Units,Adults and Health,Other Agencies - Third Party P,90224438,CAREWATCH (BARNET),133.15,08/01/2020
Delivery Units,Adults and Health,Other Agencies - Third Party P,90224439,CAREWATCH (BARNET),85.93,08/01/2020
Delivery Units,Adults and Health,Other Agencies - Third Party P,90224440,CAREWATCH (BARNET),124.58,08/01/2020
Delivery Units,Adults and Health,Other Agencies - Third Party P,90224442,CAREWATCH (BARNET),124.59,08/01/2020
Delivery Units,Adults and Health,Other Agencies - Third Party P,90224443,CAREWATCH (BARNET),214.78,08/01/2020
Delivery Units,Adults and Health,Other Agencies - Third Party P,90224444,CAREWATCH (BARNET),184.68,08/01/2020
Delivery Units,Adults and Health,Other Agencies - Third Party P,90224445,CAREWATCH (BARNET),279.20,08/01/2020
Delivery Units,Adults and Health,Other Agencies - Third Party P,90224446,CAREWATCH (BARNET),12.89,08/01/2020
Delivery Units,Adults and Health,Other Agencies - Third Party P,90224447,CAREWATCH (BARNET),90.23,08/01/2020
Delivery Units,Adults and Health,Other Agencies - Third Party P,90224448,CAREWATCH (BARNET),300.65,08/01/2020
Delivery Units,Adults and Health,Other Agencies - Third Party P,90224449,CAREWATCH (BARNET),227.68,08/01/2020
Delivery Units,Adults and Health,Other Agencies - Third Party P,90224450,CAREWATCH (BARNET),68.72,08/01/2020
Delivery Units,Adults and Health,Other Agencies - Third Party P,90224451,CAREWATCH (BARNET),133.16,08/01/2020
Delivery Units,Adults and Health,Other Agencies - Third Party P,90224452,CAREWATCH (BARNET),115.97,08/01/2020
Delivery Units,Adults and Health,Other Agencies - Third Party P,90224453,CAREWATCH (BARNET),451.04,08/01/2020
Delivery Units,Adults and Health,Other Agencies - Third Party P,90224456,CAREWATCH (BARNET),107.40,08/01/2020
Delivery Units,Adults and Health,Other Agencies - Third Party P,90224457,CAREWATCH (BARNET),25.77,08/01/2020
Delivery Units,Adults and Health,Other Agencies - Third Party P,90224458,CAREWATCH (BARNET),64.45,08/01/2020
Delivery Units,Adults and Health,Other Agencies - Third Party P,90224459,CAREWATCH (BARNET),90.23,08/01/2020
Delivery Units,Adults and Health,Other Agencies - Third Party P,90224460,CAREWATCH (BARNET),90.23,08/01/2020
Delivery Units,Adults and Health,Other Agencies - Third Party P,90224461,CAREWATCH (BARNET),240.52,08/01/2020
Delivery Units,Adults and Health,Other Agencies - Third Party P,90224462,CAREWATCH (BARNET),163.22,08/01/2020
Delivery Units,Adults and Health,Other Agencies - Third Party P,90224463,CAREWATCH (BARNET),25.78,08/01/2020
Delivery Units,Adults and Health,Other Agencies - Third Party P,90224464,CAREWATCH (BARNET),274.92,08/01/2020
Delivery Units,Adults and Health,Other Agencies - Third Party P,90224465,CAREWATCH (BARNET),292.07,08/01/2020
Delivery Units,Adults and Health,Other Agencies - Third Party P,90224466,CAREWATCH (BARNET),236.23,08/01/2020
Delivery Units,Adults and Health,Other Agencies - Third Party P,90224467,CAREWATCH (BARNET),42.95,08/01/2020
Delivery Units,Adults and Health,Other Agencies - Third Party P,90224468,CAREWATCH (BARNET),257.70,08/01/2020
Delivery Units,Adults and Health,Other Agencies - Third Party P,90224469,CAREWATCH (BARNET),201.91,08/01/2020
Delivery Units,Adults and Health,Other Agencies - Third Party P,90224470,CAREWATCH (BARNET),85.93,08/01/2020
Delivery Units,Adults and Health,Other Agencies - Third Party P,90224471,CAREWATCH (BARNET),137.47,08/01/2020
Delivery Units,Adults and Health,Other Agencies - Third Party P,90224474,CAREWATCH (BARNET),240.52,08/01/2020
Delivery Units,Adults and Health,Other Agencies - Third Party P,90224475,CAREWATCH (BARNET),601.30,08/01/2020
Delivery Units,Adults and Health,Other Agencies - Third Party P,90224476,CAREWATCH (BARNET),257.73,08/01/2020
Delivery Units,Adults and Health,Other Agencies - Third Party P,90224477,CAREWATCH (BARNET),253.44,08/01/2020
Delivery Units,Adults and Health,Other Agencies - Third Party P,90224478,CAREWATCH (BARNET),781.90,08/01/2020
Delivery Units,Adults and Health,Other Agencies - Third Party P,90224479,CAREWATCH (BARNET),116.00,08/01/2020
Delivery Units,Adults and Health,Other Agencies - Third Party P,90224480,CAREWATCH (BARNET),300.72,08/01/2020
Delivery Units,Adults and Health,Other Agencies - Third Party P,90224481,CAREWATCH (BARNET),137.44,08/01/2020
Delivery Units,Adults and Health,Other Agencies - Third Party P,90224482,CAREWATCH (BARNET),90.23,08/01/2020
Delivery Units,Adults and Health,Other Agencies - Third Party P,90224483,CAREWATCH (BARNET),150.36,08/01/2020
Delivery Units,Adults and Health,Other Agencies - Third Party P,90224484,CAREWATCH (BARNET),270.62,08/01/2020
Delivery Units,Adults and Health,Other Agencies - Third Party P,90224485,CAREWATCH (BARNET),120.26,08/01/2020
Delivery Units,Adults and Health,Other Agencies - Third Party P,90224486,CAREWATCH (BARNET),253.44,08/01/2020
Delivery Units,Adults and Health,Other Agencies - Third Party P,90224487,CAREWATCH (BARNET),360.85,08/01/2020
Delivery Units,Adults and Health,Other Agencies - Third Party P,90224488,CAREWATCH (BARNET),270.62,08/01/2020
Delivery Units,Adults and Health,Other Agencies - Third Party P,90224489,CAREWATCH (BARNET),240.52,08/01/2020
Delivery Units,Adults and Health,Other Agencies - Third Party P,90224490,CAREWATCH (BARNET),244.85,08/01/2020
Delivery Units,Adults and Health,Other Agencies - Third Party P,90224491,CAREWATCH (BARNET),300.65,08/01/2020
Delivery Units,Adults and Health,Other Agencies - Third Party P,90224492,CAREWATCH (BARNET),120.26,08/01/2020
Delivery Units,Adults and Health,Other Agencies - Third Party P,90224493,CAREWATCH (BARNET),287.80,08/01/2020
Delivery Units,Adults and Health,Other Agencies - Third Party P,90224494,CAREWATCH (BARNET),210.49,08/01/2020
Delivery Units,Adults and Health,Other Agencies - Third Party P,90224495,CAREWATCH (BARNET),60.13,08/01/2020
Delivery Units,Adults and Health,Other Agencies - Third Party P,90224496,CAREWATCH (BARNET),438.09,08/01/2020
Delivery Units,Adults and Health,Other Agencies - Third Party P,90224497,CAREWATCH (BARNET),240.59,08/01/2020
Delivery Units,Adults and Health,Other Agencies - Third Party P,90224498,CAREWATCH (BARNET),180.39,08/01/2020
Delivery Units,Adults and Health,Other Agencies - Third Party P,90224500,CAREWATCH (BARNET),115.96,08/01/2020
Delivery Units,Adults and Health,Other Agencies - Third Party P,90224501,CAREWATCH (BARNET),51.54,08/01/2020
Delivery Units,Adults and Health,Other Agencies - Third Party P,90224502,CAREWATCH (BARNET),21.48,08/01/2020
Delivery Units,Adults and Health,Other Agencies - Third Party P,90224503,CAREWATCH (BARNET),670.02,08/01/2020
Delivery Units,Adults and Health,Other Agencies - Third Party P,90224504,CAREWATCH (BARNET),180.39,08/01/2020
Delivery Units,Adults and Health,Other Agencies - Third Party P,90224505,CAREWATCH (BARNET),120.30,08/01/2020
Delivery Units,Adults and Health,Other Agencies - Third Party P,90224507,CAREWATCH (BARNET),279.18,08/01/2020
Delivery Units,Adults and Health,Other Agencies - Third Party P,90224508,CAREWATCH (BARNET),283.48,08/01/2020
Delivery Units,Adults and Health,Other Agencies - Third Party P,90224509,CAREWATCH (BARNET),171.80,08/01/2020
Delivery Units,Adults and Health,Other Agencies - Third Party P,90224510,CAREWATCH (BARNET),223.37,08/01/2020
Delivery Units,Adults and Health,Other Agencies - Third Party P,90224511,CAREWATCH (BARNET),180.39,08/01/2020
Delivery Units,Adults and Health,Other Agencies - Third Party P,90224512,CAREWATCH (BARNET),180.41,08/01/2020
Delivery Units,Adults and Health,Other Agencies - Third Party P,90224513,CAREWATCH (BARNET),111.70,08/01/2020
Delivery Units,Adults and Health,Other Agencies - Third Party P,90224514,CAREWATCH (BARNET),124.56,08/01/2020
Delivery Units,Adults and Health,Other Agencies - Third Party P,90224515,CAREWATCH (BARNET),85.93,08/01/2020
Delivery Units,Adults and Health,Other Agencies - Third Party P,90224517,CAREWATCH (BARNET),85.93,08/01/2020
Delivery Units,Adults and Health,Other Agencies - Third Party P,90224518,CAREWATCH (BARNET),30.07,08/01/2020
Delivery Units,Adults and Health,Other Agencies - Third Party P,90224519,CAREWATCH (BARNET),17.18,08/01/2020
Delivery Units,Adults and Health,Other Agencies - Third Party P,90224521,CAREWATCH (BARNET),90.23,08/01/2020
Delivery Units,Adults and Health,Other Agencies - Third Party P,90224522,CAREWATCH (BARNET),197.59,08/01/2020
Delivery Units,Adults and Health,Other Agencies - Third Party P,90224523,CAREWATCH (BARNET),133.15,08/01/2020
Delivery Units,Adults and Health,Other Agencies - Third Party P,90224524,CAREWATCH (BARNET),279.20,08/01/2020
Delivery Units,Adults and Health,Other Agencies - Third Party P,90224525,CAREWATCH (BARNET),244.85,08/01/2020
Delivery Units,Adults and Health,Other Agencies - Third Party P,90224526,CAREWATCH (BARNET),90.23,08/01/2020
Delivery Units,Adults and Health,Other Agencies - Third Party P,90224527,CAREWATCH (BARNET),317.83,08/01/2020
Delivery Units,Adults and Health,Other Agencies - Third Party P,90224528,CAREWATCH (BARNET),193.30,08/01/2020
Delivery Units,Adults and Health,Other Agencies - Third Party P,90224529,CAREWATCH (BARNET),85.90,08/01/2020
Delivery Units,Adults and Health,Other Agencies - Third Party P,90224530,CAREWATCH (BARNET),433.86,08/01/2020
Delivery Units,Adults and Health,Other Agencies - Third Party P,90224533,CAREWATCH (BARNET),107.40,08/01/2020
Delivery Units,Adults and Health,Other Agencies - Third Party P,90224534,CAREWATCH (BARNET),81.61,08/01/2020
Delivery Units,Adults and Health,Other Agencies - Third Party P,90224535,CAREWATCH (BARNET),51.56,08/01/2020
Delivery Units,Adults and Health,Other Agencies - Third Party P,90224536,CAREWATCH (BARNET),115.97,08/01/2020
Delivery Units,Adults and Health,Other Agencies - Third Party P,90224537,CAREWATCH (BARNET),90.23,08/01/2020
Delivery Units,Adults and Health,Other Agencies - Third Party P,90224538,CAREWATCH (BARNET),64.45,08/01/2020
Delivery Units,Adults and Health,Other Agencies - Third Party P,90224539,CAREWATCH (BARNET),30.07,08/01/2020
Delivery Units,Adults and Health,Other Agencies - Third Party P,90224540,CAREWATCH (BARNET),270.63,08/01/2020
Delivery Units,Adults and Health,Other Agencies - Third Party P,90224541,CAREWATCH (BARNET),296.37,08/01/2020
Delivery Units,Adults and Health,Other Agencies - Third Party P,90224542,CAREWATCH (BARNET),240.52,08/01/2020
Delivery Units,Adults and Health,Other Agencies - Third Party P,90224543,CAREWATCH (BARNET),51.54,08/01/2020
Delivery Units,Adults and Health,Other Agencies - Third Party P,90224544,CAREWATCH (BARNET),244.84,08/01/2020
Delivery Units,Adults and Health,Other Agencies - Third Party P,90224545,CAREWATCH (BARNET),206.22,08/01/2020
Delivery Units,Adults and Health,Other Agencies - Third Party P,90224546,CAREWATCH (BARNET),240.54,08/01/2020
Delivery Units,Adults and Health,Other Agencies - Third Party P,90224547,CAREWATCH (BARNET),77.33,08/01/2020
Delivery Units,Adults and Health,Other Agencies - Third Party P,90224548,CAREWATCH (BARNET),128.87,08/01/2020
Delivery Units,Adults and Health,Other Agencies - Third Party P,90224551,CAREWATCH (BARNET),120.26,08/01/2020
Delivery Units,Adults and Health,Other Agencies - Third Party P,90224552,CAREWATCH (BARNET),601.30,08/01/2020
Delivery Units,Adults and Health,Other Agencies - Third Party P,90224553,CAREWATCH (BARNET),51.56,08/01/2020
Delivery Units,Adults and Health,Other Agencies - Third Party P,90224554,CAREWATCH (BARNET),150.36,08/01/2020
Delivery Units,Adults and Health,Other Agencies - Third Party P,90224555,CAREWATCH (BARNET),257.73,08/01/2020
Delivery Units,Adults and Health,Other Agencies - Third Party P,90224556,CAREWATCH (BARNET),180.39,08/01/2020
Delivery Units,Adults and Health,Other Agencies - Third Party P,90224557,CAREWATCH (BARNET),253.44,08/01/2020
Delivery Units,Adults and Health,Other Agencies - Third Party P,90224558,CAREWATCH (BARNET),781.90,08/01/2020
Delivery Units,Adults and Health,Other Agencies - Third Party P,90224559,CAREWATCH (BARNET),116.00,08/01/2020
Delivery Units,Adults and Health,Other Agencies - Third Party P,90224560,CAREWATCH (BARNET),300.65,08/01/2020
Delivery Units,Adults and Health,Other Agencies - Third Party P,90224561,CAREWATCH (BARNET),300.72,08/01/2020
Delivery Units,Adults and Health,Other Agencies - Third Party P,90224562,CAREWATCH (BARNET),180.39,08/01/2020
Delivery Units,Adults and Health,Other Agencies - Third Party P,90224563,CAREWATCH (BARNET),287.80,08/01/2020
Delivery Units,Adults and Health,Other Agencies - Third Party P,90224564,CAREWATCH (BARNET),137.44,08/01/2020
Delivery Units,Adults and Health,Other Agencies - Third Party P,90224565,CAREWATCH (BARNET),90.23,08/01/2020
Delivery Units,Adults and Health,Other Agencies - Third Party P,90224566,CAREWATCH (BARNET),90.23,08/01/2020
Delivery Units,Adults and Health,Other Agencies - Third Party P,90224567,CAREWATCH (BARNET),270.62,08/01/2020
Delivery Units,Adults and Health,Other Agencies - Third Party P,90224568,CAREWATCH (BARNET),244.85,08/01/2020
Delivery Units,Adults and Health,Other Agencies - Third Party P,90224569,CAREWATCH (BARNET),90.23,08/01/2020
Delivery Units,Adults and Health,Other Agencies - Third Party P,90224570,CAREWATCH (BARNET),330.75,08/01/2020
Delivery Units,Adults and Health,Other Agencies - Third Party P,90224571,CAREWATCH (BARNET),120.26,08/01/2020
Delivery Units,Adults and Health,Other Agencies - Third Party P,90224572,CAREWATCH (BARNET),253.44,08/01/2020
Delivery Units,Adults and Health,Other Agencies - Third Party P,90224573,CAREWATCH (BARNET),120.26,08/01/2020
Delivery Units,Adults and Health,Other Agencies - Third Party P,90224574,CAREWATCH (BARNET),270.62,08/01/2020
Delivery Units,Adults and Health,Other Agencies - Third Party P,90224575,CAREWATCH (BARNET),90.23,08/01/2020
Delivery Units,Adults and Health,Other Agencies - Third Party P,90224576,CAREWATCH (BARNET),120.26,08/01/2020
Delivery Units,Adults and Health,Other Agencies - Third Party P,90224577,CAREWATCH (BARNET),287.80,08/01/2020
Delivery Units,Adults and Health,Other Agencies - Third Party P,90224578,CAREWATCH (BARNET),210.49,08/01/2020
Delivery Units,Adults and Health,Other Agencies - Third Party P,90224579,CAREWATCH (BARNET),60.13,08/01/2020
Delivery Units,Adults and Health,Other Agencies - Third Party P,90224580,CAREWATCH (BARNET),240.59,08/01/2020
Delivery Units,Adults and Health,Other Agencies - Third Party P,90224581,CAREWATCH (BARNET),180.39,08/01/2020
Delivery Units,Adults and Health,Other Agencies - Third Party P,90224582,CAREWATCH (BARNET),266.29,08/01/2020
Delivery Units,Adults and Health,Other Agencies - Third Party P,90224583,CAREWATCH (BARNET),90.23,08/01/2020
Delivery Units,Adults and Health,Other Agencies - Third Party P,90224584,CAREWATCH (BARNET),150.36,08/01/2020
Delivery Units,Adults and Health,Other Agencies - Third Party P,90224585,CAREWATCH (BARNET),240.52,08/01/2020
Delivery Units,Adults and Health,Other Agencies - Third Party P,90224586,CAREWATCH (BARNET),682.90,08/01/2020
Delivery Units,Adults and Health,Other Agencies - Third Party P,90224587,CAREWATCH (BARNET),103.12,08/01/2020
Delivery Units,Adults and Health,Other Agencies - Third Party P,90224589,CAREWATCH (BARNET),210.48,08/01/2020
Delivery Units,Adults and Health,Other Agencies - Third Party P,90224590,CAREWATCH (BARNET),163.22,08/01/2020
Delivery Units,Adults and Health,Other Agencies - Third Party P,90224591,CAREWATCH (BARNET),223.37,08/01/2020
Delivery Units,Adults and Health,Other Agencies - Third Party P,90224592,CAREWATCH (BARNET),120.30,08/01/2020
Delivery Units,Adults and Health,Other Agencies - Third Party P,90224593,CAREWATCH (BARNET),188.98,08/01/2020
Delivery Units,Adults and Health,Other Agencies - Third Party P,90224594,CAREWATCH (BARNET),90.23,08/01/2020
Delivery Units,Adults and Health,Other Agencies - Third Party P,90224596,CAREWATCH (BARNET),81.63,08/01/2020
Delivery Units,Adults and Health,Other Agencies - Third Party P,90224597,CAREWATCH (BARNET),17.18,08/01/2020
Delivery Units,Adults and Health,Other Agencies - Third Party P,90224598,CAREWATCH (BARNET),17.18,08/01/2020
Delivery Units,Adults and Health,Other Agencies - Third Party P,90224600,CAREWATCH (BARNET),214.79,08/01/2020
Delivery Units,Adults and Health,Other Agencies - Third Party P,90224601,CAREWATCH (BARNET),111.69,08/01/2020
Delivery Units,Adults and Health,Other Agencies - Third Party P,90224602,CAREWATCH (BARNET),171.80,08/01/2020
Delivery Units,Adults and Health,Other Agencies - Third Party P,90224603,CAREWATCH (BARNET),292.08,08/01/2020
Delivery Units,Adults and Health,Other Agencies - Third Party P,90224604,CAREWATCH (BARNET),231.96,08/01/2020
Delivery Units,Adults and Health,Other Agencies - Third Party P,90224605,CAREWATCH (BARNET),68.72,08/01/2020
Delivery Units,Adults and Health,Other Agencies - Third Party P,90224606,CAREWATCH (BARNET),347.91,08/01/2020
Delivery Units,Adults and Health,Other Agencies - Third Party P,90224607,CAREWATCH (BARNET),111.68,08/01/2020
Delivery Units,Adults and Health,Other Agencies - Third Party P,90224609,CAREWATCH (BARNET),107.40,08/01/2020
Delivery Units,Adults and Health,Other Agencies - Third Party P,90224610,CAREWATCH (BARNET),60.15,08/01/2020
Delivery Units,Adults and Health,Other Agencies - Third Party P,90224611,CAREWATCH (BARNET),120.26,08/01/2020
Delivery Units,Adults and Health,Other Agencies - Third Party P,90224612,CAREWATCH (BARNET),64.45,08/01/2020
Delivery Units,Adults and Health,Other Agencies - Third Party P,90224613,CAREWATCH (BARNET),219.08,08/01/2020
Delivery Units,Adults and Health,Other Agencies - Third Party P,90224614,CAREWATCH (BARNET),201.90,08/01/2020
Delivery Units,Adults and Health,Other Agencies - Third Party P,90224615,CAREWATCH (BARNET),296.38,08/01/2020
Delivery Units,Adults and Health,Other Agencies - Third Party P,90224616,CAREWATCH (BARNET),25.77,08/01/2020
Delivery Units,Adults and Health,Other Agencies - Third Party P,90224617,CAREWATCH (BARNET),296.39,08/01/2020
Delivery Units,Adults and Health,Other Agencies - Third Party P,90224618,CAREWATCH (BARNET),296.36,08/01/2020
Delivery Units,Adults and Health,Other Agencies - Third Party P,90224619,CAREWATCH (BARNET),223.34,08/01/2020
Delivery Units,Adults and Health,Other Agencies - Third Party P,90224620,CAREWATCH (BARNET),51.54,08/01/2020
Delivery Units,Adults and Health,Other Agencies - Third Party P,90224621,CAREWATCH (BARNET),279.20,08/01/2020
Delivery Units,Adults and Health,Other Agencies - Third Party P,90224622,CAREWATCH (BARNET),304.94,08/01/2020
Delivery Units,Adults and Health,Other Agencies - Third Party P,90224623,CAREWATCH (BARNET),201.92,08/01/2020
Delivery Units,Adults and Health,Other Agencies - Third Party P,90226841,CAREWATCH (BARNET),51.56,21/01/2020
Delivery Units,Adults and Health,Other Agencies - Third Party P,90226842,CAREWATCH (BARNET),150.36,21/01/2020
Delivery Units,Adults and Health,Other Agencies - Third Party P,90226843,CAREWATCH (BARNET),257.73,21/01/2020
Delivery Units,Adults and Health,Other Agencies - Third Party P,90226844,CAREWATCH (BARNET),180.39,21/01/2020
Delivery Units,Adults and Health,Other Agencies - Third Party P,90226845,CAREWATCH (BARNET),781.90,21/01/2020
Delivery Units,Adults and Health,Other Agencies - Third Party P,90226846,CAREWATCH (BARNET),116.00,21/01/2020
Delivery Units,Adults and Health,Other Agencies - Third Party P,90226848,CAREWATCH (BARNET),180.39,21/01/2020
Delivery Units,Adults and Health,Other Agencies - Third Party P,90226849,CAREWATCH (BARNET),34.36,21/01/2020
Delivery Units,Adults and Health,Other Agencies - Third Party P,90226850,CAREWATCH (BARNET),90.23,21/01/2020
Delivery Units,Adults and Health,Other Agencies - Third Party P,90226851,CAREWATCH (BARNET),270.62,21/01/2020
Delivery Units,Adults and Health,Other Agencies - Third Party P,90226852,CAREWATCH (BARNET),120.26,21/01/2020
Delivery Units,Adults and Health,Other Agencies - Third Party P,90226853,CAREWATCH (BARNET),253.44,21/01/2020
Delivery Units,Adults and Health,Other Agencies - Third Party P,90226854,CAREWATCH (BARNET),120.26,21/01/2020
Delivery Units,Adults and Health,Other Agencies - Third Party P,90226855,CAREWATCH (BARNET),240.52,21/01/2020
Delivery Units,Adults and Health,Other Agencies - Third Party P,90226856,CAREWATCH (BARNET),120.26,21/01/2020
Delivery Units,Adults and Health,Other Agencies - Third Party P,90226857,CAREWATCH (BARNET),287.80,21/01/2020
Delivery Units,Adults and Health,Other Agencies - Third Party P,90226858,CAREWATCH (BARNET),60.13,21/01/2020
Delivery Units,Adults and Health,Other Agencies - Third Party P,90226859,CAREWATCH (BARNET),210.49,21/01/2020
Delivery Units,Adults and Health,Other Agencies - Third Party P,90226860,CAREWATCH (BARNET),60.13,21/01/2020
Delivery Units,Adults and Health,Other Agencies - Third Party P,90226861,CAREWATCH (BARNET),438.09,21/01/2020
Delivery Units,Adults and Health,Other Agencies - Third Party P,90226862,CAREWATCH (BARNET),206.23,21/01/2020
Delivery Units,Adults and Health,Other Agencies - Third Party P,90226863,CAREWATCH (BARNET),240.59,21/01/2020
Delivery Units,Adults and Health,Other Agencies - Third Party P,90226864,CAREWATCH (BARNET),180.39,21/01/2020
Delivery Units,Adults and Health,Other Agencies - Third Party P,90226865,CAREWATCH (BARNET),266.29,21/01/2020
Delivery Units,Adults and Health,Other Agencies - Third Party P,90226866,CAREWATCH (BARNET),150.36,21/01/2020
Delivery Units,Adults and Health,Other Agencies - Third Party P,90226867,CAREWATCH (BARNET),98.79,21/01/2020
Delivery Units,Adults and Health,Other Agencies - Third Party P,90226868,CAREWATCH (BARNET),240.52,21/01/2020
Delivery Units,Adults and Health,Other Agencies - Third Party P,90226869,CAREWATCH (BARNET),592.74,21/01/2020
Delivery Units,Adults and Health,Other Agencies - Third Party P,90226870,CAREWATCH (BARNET),674.34,21/01/2020
Delivery Units,Adults and Health,Other Agencies - Third Party P,90226871,CAREWATCH (BARNET),244.85,21/01/2020
Delivery Units,Adults and Health,Other Agencies - Third Party P,90226872,CAREWATCH (BARNET),133.19,21/01/2020
Delivery Units,Adults and Health,Other Agencies - Third Party P,90226873,CAREWATCH (BARNET),279.18,21/01/2020
Delivery Units,Adults and Health,Other Agencies - Third Party P,90226874,CAREWATCH (BARNET),283.50,21/01/2020
Delivery Units,Adults and Health,Other Agencies - Third Party P,90226875,CAREWATCH (BARNET),176.10,21/01/2020
Delivery Units,Adults and Health,Other Agencies - Third Party P,90226876,CAREWATCH (BARNET),262.04,21/01/2020
Delivery Units,Adults and Health,Other Agencies - Third Party P,90226877,CAREWATCH (BARNET),219.08,21/01/2020
Delivery Units,Adults and Health,Other Agencies - Third Party P,90226878,CAREWATCH (BARNET),193.28,21/01/2020
Delivery Units,Adults and Health,Other Agencies - Third Party P,90226879,CAREWATCH (BARNET),55.84,21/01/2020
Delivery Units,Adults and Health,Other Agencies - Third Party P,90226880,CAREWATCH (BARNET),193.28,21/01/2020
Delivery Units,Adults and Health,Other Agencies - Third Party P,90226881,CAREWATCH (BARNET),90.23,21/01/2020
Delivery Units,Adults and Health,Other Agencies - Third Party P,90226883,CAREWATCH (BARNET),128.85,21/01/2020
Delivery Units,Adults and Health,Other Agencies - Third Party P,90226884,CAREWATCH (BARNET),85.93,21/01/2020
Delivery Units,Adults and Health,Other Agencies - Third Party P,90226885,CAREWATCH (BARNET),17.18,21/01/2020
Delivery Units,Adults and Health,Other Agencies - Third Party P,90226887,CAREWATCH (BARNET),90.23,21/01/2020
Delivery Units,Adults and Health,Other Agencies - Third Party P,90226888,CAREWATCH (BARNET),184.73,21/01/2020
Delivery Units,Adults and Health,Other Agencies - Third Party P,90226889,CAREWATCH (BARNET),206.16,21/01/2020
Delivery Units,Adults and Health,Other Agencies - Third Party P,90226890,CAREWATCH (BARNET),296.38,21/01/2020
Delivery Units,Adults and Health,Other Agencies - Third Party P,90226891,CAREWATCH (BARNET),240.55,21/01/2020
Delivery Units,Adults and Health,Other Agencies - Third Party P,90226892,CAREWATCH (BARNET),262.04,21/01/2020
Delivery Units,Adults and Health,Other Agencies - Third Party P,90226893,CAREWATCH (BARNET),38.67,21/01/2020
Delivery Units,Adults and Health,Other Agencies - Third Party P,90226894,CAREWATCH (BARNET),330.72,21/01/2020
Delivery Units,Adults and Health,Other Agencies - Third Party P,90226895,CAREWATCH (BARNET),189.00,21/01/2020
Delivery Units,Adults and Health,Other Agencies - Third Party P,90226896,CAREWATCH (BARNET),68.72,21/01/2020
Delivery Units,Adults and Health,Other Agencies - Third Party P,90226897,CAREWATCH (BARNET),347.95,21/01/2020
Delivery Units,Adults and Health,Other Agencies - Third Party P,90226899,CAREWATCH (BARNET),103.10,21/01/2020
Delivery Units,Adults and Health,Other Agencies - Third Party P,90226900,CAREWATCH (BARNET),51.56,21/01/2020
Delivery Units,Adults and Health,Other Agencies - Third Party P,90226901,CAREWATCH (BARNET),266.33,21/01/2020
Delivery Units,Adults and Health,Other Agencies - Third Party P,90226902,CAREWATCH (BARNET),120.26,21/01/2020
Delivery Units,Adults and Health,Other Agencies - Third Party P,90226903,CAREWATCH (BARNET),90.23,21/01/2020
Delivery Units,Adults and Health,Other Agencies - Third Party P,90226904,CAREWATCH (BARNET),223.39,21/01/2020
Delivery Units,Adults and Health,Other Agencies - Third Party P,90226905,CAREWATCH (BARNET),270.61,21/01/2020
Delivery Units,Adults and Health,Other Agencies - Third Party P,90226906,CAREWATCH (BARNET),25.78,21/01/2020
Delivery Units,Adults and Health,Other Agencies - Third Party P,90226907,CAREWATCH (BARNET),274.91,21/01/2020
Delivery Units,Adults and Health,Other Agencies - Third Party P,90226908,CAREWATCH (BARNET),296.36,21/01/2020
Delivery Units,Adults and Health,Other Agencies - Third Party P,90226909,CAREWATCH (BARNET),206.16,21/01/2020
Delivery Units,Adults and Health,Other Agencies - Third Party P,90226910,CAREWATCH (BARNET),274.88,21/01/2020
Delivery Units,Adults and Health,Other Agencies - Third Party P,90226911,CAREWATCH (BARNET),77.33,21/01/2020
Delivery Units,Adults and Health,Other Agencies - Third Party P,90226914,CAREWATCH (BARNET),601.30,21/01/2020
Delivery Units,Adults and Health,Other Agencies - Third Party P,90226915,CAREWATCH (BARNET),257.73,21/01/2020
Delivery Units,Adults and Health,Other Agencies - Third Party P,90226916,CAREWATCH (BARNET),180.39,21/01/2020
Delivery Units,Adults and Health,Other Agencies - Third Party P,90226917,CAREWATCH (BARNET),253.44,21/01/2020
Delivery Units,Adults and Health,Other Agencies - Third Party P,90226918,CAREWATCH (BARNET),781.90,21/01/2020
Delivery Units,Adults and Health,Other Agencies - Third Party P,90226919,CAREWATCH (BARNET),116.00,21/01/2020
Delivery Units,Adults and Health,Other Agencies - Third Party P,90226921,CAREWATCH (BARNET),300.65,21/01/2020
Delivery Units,Adults and Health,Other Agencies - Third Party P,90226922,CAREWATCH (BARNET),300.72,21/01/2020
Delivery Units,Adults and Health,Other Agencies - Third Party P,90226923,CAREWATCH (BARNET),240.52,21/01/2020
Delivery Units,Adults and Health,Other Agencies - Third Party P,90226924,CAREWATCH (BARNET),137.44,21/01/2020
Delivery Units,Adults and Health,Other Agencies - Third Party P,90226925,CAREWATCH (BARNET),17.18,21/01/2020
Delivery Units,Adults and Health,Other Agencies - Third Party P,90226926,CAREWATCH (BARNET),90.23,21/01/2020
Delivery Units,Adults and Health,Other Agencies - Third Party P,90226927,CAREWATCH (BARNET),90.23,21/01/2020
Delivery Units,Adults and Health,Other Agencies - Third Party P,90226928,CAREWATCH (BARNET),270.62,21/01/2020
Delivery Units,Adults and Health,Other Agencies - Third Party P,90226929,CAREWATCH (BARNET),244.85,21/01/2020
Delivery Units,Adults and Health,Other Agencies - Third Party P,90226930,CAREWATCH (BARNET),120.26,21/01/2020
Delivery Units,Adults and Health,Other Agencies - Third Party P,90226931,CAREWATCH (BARNET),253.44,21/01/2020
Delivery Units,Adults and Health,Other Agencies - Third Party P,90226932,CAREWATCH (BARNET),120.26,21/01/2020
Delivery Units,Adults and Health,Other Agencies - Third Party P,90226933,CAREWATCH (BARNET),270.62,21/01/2020
Delivery Units,Adults and Health,Other Agencies - Third Party P,90226934,CAREWATCH (BARNET),120.26,21/01/2020
Delivery Units,Adults and Health,Other Agencies - Third Party P,90226935,CAREWATCH (BARNET),90.23,21/01/2020
Delivery Units,Adults and Health,Other Agencies - Third Party P,90226936,CAREWATCH (BARNET),240.52,21/01/2020
Delivery Units,Adults and Health,Other Agencies - Third Party P,90226937,CAREWATCH (BARNET),330.75,21/01/2020
Delivery Units,Adults and Health,Other Agencies - Third Party P,90226938,CAREWATCH (BARNET),120.26,21/01/2020
Delivery Units,Adults and Health,Other Agencies - Third Party P,90226939,CAREWATCH (BARNET),287.80,21/01/2020
Delivery Units,Adults and Health,Other Agencies - Third Party P,90226940,CAREWATCH (BARNET),210.49,21/01/2020
Delivery Units,Adults and Health,Other Agencies - Third Party P,90226941,CAREWATCH (BARNET),60.13,21/01/2020
Delivery Units,Adults and Health,Other Agencies - Third Party P,90226942,CAREWATCH (BARNET),438.09,21/01/2020
Delivery Units,Adults and Health,Other Agencies - Third Party P,90226943,CAREWATCH (BARNET),206.23,21/01/2020
Delivery Units,Adults and Health,Other Agencies - Third Party P,90226944,CAREWATCH (BARNET),240.59,21/01/2020
Delivery Units,Adults and Health,Other Agencies - Third Party P,90226945,CAREWATCH (BARNET),180.39,21/01/2020
Delivery Units,Adults and Health,Other Agencies - Third Party P,90226946,CAREWATCH (BARNET),266.29,21/01/2020
Delivery Units,Adults and Health,Other Agencies - Third Party P,90226947,CAREWATCH (BARNET),120.26,21/01/2020
Delivery Units,Adults and Health,Other Agencies - Third Party P,90226948,CAREWATCH (BARNET),240.52,21/01/2020
Delivery Units,Adults and Health,Other Agencies - Third Party P,90226949,CAREWATCH (BARNET),51.54,21/01/2020
Delivery Units,Adults and Health,Other Agencies - Third Party P,90226950,CAREWATCH (BARNET),150.36,21/01/2020
Delivery Units,Adults and Health,Other Agencies - Third Party P,90226951,CAREWATCH (BARNET),695.80,21/01/2020
Delivery Units,Adults and Health,Other Agencies - Third Party P,90226952,CAREWATCH (BARNET),133.19,21/01/2020
Delivery Units,Adults and Health,Other Agencies - Third Party P,90226953,CAREWATCH (BARNET),283.48,21/01/2020
Delivery Units,Adults and Health,Other Agencies - Third Party P,90226954,CAREWATCH (BARNET),171.82,21/01/2020
Delivery Units,Adults and Health,Other Agencies - Third Party P,90226955,CAREWATCH (BARNET),210.47,21/01/2020
Delivery Units,Adults and Health,Other Agencies - Third Party P,90226956,CAREWATCH (BARNET),193.28,21/01/2020
Delivery Units,Adults and Health,Other Agencies - Third Party P,90226957,CAREWATCH (BARNET),90.23,21/01/2020
Delivery Units,Adults and Health,Other Agencies - Third Party P,90226959,CAREWATCH (BARNET),81.63,21/01/2020
Delivery Units,Adults and Health,Other Agencies - Third Party P,90226960,CAREWATCH (BARNET),30.07,21/01/2020
Delivery Units,Adults and Health,Other Agencies - Third Party P,90226962,CAREWATCH (BARNET),206.19,21/01/2020
Delivery Units,Adults and Health,Other Agencies - Third Party P,90226963,CAREWATCH (BARNET),193.28,21/01/2020
Delivery Units,Adults and Health,Other Agencies - Third Party P,90226964,CAREWATCH (BARNET),322.17,21/01/2020
Delivery Units,Adults and Health,Other Agencies - Third Party P,90226965,CAREWATCH (BARNET),171.82,21/01/2020
Delivery Units,Adults and Health,Other Agencies - Third Party P,90226966,CAREWATCH (BARNET),326.42,21/01/2020
Delivery Units,Adults and Health,Other Agencies - Third Party P,90226967,CAREWATCH (BARNET),223.37,21/01/2020
Delivery Units,Adults and Health,Other Agencies - Third Party P,90226968,CAREWATCH (BARNET),103.08,21/01/2020
Delivery Units,Adults and Health,Other Agencies - Third Party P,90226969,CAREWATCH (BARNET),360.82,21/01/2020
Delivery Units,Adults and Health,Other Agencies - Third Party P,90226972,CAREWATCH (BARNET),107.40,21/01/2020
Delivery Units,Adults and Health,Other Agencies - Third Party P,90226973,CAREWATCH (BARNET),51.56,21/01/2020
Delivery Units,Adults and Health,Other Agencies - Third Party P,90226974,CAREWATCH (BARNET),210.50,21/01/2020
Delivery Units,Adults and Health,Other Agencies - Third Party P,90226975,CAREWATCH (BARNET),25.78,21/01/2020
Delivery Units,Adults and Health,Other Agencies - Third Party P,90226976,CAREWATCH (BARNET),283.50,21/01/2020
Delivery Units,Adults and Health,Other Agencies - Third Party P,90226977,CAREWATCH (BARNET),296.38,21/01/2020
Delivery Units,Adults and Health,Other Agencies - Third Party P,90226978,CAREWATCH (BARNET),236.23,21/01/2020
Delivery Units,Adults and Health,Other Agencies - Third Party P,90226979,CAREWATCH (BARNET),55.84,21/01/2020
Delivery Units,Adults and Health,Other Agencies - Third Party P,90226980,CAREWATCH (BARNET),266.30,21/01/2020
Delivery Units,Adults and Health,Other Agencies - Third Party P,90226981,CAREWATCH (BARNET),90.22,21/01/2020
Delivery Units,Adults and Health,Other Agencies - Third Party P,90226982,CAREWATCH (BARNET),146.06,21/01/2020
Delivery Units,Adults and Health,Other Agencies - Third Party P,90223572,DYNAMIC PEOPLE LTD,140.84,06/01/2020
Delivery Units,Adults and Health,Other Agencies - Third Party P,90223574,DYNAMIC PEOPLE LTD,225.33,06/01/2020
Delivery Units,Adults and Health,Other Agencies - Third Party P,90223575,DYNAMIC PEOPLE LTD,156.93,06/01/2020
Delivery Units,Adults and Health,Other Agencies - Third Party P,90223576,DYNAMIC PEOPLE LTD,197.19,06/01/2020
Delivery Units,Adults and Health,Other Agencies - Third Party P,90223577,DYNAMIC PEOPLE LTD,281.68,06/01/2020
Delivery Units,Adults and Health,Other Agencies - Third Party P,90223579,DYNAMIC PEOPLE LTD,309.75,06/01/2020
Delivery Units,Adults and Health,Other Agencies - Third Party P,90223581,DYNAMIC PEOPLE LTD,56.35,06/01/2020
Delivery Units,Adults and Health,Other Agencies - Third Party P,90223583,DYNAMIC PEOPLE LTD,225.33,06/01/2020
Delivery Units,Adults and Health,Other Agencies - Third Party P,90223584,DYNAMIC PEOPLE LTD,140.84,06/01/2020
Delivery Units,Adults and Health,Other Agencies - Third Party P,90223585,DYNAMIC PEOPLE LTD,253.47,06/01/2020
Delivery Units,Adults and Health,Other Agencies - Third Party P,90223586,DYNAMIC PEOPLE LTD,36.21,06/01/2020
Delivery Units,Adults and Health,Other Agencies - Third Party P,90223588,DYNAMIC PEOPLE LTD,112.63,06/01/2020
Delivery Units,Adults and Health,Other Agencies - Third Party P,90223589,DYNAMIC PEOPLE LTD,281.69,06/01/2020
Delivery Units,Adults and Health,Other Agencies - Third Party P,90223590,DYNAMIC PEOPLE LTD,394.38,06/01/2020
Delivery Units,Adults and Health,Other Agencies - Third Party P,90223591,DYNAMIC PEOPLE LTD,337.96,06/01/2020
Delivery Units,Adults and Health,Other Agencies - Third Party P,90223593,DYNAMIC PEOPLE LTD,225.33,06/01/2020
Delivery Units,Adults and Health,Other Agencies - Third Party P,90223594,DYNAMIC PEOPLE LTD,225.28,06/01/2020
Delivery Units,Adults and Health,Other Agencies - Third Party P,90223595,DYNAMIC PEOPLE LTD,56.35,06/01/2020
Delivery Units,Adults and Health,Other Agencies - Third Party P,90223596,DYNAMIC PEOPLE LTD,140.84,06/01/2020
Delivery Units,Adults and Health,Other Agencies - Third Party P,90223597,DYNAMIC PEOPLE LTD,84.49,06/01/2020
Delivery Units,Adults and Health,Other Agencies - Third Party P,90223598,DYNAMIC PEOPLE LTD,261.53,06/01/2020
Delivery Units,Adults and Health,Other Agencies - Third Party P,90223601,DYNAMIC PEOPLE LTD,281.68,06/01/2020
Delivery Units,Adults and Health,Other Agencies - Third Party P,90223602,DYNAMIC PEOPLE LTD,173.00,06/01/2020
Delivery Units,Adults and Health,Other Agencies - Third Party P,90223603,DYNAMIC PEOPLE LTD,181.11,06/01/2020
Delivery Units,Adults and Health,Other Agencies - Third Party P,90223604,DYNAMIC PEOPLE LTD,48.27,06/01/2020
Delivery Units,Adults and Health,Other Agencies - Third Party P,90223605,DYNAMIC PEOPLE LTD,84.49,06/01/2020
Delivery Units,Adults and Health,Other Agencies - Third Party P,90223606,DYNAMIC PEOPLE LTD,64.39,06/01/2020
Delivery Units,Adults and Health,Other Agencies - Third Party P,90223607,DYNAMIC PEOPLE LTD,112.63,06/01/2020
Delivery Units,Adults and Health,Other Agencies - Third Party P,90223609,DYNAMIC PEOPLE LTD,197.12,06/01/2020
Delivery Units,Adults and Health,Other Agencies - Third Party P,90223610,DYNAMIC PEOPLE LTD,225.33,06/01/2020
Delivery Units,Adults and Health,Other Agencies - Third Party P,90223611,DYNAMIC PEOPLE LTD,84.49,06/01/2020
Delivery Units,Adults and Health,Other Agencies - Third Party P,90223612,DYNAMIC PEOPLE LTD,36.21,06/01/2020
Delivery Units,Adults and Health,Other Agencies - Third Party P,90223614,DYNAMIC PEOPLE LTD,197.15,06/01/2020
Delivery Units,Adults and Health,Other Agencies - Third Party P,90223615,DYNAMIC PEOPLE LTD,72.40,06/01/2020
Delivery Units,Adults and Health,Other Agencies - Third Party P,90223616,DYNAMIC PEOPLE LTD,60.35,06/01/2020
Delivery Units,Adults and Health,Other Agencies - Third Party P,90223617,DYNAMIC PEOPLE LTD,197.12,06/01/2020
Delivery Units,Adults and Health,Other Agencies - Third Party P,90223618,DYNAMIC PEOPLE LTD,362.10,06/01/2020
Delivery Units,Adults and Health,Other Agencies - Third Party P,90223619,DYNAMIC PEOPLE LTD,32.18,06/01/2020
Delivery Units,Adults and Health,Other Agencies - Third Party P,90223620,DYNAMIC PEOPLE LTD,84.49,06/01/2020
Delivery Units,Adults and Health,Other Agencies - Third Party P,90223621,DYNAMIC PEOPLE LTD,120.71,06/01/2020
Delivery Units,Adults and Health,Other Agencies - Third Party P,90223622,DYNAMIC PEOPLE LTD,60.34,06/01/2020
Delivery Units,Adults and Health,Other Agencies - Third Party P,90223623,DYNAMIC PEOPLE LTD,84.49,06/01/2020
Delivery Units,Adults and Health,Other Agencies - Third Party P,90223624,DYNAMIC PEOPLE LTD,84.49,06/01/2020
Delivery Units,Adults and Health,Other Agencies - Third Party P,90223626,DYNAMIC PEOPLE LTD,100.56,06/01/2020
Delivery Units,Adults and Health,Other Agencies - Third Party P,90223627,DYNAMIC PEOPLE LTD,60.36,06/01/2020
Delivery Units,Adults and Health,Other Agencies - Third Party P,90223628,DYNAMIC PEOPLE LTD,72.40,06/01/2020
Delivery Units,Adults and Health,Other Agencies - Third Party P,90223630,DYNAMIC PEOPLE LTD,253.54,06/01/2020
Delivery Units,Adults and Health,Other Agencies - Third Party P,90223631,DYNAMIC PEOPLE LTD,168.98,06/01/2020
Delivery Units,Adults and Health,Other Agencies - Third Party P,90223633,DYNAMIC PEOPLE LTD,140.84,06/01/2020
Delivery Units,Adults and Health,Other Agencies - Third Party P,90223634,DYNAMIC PEOPLE LTD,84.49,06/01/2020
Delivery Units,Adults and Health,Other Agencies - Third Party P,90223636,DYNAMIC PEOPLE LTD,64.36,06/01/2020
Delivery Units,Adults and Health,Other Agencies - Third Party P,90223637,DYNAMIC PEOPLE LTD,136.81,06/01/2020
Delivery Units,Adults and Health,Other Agencies - Third Party P,90223638,DYNAMIC PEOPLE LTD,52.29,06/01/2020
Delivery Units,Adults and Health,Other Agencies - Third Party P,90223640,DYNAMIC PEOPLE LTD,136.82,06/01/2020
Delivery Units,Adults and Health,Other Agencies - Third Party P,90223641,DYNAMIC PEOPLE LTD,277.65,06/01/2020
Delivery Units,Adults and Health,Other Agencies - Third Party P,90223642,DYNAMIC PEOPLE LTD,112.70,06/01/2020
Delivery Units,Adults and Health,Other Agencies - Third Party P,90223643,DYNAMIC PEOPLE LTD,60.37,06/01/2020
Delivery Units,Adults and Health,Other Agencies - Third Party P,90223645,DYNAMIC PEOPLE LTD,32.18,06/01/2020
Delivery Units,Adults and Health,Other Agencies - Third Party P,90223646,DYNAMIC PEOPLE LTD,132.79,06/01/2020
Delivery Units,Adults and Health,Other Agencies - Third Party P,90223648,DYNAMIC PEOPLE LTD,124.70,06/01/2020
Delivery Units,Adults and Health,Other Agencies - Third Party P,90223649,DYNAMIC PEOPLE LTD,366.05,06/01/2020
Delivery Units,Adults and Health,Other Agencies - Third Party P,90223650,DYNAMIC PEOPLE LTD,257.49,06/01/2020
Delivery Units,Adults and Health,Other Agencies - Third Party P,90223651,DYNAMIC PEOPLE LTD,60.35,06/01/2020
Delivery Units,Adults and Health,Other Agencies - Third Party P,90223652,DYNAMIC PEOPLE LTD,792.50,06/01/2020
Delivery Units,Adults and Health,Other Agencies - Third Party P,90223654,DYNAMIC PEOPLE LTD,112.63,06/01/2020
Delivery Units,Adults and Health,Other Agencies - Third Party P,90223656,DYNAMIC PEOPLE LTD,76.43,06/01/2020
Delivery Units,Adults and Health,Other Agencies - Third Party P,90223658,DYNAMIC PEOPLE LTD,36.21,06/01/2020
Delivery Units,Adults and Health,Other Agencies - Third Party P,90223661,DYNAMIC PEOPLE LTD,249.52,06/01/2020
Delivery Units,Adults and Health,Other Agencies - Third Party P,90223662,DYNAMIC PEOPLE LTD,144.81,06/01/2020
Delivery Units,Adults and Health,Other Agencies - Third Party P,90223663,DYNAMIC PEOPLE LTD,84.49,06/01/2020
Delivery Units,Adults and Health,Other Agencies - Third Party P,90223664,DYNAMIC PEOPLE LTD,225.30,06/01/2020
Delivery Units,Adults and Health,Other Agencies - Third Party P,90223665,DYNAMIC PEOPLE LTD,197.19,06/01/2020
Delivery Units,Adults and Health,Other Agencies - Third Party P,90223666,DYNAMIC PEOPLE LTD,201.22,06/01/2020
Delivery Units,Adults and Health,Other Agencies - Third Party P,90223667,DYNAMIC PEOPLE LTD,152.90,06/01/2020
Delivery Units,Adults and Health,Other Agencies - Third Party P,90223668,DYNAMIC PEOPLE LTD,301.78,06/01/2020
Delivery Units,Adults and Health,Other Agencies - Third Party P,90223670,DYNAMIC PEOPLE LTD,20.12,06/01/2020
Delivery Units,Adults and Health,Other Agencies - Third Party P,90223674,DYNAMIC PEOPLE LTD,329.84,06/01/2020
Delivery Units,Adults and Health,Other Agencies - Third Party P,90223675,DYNAMIC PEOPLE LTD,197.12,06/01/2020
Delivery Units,Adults and Health,Other Agencies - Third Party P,90223676,DYNAMIC PEOPLE LTD,140.84,06/01/2020
Delivery Units,Adults and Health,Other Agencies - Third Party P,90223677,DYNAMIC PEOPLE LTD,88.51,06/01/2020
Delivery Units,Adults and Health,Other Agencies - Third Party P,90223678,DYNAMIC PEOPLE LTD,12.07,06/01/2020
Delivery Units,Adults and Health,Other Agencies - Third Party P,90223679,DYNAMIC PEOPLE LTD,52.29,06/01/2020
Delivery Units,Adults and Health,Other Agencies - Third Party P,90223681,DYNAMIC PEOPLE LTD,84.49,06/01/2020
Delivery Units,Adults and Health,Other Agencies - Third Party P,90223682,DYNAMIC PEOPLE LTD,112.63,06/01/2020
Delivery Units,Adults and Health,Other Agencies - Third Party P,90223683,DYNAMIC PEOPLE LTD,197.19,06/01/2020
Delivery Units,Adults and Health,Other Agencies - Third Party P,90223684,DYNAMIC PEOPLE LTD,140.80,06/01/2020
Delivery Units,Adults and Health,Other Agencies - Third Party P,90223685,DYNAMIC PEOPLE LTD,209.17,06/01/2020
Delivery Units,Adults and Health,Other Agencies - Third Party P,90223686,DYNAMIC PEOPLE LTD,301.79,06/01/2020
Delivery Units,Adults and Health,Other Agencies - Third Party P,90223687,DYNAMIC PEOPLE LTD,229.31,06/01/2020
Delivery Units,Adults and Health,Other Agencies - Third Party P,90223689,DYNAMIC PEOPLE LTD,507.07,06/01/2020
Delivery Units,Adults and Health,Other Agencies - Third Party P,90223690,DYNAMIC PEOPLE LTD,197.19,06/01/2020
Delivery Units,Adults and Health,Other Agencies - Third Party P,90223691,DYNAMIC PEOPLE LTD,136.82,06/01/2020
Delivery Units,Adults and Health,Other Agencies - Third Party P,90223692,DYNAMIC PEOPLE LTD,16.10,06/01/2020
Delivery Units,Adults and Health,Other Agencies - Third Party P,90223693,DYNAMIC PEOPLE LTD,80.50,06/01/2020
Delivery Units,Adults and Health,Other Agencies - Third Party P,90223695,DYNAMIC PEOPLE LTD,44.26,06/01/2020
Delivery Units,Adults and Health,Other Agencies - Third Party P,90223697,DYNAMIC PEOPLE LTD,92.57,06/01/2020
Delivery Units,Adults and Health,Other Agencies - Third Party P,90223698,DYNAMIC PEOPLE LTD,84.49,06/01/2020
Delivery Units,Adults and Health,Other Agencies - Third Party P,90223699,DYNAMIC PEOPLE LTD,112.63,06/01/2020
Delivery Units,Adults and Health,Other Agencies - Third Party P,90223701,DYNAMIC PEOPLE LTD,470.77,06/01/2020
Delivery Units,Adults and Health,Other Agencies - Third Party P,90224696,DYNAMIC PEOPLE LTD,140.84,10/01/2020
Delivery Units,Adults and Health,Other Agencies - Third Party P,90224697,DYNAMIC PEOPLE LTD,253.47,10/01/2020
Delivery Units,Adults and Health,Other Agencies - Third Party P,90224699,DYNAMIC PEOPLE LTD,197.12,10/01/2020
Delivery Units,Adults and Health,Other Agencies - Third Party P,90224700,DYNAMIC PEOPLE LTD,156.93,10/01/2020
Delivery Units,Adults and Health,Other Agencies - Third Party P,90224701,DYNAMIC PEOPLE LTD,197.19,10/01/2020
Delivery Units,Adults and Health,Other Agencies - Third Party P,90224702,DYNAMIC PEOPLE LTD,281.68,10/01/2020
Delivery Units,Adults and Health,Other Agencies - Third Party P,90224705,DYNAMIC PEOPLE LTD,309.75,10/01/2020
Delivery Units,Adults and Health,Other Agencies - Third Party P,90224707,DYNAMIC PEOPLE LTD,281.68,10/01/2020
Delivery Units,Adults and Health,Other Agencies - Third Party P,90224708,DYNAMIC PEOPLE LTD,225.33,10/01/2020
Delivery Units,Adults and Health,Other Agencies - Third Party P,90224709,DYNAMIC PEOPLE LTD,140.84,10/01/2020
Delivery Units,Adults and Health,Other Agencies - Third Party P,90224710,DYNAMIC PEOPLE LTD,253.47,10/01/2020
Delivery Units,Adults and Health,Other Agencies - Third Party P,90224712,DYNAMIC PEOPLE LTD,281.69,10/01/2020
Delivery Units,Adults and Health,Other Agencies - Third Party P,90224713,DYNAMIC PEOPLE LTD,394.38,10/01/2020
Delivery Units,Adults and Health,Other Agencies - Third Party P,90224714,DYNAMIC PEOPLE LTD,337.96,10/01/2020
Delivery Units,Adults and Health,Other Agencies - Third Party P,90224716,DYNAMIC PEOPLE LTD,225.33,10/01/2020
Delivery Units,Adults and Health,Other Agencies - Third Party P,90224717,DYNAMIC PEOPLE LTD,140.84,10/01/2020
Delivery Units,Adults and Health,Other Agencies - Third Party P,90224718,DYNAMIC PEOPLE LTD,84.49,10/01/2020
Delivery Units,Adults and Health,Other Agencies - Third Party P,90224719,DYNAMIC PEOPLE LTD,36.21,10/01/2020
Delivery Units,Adults and Health,Other Agencies - Third Party P,90224720,DYNAMIC PEOPLE LTD,144.84,10/01/2020
Delivery Units,Adults and Health,Other Agencies - Third Party P,90224721,DYNAMIC PEOPLE LTD,140.84,10/01/2020
Delivery Units,Adults and Health,Other Agencies - Third Party P,90224722,DYNAMIC PEOPLE LTD,225.33,10/01/2020
Delivery Units,Adults and Health,Other Agencies - Third Party P,90224723,DYNAMIC PEOPLE LTD,281.68,10/01/2020
Delivery Units,Adults and Health,Other Agencies - Third Party P,90224724,DYNAMIC PEOPLE LTD,181.11,10/01/2020
Delivery Units,Adults and Health,Other Agencies - Third Party P,90224725,DYNAMIC PEOPLE LTD,48.27,10/01/2020
Delivery Units,Adults and Health,Other Agencies - Third Party P,90224726,DYNAMIC PEOPLE LTD,305.82,10/01/2020
Delivery Units,Adults and Health,Other Agencies - Third Party P,90224727,DYNAMIC PEOPLE LTD,64.39,10/01/2020
Delivery Units,Adults and Health,Other Agencies - Third Party P,90224728,DYNAMIC PEOPLE LTD,112.63,10/01/2020
Delivery Units,Adults and Health,Other Agencies - Third Party P,90224729,DYNAMIC PEOPLE LTD,507.08,10/01/2020
Delivery Units,Adults and Health,Other Agencies - Third Party P,90224730,DYNAMIC PEOPLE LTD,197.19,10/01/2020
Delivery Units,Adults and Health,Other Agencies - Third Party P,90224731,DYNAMIC PEOPLE LTD,140.84,10/01/2020
Delivery Units,Adults and Health,Other Agencies - Third Party P,90224733,DYNAMIC PEOPLE LTD,197.12,10/01/2020
Delivery Units,Adults and Health,Other Agencies - Third Party P,90224735,DYNAMIC PEOPLE LTD,84.49,10/01/2020
Delivery Units,Adults and Health,Other Agencies - Third Party P,90224738,DYNAMIC PEOPLE LTD,68.38,10/01/2020
Delivery Units,Adults and Health,Other Agencies - Third Party P,90224739,DYNAMIC PEOPLE LTD,60.35,10/01/2020
Delivery Units,Adults and Health,Other Agencies - Third Party P,90224740,DYNAMIC PEOPLE LTD,205.24,10/01/2020
Delivery Units,Adults and Health,Other Agencies - Third Party P,90224741,DYNAMIC PEOPLE LTD,321.85,10/01/2020
Delivery Units,Adults and Health,Other Agencies - Third Party P,90224742,DYNAMIC PEOPLE LTD,16.09,10/01/2020
Delivery Units,Adults and Health,Other Agencies - Third Party P,90224743,DYNAMIC PEOPLE LTD,84.49,10/01/2020
Delivery Units,Adults and Health,Other Agencies - Third Party P,90224744,DYNAMIC PEOPLE LTD,88.53,10/01/2020
Delivery Units,Adults and Health,Other Agencies - Third Party P,90224745,DYNAMIC PEOPLE LTD,84.49,10/01/2020
Delivery Units,Adults and Health,Other Agencies - Third Party P,90224746,DYNAMIC PEOPLE LTD,84.49,10/01/2020
Delivery Units,Adults and Health,Other Agencies - Third Party P,90224748,DYNAMIC PEOPLE LTD,96.54,10/01/2020
Delivery Units,Adults and Health,Other Agencies - Third Party P,90224749,DYNAMIC PEOPLE LTD,60.36,10/01/2020
Delivery Units,Adults and Health,Other Agencies - Third Party P,90224750,DYNAMIC PEOPLE LTD,253.54,10/01/2020
Delivery Units,Adults and Health,Other Agencies - Third Party P,90224751,DYNAMIC PEOPLE LTD,168.98,10/01/2020
Delivery Units,Adults and Health,Other Agencies - Third Party P,90224753,DYNAMIC PEOPLE LTD,140.84,10/01/2020
Delivery Units,Adults and Health,Other Agencies - Third Party P,90224754,DYNAMIC PEOPLE LTD,84.49,10/01/2020
Delivery Units,Adults and Health,Other Agencies - Third Party P,90224756,DYNAMIC PEOPLE LTD,64.36,10/01/2020
Delivery Units,Adults and Health,Other Agencies - Third Party P,90224757,DYNAMIC PEOPLE LTD,52.29,10/01/2020
Delivery Units,Adults and Health,Other Agencies - Third Party P,90224758,DYNAMIC PEOPLE LTD,56.35,10/01/2020
Delivery Units,Adults and Health,Other Agencies - Third Party P,90224761,DYNAMIC PEOPLE LTD,140.84,10/01/2020
Delivery Units,Adults and Health,Other Agencies - Third Party P,90224762,DYNAMIC PEOPLE LTD,112.70,10/01/2020
Delivery Units,Adults and Health,Other Agencies - Third Party P,90224763,DYNAMIC PEOPLE LTD,112.70,10/01/2020
Delivery Units,Adults and Health,Other Agencies - Third Party P,90224765,DYNAMIC PEOPLE LTD,32.18,10/01/2020
Delivery Units,Adults and Health,Other Agencies - Third Party P,90224766,DYNAMIC PEOPLE LTD,136.81,10/01/2020
Delivery Units,Adults and Health,Other Agencies - Third Party P,90224768,DYNAMIC PEOPLE LTD,108.61,10/01/2020
Delivery Units,Adults and Health,Other Agencies - Third Party P,90224769,DYNAMIC PEOPLE LTD,144.81,10/01/2020
Delivery Units,Adults and Health,Other Agencies - Third Party P,90224770,DYNAMIC PEOPLE LTD,265.54,10/01/2020
Delivery Units,Adults and Health,Other Agencies - Third Party P,90224771,DYNAMIC PEOPLE LTD,60.35,10/01/2020
Delivery Units,Adults and Health,Other Agencies - Third Party P,90224772,DYNAMIC PEOPLE LTD,36.21,10/01/2020
Delivery Units,Adults and Health,Other Agencies - Third Party P,90224773,DYNAMIC PEOPLE LTD,112.63,10/01/2020
Delivery Units,Adults and Health,Other Agencies - Third Party P,90224774,DYNAMIC PEOPLE LTD,824.67,10/01/2020
Delivery Units,Adults and Health,Other Agencies - Third Party P,90224775,DYNAMIC PEOPLE LTD,112.63,10/01/2020
Delivery Units,Adults and Health,Other Agencies - Third Party P,90224777,DYNAMIC PEOPLE LTD,80.45,10/01/2020
Delivery Units,Adults and Health,Other Agencies - Third Party P,90224780,DYNAMIC PEOPLE LTD,36.21,10/01/2020
Delivery Units,Adults and Health,Other Agencies - Third Party P,90224782,DYNAMIC PEOPLE LTD,253.54,10/01/2020
Delivery Units,Adults and Health,Other Agencies - Third Party P,90224783,DYNAMIC PEOPLE LTD,108.65,10/01/2020
Delivery Units,Adults and Health,Other Agencies - Third Party P,90224784,DYNAMIC PEOPLE LTD,144.81,10/01/2020
Delivery Units,Adults and Health,Other Agencies - Third Party P,90224785,DYNAMIC PEOPLE LTD,84.49,10/01/2020
Delivery Units,Adults and Health,Other Agencies - Third Party P,90224786,DYNAMIC PEOPLE LTD,193.17,10/01/2020
Delivery Units,Adults and Health,Other Agencies - Third Party P,90224787,DYNAMIC PEOPLE LTD,100.62,10/01/2020
Delivery Units,Adults and Health,Other Agencies - Third Party P,90224788,DYNAMIC PEOPLE LTD,140.84,10/01/2020
Delivery Units,Adults and Health,Other Agencies - Third Party P,90224789,DYNAMIC PEOPLE LTD,305.79,10/01/2020
Delivery Units,Adults and Health,Other Agencies - Third Party P,90224790,DYNAMIC PEOPLE LTD,56.35,10/01/2020
Delivery Units,Adults and Health,Other Agencies - Third Party P,90224795,DYNAMIC PEOPLE LTD,321.80,10/01/2020
Delivery Units,Adults and Health,Other Agencies - Third Party P,90224796,DYNAMIC PEOPLE LTD,201.15,10/01/2020
Delivery Units,Adults and Health,Other Agencies - Third Party P,90224797,DYNAMIC PEOPLE LTD,160.95,10/01/2020
Delivery Units,Adults and Health,Other Agencies - Third Party P,90224798,DYNAMIC PEOPLE LTD,88.51,10/01/2020
Delivery Units,Adults and Health,Other Agencies - Third Party P,90224799,DYNAMIC PEOPLE LTD,16.09,10/01/2020
Delivery Units,Adults and Health,Other Agencies - Third Party P,90224801,DYNAMIC PEOPLE LTD,261.51,10/01/2020
Delivery Units,Adults and Health,Other Agencies - Third Party P,90224802,DYNAMIC PEOPLE LTD,84.49,10/01/2020
Delivery Units,Adults and Health,Other Agencies - Third Party P,90224803,DYNAMIC PEOPLE LTD,112.63,10/01/2020
Delivery Units,Adults and Health,Other Agencies - Third Party P,90224805,DYNAMIC PEOPLE LTD,193.16,10/01/2020
Delivery Units,Adults and Health,Other Agencies - Third Party P,90224806,DYNAMIC PEOPLE LTD,197.12,10/01/2020
Delivery Units,Adults and Health,Other Agencies - Third Party P,90224808,DYNAMIC PEOPLE LTD,173.00,10/01/2020
Delivery Units,Adults and Health,Other Agencies - Third Party P,90224809,DYNAMIC PEOPLE LTD,273.56,10/01/2020
Delivery Units,Adults and Health,Other Agencies - Third Party P,90224810,DYNAMIC PEOPLE LTD,84.49,10/01/2020
Delivery Units,Adults and Health,Other Agencies - Third Party P,90224812,DYNAMIC PEOPLE LTD,16.10,10/01/2020
Delivery Units,Adults and Health,Other Agencies - Third Party P,90224813,DYNAMIC PEOPLE LTD,80.50,10/01/2020
Delivery Units,Adults and Health,Other Agencies - Third Party P,90224814,DYNAMIC PEOPLE LTD,48.28,10/01/2020
Delivery Units,Adults and Health,Other Agencies - Third Party P,90224816,DYNAMIC PEOPLE LTD,225.32,10/01/2020
Delivery Units,Adults and Health,Other Agencies - Third Party P,90224817,DYNAMIC PEOPLE LTD,88.54,10/01/2020
Delivery Units,Adults and Health,Other Agencies - Third Party P,90224818,DYNAMIC PEOPLE LTD,36.21,10/01/2020
Delivery Units,Adults and Health,Other Agencies - Third Party P,90224819,DYNAMIC PEOPLE LTD,84.49,10/01/2020
Delivery Units,Adults and Health,Other Agencies - Third Party P,90224820,DYNAMIC PEOPLE LTD,112.63,10/01/2020
Delivery Units,Adults and Health,Other Agencies - Third Party P,90224822,DYNAMIC PEOPLE LTD,466.74,10/01/2020
Delivery Units,Adults and Health,Other Agencies - Third Party P,90229291,DYNAMIC PEOPLE LTD,"2,973.97",30/01/2020
Delivery Units,Adults and Health,Other Agencies - Third Party P,90229292,DYNAMIC PEOPLE LTD,"2,606.23",30/01/2020
Delivery Units,Adults and Health,Other Agencies - Third Party P,90229293,DYNAMIC PEOPLE LTD,"2,265.88",30/01/2020
Delivery Units,Adults and Health,Other Agencies - Third Party P,90229294,DYNAMIC PEOPLE LTD,"2,227.61",30/01/2020
Delivery Units,Adults and Health,Other Agencies - Third Party P,90229295,DYNAMIC PEOPLE LTD,"1,917.27",30/01/2020
Delivery Units,Adults and Health,Other Agencies - Third Party P,90229296,DYNAMIC PEOPLE LTD,"1,798.92",30/01/2020
Delivery Units,Adults and Health,Other Agencies - Third Party P,90229299,DYNAMIC PEOPLE LTD,"1,224.80",30/01/2020
Delivery Units,Adults and Health,Other Agencies - Third Party P,90229301,DYNAMIC PEOPLE LTD,566.47,30/01/2020
Delivery Units,Adults and Health,Other Agencies - Third Party P,90229302,DYNAMIC PEOPLE LTD,566.47,30/01/2020
Delivery Units,Adults and Health,Other Agencies - Third Party P,90229303,DYNAMIC PEOPLE LTD,447.82,30/01/2020
